Service Heads (T),Executive (T),Director (T),Service Managers (T),Cost centre,Cost centre (T),Account,Account (T),Transaction number,Transaction Date,Period,Amount,Customer/supplier ID,Customer/Supplier Name
Adult Services,Revenue Budgets,Adult Services,Assisted Living Centre,A0764,Assisted Living Centre,A40080,Health & Safety Equipment,30075621,16/04/2022,202210,283.60,1001886,Nine Group International
Adult Services,Revenue Budgets,Adult Services,Assisted Living Centre,A0764,Assisted Living Centre,A40080,Health & Safety Equipment,30081328,23/09/2022,202210,408.00,101008,Invacare (Uk) Ltd
Adult Services,Revenue Budgets,Adult Services,Prevention And Wellbeing,A1452,Prevention And Ageing Well,A56000,Other Establishments,30074663,30/09/2022,202210,"8,128.53",1004626,Care Plus Group Ltd
Adult Services,Revenue Budgets,Adult Services,Prevention And Wellbeing,A1857,Ukraine Scheme,A56000,Other Establishments,30074663,30/09/2022,202210,"9,934.87",1004626,Care Plus Group Ltd
Adult Services,Revenue Budgets,Adult Services,Assisted Living Centre,A0764,Assisted Living Centre,A40080,Health & Safety Equipment,30072798,17/10/2022,202210,"1,760.00",1003373,Aidapt Bathrooms Ltd
Adult Services,Revenue Budgets,Adult Services,Assisted Living Centre,A0764,Assisted Living Centre,A40920,Purchase of Equipment,30076920,17/11/2022,202210,"3,587.95",139184,Ambre-Stone Ltd
Adult Services,Revenue Budgets,Adult Services,Assisted Living Centre,A0764,Assisted Living Centre,A40920,Purchase of Equipment,30080701,25/11/2022,202210,466.60,136642,Care & Independence Ltd
Adult Services,Revenue Budgets,Adult Services,Assisted Living Centre,A0764,Assisted Living Centre,A40920,Purchase of Equipment,30063850,28/11/2022,202210,"8,332.00",146299,Active Linx Ltd
Adult Services,Revenue Budgets,Adult Services,Assisted Living Centre,A0764,Assisted Living Centre,A40920,Purchase of Equipment,30067041,07/12/2022,202210,280.00,101260,Silvalea Ltd
Adult Services,Revenue Budgets,Adult Services,Director Of Adult Services,A1445,Director Of Adult Services,A16025,Recruitment Expenses,30079089,07/12/2022,202210,"16,087.50",100785,Solace In Business
Adult Services,Revenue Budgets,Adult Services,Assisted Living Centre,A0764,Assisted Living Centre,A40095,Equipment Maintenance and Repair,30070219,19/12/2022,202210,703.50,102678,Direct Healthcare
Adult Services,Revenue Budgets,Adult Services,Assisted Living Centre,A0764,Assisted Living Centre,A40920,Purchase of Equipment,30071418,22/12/2022,202210,"1,586.40",101134,The Helping Hand Company (Ledbury) Ltd
Adult Services,Revenue Budgets,Adult Services,Assisted Living Centre,A0764,Assisted Living Centre,A40920,Purchase of Equipment,30071435,22/12/2022,202210,"1,411.00",101134,The Helping Hand Company (Ledbury) Ltd
Adult Services,Revenue Budgets,Adult Services,Assisted Living Centre,A0764,Assisted Living Centre,A40080,Health & Safety Equipment,30073260,22/12/2022,202210,500.00,139289,Sumed International Uk Ltd
Adult Services,Revenue Budgets,Adult Services,Director Of Adult Services,A1445,Director Of Adult Services,A44065,Consultancy Services,30074258,31/12/2022,202210,"1,299.75",133446,Impower Consulting Limited
Adult Services,Revenue Budgets,Adult Services,Assisted Living Centre,A0764,Assisted Living Centre,A40080,Health & Safety Equipment,30076229,31/12/2022,202210,413.00,1000580,Newsmith Stainless Limited
Adult Services,Revenue Budgets,Adult Services,Adult Social Care,A0172,Adult Social Care,A11005,Agency Supply Staff,30073282,01/01/2023,202210,"3,571.44",1002419,Hamptons Resourcing Ltd
Adult Services,Revenue Budgets,Adult Services,Assisted Living Centre,A0764,Assisted Living Centre,A40920,Purchase of Equipment,30073410,03/01/2023,202210,500.33,101715,Nottingham Rehab Limited
Adult Services,Revenue Budgets,Adult Services,Prevention And Wellbeing,A1857,Ukraine Scheme,A56000,Other Establishments,30072805,04/01/2023,202210,350.00,REDACTED PERSONAL INFORMATION,REDACTED PERSONAL INFORMATION
Adult Services,Revenue Budgets,Adult Services,Prevention And Wellbeing,A1857,Ukraine Scheme,A56000,Other Establishments,30072805,04/01/2023,202210,350.00,REDACTED PERSONAL INFORMATION,REDACTED PERSONAL INFORMATION
Adult Services,Revenue Budgets,Adult Services,Prevention And Wellbeing,A1857,Ukraine Scheme,A56000,Other Establishments,30072805,04/01/2023,202210,350.00,REDACTED PERSONAL INFORMATION,REDACTED PERSONAL INFORMATION
Adult Services,Revenue Budgets,Adult Services,Prevention And Wellbeing,A1857,Ukraine Scheme,A56000,Other Establishments,30072805,04/01/2023,202210,350.00,REDACTED PERSONAL INFORMATION,REDACTED PERSONAL INFORMATION
Adult Services,Revenue Budgets,Adult Services,Prevention And Wellbeing,A1857,Ukraine Scheme,A56000,Other Establishments,30072805,04/01/2023,202210,350.00,REDACTED PERSONAL INFORMATION,REDACTED PERSONAL INFORMATION
Adult Services,Revenue Budgets,Adult Services,Prevention And Wellbeing,A1857,Ukraine Scheme,A56000,Other Establishments,30072805,04/01/2023,202210,350.00,REDACTED PERSONAL INFORMATION,REDACTED PERSONAL INFORMATION
Adult Services,Revenue Budgets,Adult Services,Prevention And Wellbeing,A1857,Ukraine Scheme,A56000,Other Establishments,30072805,04/01/2023,202210,350.00,REDACTED PERSONAL INFORMATION,REDACTED PERSONAL INFORMATION
Adult Services,Revenue Budgets,Adult Services,Prevention And Wellbeing,A1857,Ukraine Scheme,A56000,Other Establishments,30072805,04/01/2023,202210,350.00,REDACTED PERSONAL INFORMATION,REDACTED PERSONAL INFORMATION
Adult Services,Revenue Budgets,Adult Services,Prevention And Wellbeing,A1857,Ukraine Scheme,A56000,Other Establishments,30072805,04/01/2023,202210,350.00,REDACTED PERSONAL INFORMATION,REDACTED PERSONAL INFORMATION
Adult Services,Revenue Budgets,Adult Services,Prevention And Wellbeing,A1857,Ukraine Scheme,A56000,Other Establishments,30072805,04/01/2023,202210,350.00,REDACTED PERSONAL INFORMATION,REDACTED PERSONAL INFORMATION
Adult Services,Revenue Budgets,Adult Services,Prevention And Wellbeing,A1857,Ukraine Scheme,A56000,Other Establishments,30072805,04/01/2023,202210,350.00,REDACTED PERSONAL INFORMATION,REDACTED PERSONAL INFORMATION
Adult Services,Revenue Budgets,Adult Services,Prevention And Wellbeing,A1857,Ukraine Scheme,A56000,Other Establishments,30072805,04/01/2023,202210,350.00,REDACTED PERSONAL INFORMATION,REDACTED PERSONAL INFORMATION
Adult Services,Revenue Budgets,Adult Services,Prevention And Wellbeing,A1857,Ukraine Scheme,A56000,Other Establishments,30072805,04/01/2023,202210,350.00,REDACTED PERSONAL INFORMATION,REDACTED PERSONAL INFORMATION
Adult Services,Revenue Budgets,Adult Services,Prevention And Wellbeing,A1857,Ukraine Scheme,A56000,Other Establishments,30072805,04/01/2023,202210,350.00,REDACTED PERSONAL INFORMATION,REDACTED PERSONAL INFORMATION
Adult Services,Revenue Budgets,Adult Services,Prevention And Wellbeing,A1857,Ukraine Scheme,A56000,Other Establishments,30072805,04/01/2023,202210,350.00,REDACTED PERSONAL INFORMATION,REDACTED PERSONAL INFORMATION
Adult Services,Revenue Budgets,Adult Services,Prevention And Wellbeing,A1857,Ukraine Scheme,A56000,Other Establishments,30072805,04/01/2023,202210,350.00,REDACTED PERSONAL INFORMATION,REDACTED PERSONAL INFORMATION
Adult Services,Revenue Budgets,Adult Services,Prevention And Wellbeing,A1857,Ukraine Scheme,A56000,Other Establishments,30072805,04/01/2023,202210,500.00,REDACTED PERSONAL INFORMATION,REDACTED PERSONAL INFORMATION
Adult Services,Revenue Budgets,Adult Services,Prevention And Wellbeing,A1857,Ukraine Scheme,A56000,Other Establishments,30072805,04/01/2023,202210,500.00,REDACTED PERSONAL INFORMATION,REDACTED PERSONAL INFORMATION
Adult Services,Revenue Budgets,Adult Services,Prevention And Wellbeing,A1857,Ukraine Scheme,A56000,Other Establishments,30072805,04/01/2023,202210,500.00,REDACTED PERSONAL INFORMATION,REDACTED PERSONAL INFORMATION
Adult Services,Revenue Budgets,Adult Services,Prevention And Wellbeing,A1857,Ukraine Scheme,A56000,Other Establishments,30072805,04/01/2023,202210,500.00,REDACTED PERSONAL INFORMATION,REDACTED PERSONAL INFORMATION
Adult Services,Revenue Budgets,Adult Services,Prevention And Wellbeing,A1857,Ukraine Scheme,A56000,Other Establishments,30072805,04/01/2023,202210,500.00,REDACTED PERSONAL INFORMATION,REDACTED PERSONAL INFORMATION
Adult Services,Revenue Budgets,Adult Services,Prevention And Wellbeing,A1857,Ukraine Scheme,A56000,Other Establishments,30072805,04/01/2023,202210,500.00,REDACTED PERSONAL INFORMATION,REDACTED PERSONAL INFORMATION
Adult Services,Revenue Budgets,Adult Services,Prevention And Wellbeing,A1857,Ukraine Scheme,A56000,Other Establishments,30072805,04/01/2023,202210,500.00,REDACTED PERSONAL INFORMATION,REDACTED PERSONAL INFORMATION
Adult Services,Revenue Budgets,Adult Services,Prevention And Wellbeing,A1857,Ukraine Scheme,A56000,Other Establishments,30072805,04/01/2023,202210,500.00,REDACTED PERSONAL INFORMATION,REDACTED PERSONAL INFORMATION
Adult Services,Revenue Budgets,Adult Services,Prevention And Wellbeing,A1857,Ukraine Scheme,A56000,Other Establishments,30072805,04/01/2023,202210,500.00,REDACTED PERSONAL INFORMATION,REDACTED PERSONAL INFORMATION
Adult Services,Revenue Budgets,Adult Services,Prevention And Wellbeing,A1857,Ukraine Scheme,A56000,Other Establishments,30072805,04/01/2023,202210,500.00,REDACTED PERSONAL INFORMATION,REDACTED PERSONAL INFORMATION
Adult Services,Revenue Budgets,Adult Services,Prevention And Wellbeing,A1857,Ukraine Scheme,A56000,Other Establishments,30072805,04/01/2023,202210,500.00,REDACTED PERSONAL INFORMATION,REDACTED PERSONAL INFORMATION
Adult Services,Revenue Budgets,Adult Services,Prevention And Wellbeing,A1857,Ukraine Scheme,A56000,Other Establishments,30072805,04/01/2023,202210,500.00,REDACTED PERSONAL INFORMATION,REDACTED PERSONAL INFORMATION
Adult Services,Revenue Budgets,Adult Services,Prevention And Wellbeing,A1857,Ukraine Scheme,A56000,Other Establishments,30072805,04/01/2023,202210,500.00,REDACTED PERSONAL INFORMATION,REDACTED PERSONAL INFORMATION
Adult Services,Revenue Budgets,Adult Services,Prevention And Wellbeing,A1857,Ukraine Scheme,A56000,Other Establishments,30072805,04/01/2023,202210,500.00,REDACTED PERSONAL INFORMATION,REDACTED PERSONAL INFORMATION
Adult Services,Revenue Budgets,Adult Services,Prevention And Wellbeing,A1857,Ukraine Scheme,A56000,Other Establishments,30072805,04/01/2023,202210,500.00,REDACTED PERSONAL INFORMATION,REDACTED PERSONAL INFORMATION
Adult Services,Revenue Budgets,Adult Services,Prevention And Wellbeing,A1857,Ukraine Scheme,A56000,Other Establishments,30072805,04/01/2023,202210,500.00,REDACTED PERSONAL INFORMATION,REDACTED PERSONAL INFORMATION
Adult Services,Revenue Budgets,Adult Services,Prevention And Wellbeing,A1857,Ukraine Scheme,A56000,Other Establishments,30072805,04/01/2023,202210,650.00,REDACTED PERSONAL INFORMATION,REDACTED PERSONAL INFORMATION
Adult Services,Revenue Budgets,Adult Services,Prevention And Wellbeing,A1857,Ukraine Scheme,A56000,Other Establishments,30072805,04/01/2023,202210,700.00,REDACTED PERSONAL INFORMATION,REDACTED PERSONAL INFORMATION
Adult Services,Revenue Budgets,Adult Services,Prevention And Wellbeing,A1857,Ukraine Scheme,A56000,Other Establishments,30072805,04/01/2023,202210,"1,750.00",REDACTED PERSONAL INFORMATION,REDACTED PERSONAL INFORMATION
Adult Services,Revenue Budgets,Adult Services,Assisted Living Centre,A0764,Assisted Living Centre,A40080,Health & Safety Equipment,30074666,05/01/2023,202210,601.60,101715,Nottingham Rehab Limited
Adult Services,Revenue Budgets,Adult Services,Assisted Living Centre,A0764,Assisted Living Centre,A40080,Health & Safety Equipment,30074666,05/01/2023,202210,848.00,101715,Nottingham Rehab Limited
Adult Services,Revenue Budgets,Adult Services,Assisted Living Centre,A0764,Assisted Living Centre,A40080,Health & Safety Equipment,30074666,05/01/2023,202210,"1,440.00",101715,Nottingham Rehab Limited
Adult Services,Revenue Budgets,Adult Services,Assisted Living Centre,A0764,Assisted Living Centre,A40080,Health & Safety Equipment,30074666,05/01/2023,202210,"2,880.00",101715,Nottingham Rehab Limited
Adult Services,Revenue Budgets,Adult Services,Director Of Adult Services,A1445,Director Of Adult Services,A11005,Agency Supply Staff,30074184,06/01/2023,202210,"16,575.00",100785,Solace In Business
Adult Services,Revenue Budgets,Adult Services,Prevention And Wellbeing,A1857,Ukraine Scheme,A22005,Building Rents,30076271,06/01/2023,202210,"1,275.00",103582,Crofts Estate Agents Rent Account
Adult Services,Revenue Budgets,Adult Services,Adult Social Care,A0172,Adult Social Care,A11005,Agency Supply Staff,30075207,08/01/2023,202210,"2,678.58",1002419,Hamptons Resourcing Ltd
Adult Services,Revenue Budgets,Adult Services,Assisted Living Centre,A0764,Assisted Living Centre,A40080,Health & Safety Equipment,30075603,09/01/2023,202210,"3,170.00",139289,Sumed International Uk Ltd
Adult Services,Revenue Budgets,Adult Services,Prevention And Wellbeing,A1857,Ukraine Scheme,A40045,Furniture,30077131,09/01/2023,202210,345.00,102653,Cash Creators
Adult Services,Revenue Budgets,Adult Services,Assisted Living Centre,A0764,Assisted Living Centre,A40095,Equipment Maintenance and Repair,30074981,10/01/2023,202210,968.38,102678,Direct Healthcare
Adult Services,Revenue Budgets,Adult Services,Assisted Living Centre,A0764,Assisted Living Centre,A40080,Health & Safety Equipment,30074920,11/01/2023,202210,345.00,1003791,Trulife Limited
Adult Services,Revenue Budgets,Adult Services,Assisted Living Centre,A0764,Assisted Living Centre,A40080,Health & Safety Equipment,30076679,11/01/2023,202210,"1,137.00",100833,Jenx Ltd
Adult Services,Revenue Budgets,Adult Services,Prevention And Wellbeing,A1451,Health Watch Development,A57115,Payments to Private Contractors,30077992,11/01/2023,202210,"28,085.00",140423,Mnh Meeting New Horizons
Adult Services,Revenue Budgets,Adult Services,Assisted Living Centre,A0764,Assisted Living Centre,A40920,Purchase of Equipment,30076867,13/01/2023,202210,"2,772.00",111970,Smirthwaite Limited
Adult Services,Revenue Budgets,Adult Services,Adult Social Care,A0172,Adult Social Care,A11005,Agency Supply Staff,30077398,15/01/2023,202210,"2,678.58",1002419,Hamptons Resourcing Ltd
Adult Services,Revenue Budgets,Adult Services,Assisted Living Centre,A0764,Assisted Living Centre,A40080,Health & Safety Equipment,30077173,16/01/2023,202210,600.00,101792,Viking Hardware Ltd
Adult Services,Revenue Budgets,Adult Services,Assisted Living Centre,A0764,Assisted Living Centre,A40080,Health & Safety Equipment,30077173,16/01/2023,202210,850.00,101792,Viking Hardware Ltd
Adult Services,Revenue Budgets,Adult Services,Assisted Living Centre,A0764,Assisted Living Centre,A40080,Health & Safety Equipment,30077173,16/01/2023,202210,850.00,101792,Viking Hardware Ltd
Adult Services,Revenue Budgets,Adult Services,Assisted Living Centre,A0764,Assisted Living Centre,A40080,Health & Safety Equipment,30077173,16/01/2023,202210,950.00,101792,Viking Hardware Ltd
Adult Services,Revenue Budgets,Adult Services,Assisted Living Centre,A0764,Assisted Living Centre,A40080,Health & Safety Equipment,30077409,16/01/2023,202210,368.00,1001865,Interweave Textiles Ltd
Adult Services,Revenue Budgets,Adult Services,Assisted Living Centre,A0764,Assisted Living Centre,A40080,Health & Safety Equipment,30077154,18/01/2023,202210,862.50,1003791,Trulife Limited
Adult Services,Revenue Budgets,Adult Services,Assisted Living Centre,A0764,Assisted Living Centre,A40080,Health & Safety Equipment,30077600,18/01/2023,202210,862.50,1003791,Trulife Limited
Adult Services,Revenue Budgets,Adult Services,Assisted Living Centre,A0764,Assisted Living Centre,A40080,Health & Safety Equipment,30079032,19/01/2023,202210,360.00,139289,Sumed International Uk Ltd
Adult Services,Revenue Budgets,Adult Services,Assisted Living Centre,A0764,Assisted Living Centre,A40080,Health & Safety Equipment,30079318,23/01/2023,202210,343.60,1001886,Nine Group International
Adult Services,Revenue Budgets,Adult Services,Assisted Living Centre,A0764,Assisted Living Centre,A40080,Health & Safety Equipment,30079466,24/01/2023,202210,345.50,101792,Viking Hardware Ltd
Adult Services,Revenue Budgets,Adult Services,Prevention And Wellbeing,A1857,Ukraine Scheme,A56000,Other Establishments,30080459,30/01/2023,202210,350.00,REDACTED PERSONAL INFORMATION,REDACTED PERSONAL INFORMATION
Adult Services,Revenue Budgets,Adult Services,Prevention And Wellbeing,A1857,Ukraine Scheme,A56000,Other Establishments,30080459,30/01/2023,202210,350.00,REDACTED PERSONAL INFORMATION,REDACTED PERSONAL INFORMATION
Adult Services,Revenue Budgets,Adult Services,Prevention And Wellbeing,A1857,Ukraine Scheme,A56000,Other Establishments,30080459,30/01/2023,202210,350.00,REDACTED PERSONAL INFORMATION,REDACTED PERSONAL INFORMATION
Adult Services,Revenue Budgets,Adult Services,Prevention And Wellbeing,A1857,Ukraine Scheme,A56000,Other Establishments,30080459,30/01/2023,202210,350.00,REDACTED PERSONAL INFORMATION,REDACTED PERSONAL INFORMATION
Adult Services,Revenue Budgets,Adult Services,Prevention And Wellbeing,A1857,Ukraine Scheme,A56000,Other Establishments,30080459,30/01/2023,202210,350.00,REDACTED PERSONAL INFORMATION,REDACTED PERSONAL INFORMATION
Adult Services,Revenue Budgets,Adult Services,Prevention And Wellbeing,A1857,Ukraine Scheme,A56000,Other Establishments,30080459,30/01/2023,202210,350.00,REDACTED PERSONAL INFORMATION,REDACTED PERSONAL INFORMATION
Adult Services,Revenue Budgets,Adult Services,Prevention And Wellbeing,A1857,Ukraine Scheme,A56000,Other Establishments,30080459,30/01/2023,202210,350.00,REDACTED PERSONAL INFORMATION,REDACTED PERSONAL INFORMATION
Adult Services,Revenue Budgets,Adult Services,Prevention And Wellbeing,A1857,Ukraine Scheme,A56000,Other Establishments,30080459,30/01/2023,202210,350.00,REDACTED PERSONAL INFORMATION,REDACTED PERSONAL INFORMATION
Adult Services,Revenue Budgets,Adult Services,Prevention And Wellbeing,A1857,Ukraine Scheme,A56000,Other Establishments,30080459,30/01/2023,202210,350.00,REDACTED PERSONAL INFORMATION,REDACTED PERSONAL INFORMATION
Adult Services,Revenue Budgets,Adult Services,Prevention And Wellbeing,A1857,Ukraine Scheme,A56000,Other Establishments,30080459,30/01/2023,202210,350.00,REDACTED PERSONAL INFORMATION,REDACTED PERSONAL INFORMATION
Adult Services,Revenue Budgets,Adult Services,Prevention And Wellbeing,A1857,Ukraine Scheme,A56000,Other Establishments,30080459,30/01/2023,202210,350.00,REDACTED PERSONAL INFORMATION,REDACTED PERSONAL INFORMATION
Adult Services,Revenue Budgets,Adult Services,Prevention And Wellbeing,A1857,Ukraine Scheme,A56000,Other Establishments,30080459,30/01/2023,202210,350.00,REDACTED PERSONAL INFORMATION,REDACTED PERSONAL INFORMATION
Adult Services,Revenue Budgets,Adult Services,Prevention And Wellbeing,A1857,Ukraine Scheme,A56000,Other Establishments,30080459,30/01/2023,202210,350.00,REDACTED PERSONAL INFORMATION,REDACTED PERSONAL INFORMATION
Adult Services,Revenue Budgets,Adult Services,Prevention And Wellbeing,A1857,Ukraine Scheme,A56000,Other Establishments,30080459,30/01/2023,202210,350.00,REDACTED PERSONAL INFORMATION,REDACTED PERSONAL INFORMATION
Adult Services,Revenue Budgets,Adult Services,Prevention And Wellbeing,A1857,Ukraine Scheme,A56000,Other Establishments,30080459,30/01/2023,202210,350.00,REDACTED PERSONAL INFORMATION,REDACTED PERSONAL INFORMATION
Adult Services,Revenue Budgets,Adult Services,Prevention And Wellbeing,A1857,Ukraine Scheme,A56000,Other Establishments,30080459,30/01/2023,202210,350.00,REDACTED PERSONAL INFORMATION,REDACTED PERSONAL INFORMATION
Adult Services,Revenue Budgets,Adult Services,Prevention And Wellbeing,A1857,Ukraine Scheme,A56000,Other Establishments,30080459,30/01/2023,202210,350.00,REDACTED PERSONAL INFORMATION,REDACTED PERSONAL INFORMATION
Adult Services,Revenue Budgets,Adult Services,Prevention And Wellbeing,A1857,Ukraine Scheme,A56000,Other Establishments,30080459,30/01/2023,202210,350.00,REDACTED PERSONAL INFORMATION,REDACTED PERSONAL INFORMATION
Adult Services,Revenue Budgets,Adult Services,Prevention And Wellbeing,A1857,Ukraine Scheme,A56000,Other Establishments,30080459,30/01/2023,202210,500.00,REDACTED PERSONAL INFORMATION,REDACTED PERSONAL INFORMATION
Adult Services,Revenue Budgets,Adult Services,Prevention And Wellbeing,A1857,Ukraine Scheme,A56000,Other Establishments,30080459,30/01/2023,202210,500.00,REDACTED PERSONAL INFORMATION,REDACTED PERSONAL INFORMATION
Adult Services,Revenue Budgets,Adult Services,Prevention And Wellbeing,A1857,Ukraine Scheme,A56000,Other Establishments,30080459,30/01/2023,202210,500.00,REDACTED PERSONAL INFORMATION,REDACTED PERSONAL INFORMATION
Adult Services,Revenue Budgets,Adult Services,Prevention And Wellbeing,A1857,Ukraine Scheme,A56000,Other Establishments,30080459,30/01/2023,202210,500.00,REDACTED PERSONAL INFORMATION,REDACTED PERSONAL INFORMATION
Adult Services,Revenue Budgets,Adult Services,Prevention And Wellbeing,A1857,Ukraine Scheme,A56000,Other Establishments,30080459,30/01/2023,202210,500.00,REDACTED PERSONAL INFORMATION,REDACTED PERSONAL INFORMATION
Adult Services,Revenue Budgets,Adult Services,Prevention And Wellbeing,A1857,Ukraine Scheme,A56000,Other Establishments,30080459,30/01/2023,202210,500.00,REDACTED PERSONAL INFORMATION,REDACTED PERSONAL INFORMATION
Adult Services,Revenue Budgets,Adult Services,Prevention And Wellbeing,A1857,Ukraine Scheme,A56000,Other Establishments,30080459,30/01/2023,202210,500.00,REDACTED PERSONAL INFORMATION,REDACTED PERSONAL INFORMATION
Adult Services,Revenue Budgets,Adult Services,Prevention And Wellbeing,A1857,Ukraine Scheme,A56000,Other Establishments,30080459,30/01/2023,202210,500.00,REDACTED PERSONAL INFORMATION,REDACTED PERSONAL INFORMATION
Adult Services,Revenue Budgets,Adult Services,Prevention And Wellbeing,A1857,Ukraine Scheme,A56000,Other Establishments,30080459,30/01/2023,202210,500.00,REDACTED PERSONAL INFORMATION,REDACTED PERSONAL INFORMATION
Adult Services,Revenue Budgets,Adult Services,Prevention And Wellbeing,A1857,Ukraine Scheme,A56000,Other Establishments,30080459,30/01/2023,202210,500.00,REDACTED PERSONAL INFORMATION,REDACTED PERSONAL INFORMATION
Adult Services,Revenue Budgets,Adult Services,Prevention And Wellbeing,A1857,Ukraine Scheme,A56000,Other Establishments,30080459,30/01/2023,202210,500.00,REDACTED PERSONAL INFORMATION,REDACTED PERSONAL INFORMATION
Adult Services,Revenue Budgets,Adult Services,Prevention And Wellbeing,A1857,Ukraine Scheme,A56000,Other Establishments,30080459,30/01/2023,202210,500.00,REDACTED PERSONAL INFORMATION,REDACTED PERSONAL INFORMATION
Adult Services,Revenue Budgets,Adult Services,Prevention And Wellbeing,A1857,Ukraine Scheme,A56000,Other Establishments,30080459,30/01/2023,202210,500.00,REDACTED PERSONAL INFORMATION,REDACTED PERSONAL INFORMATION
Adult Services,Revenue Budgets,Adult Services,Prevention And Wellbeing,A1857,Ukraine Scheme,A56000,Other Establishments,30080459,30/01/2023,202210,500.00,REDACTED PERSONAL INFORMATION,REDACTED PERSONAL INFORMATION
Adult Services,Revenue Budgets,Adult Services,Prevention And Wellbeing,A1857,Ukraine Scheme,A56000,Other Establishments,30080459,30/01/2023,202210,500.00,REDACTED PERSONAL INFORMATION,REDACTED PERSONAL INFORMATION
Adult Services,Revenue Budgets,Adult Services,Prevention And Wellbeing,A1857,Ukraine Scheme,A56000,Other Establishments,30080459,30/01/2023,202210,500.00,REDACTED PERSONAL INFORMATION,REDACTED PERSONAL INFORMATION
Adult Services,Revenue Budgets,Adult Services,Prevention And Wellbeing,A1857,Ukraine Scheme,A56000,Other Establishments,30080459,30/01/2023,202210,500.00,REDACTED PERSONAL INFORMATION,REDACTED PERSONAL INFORMATION
Adult Services,Revenue Budgets,Adult Services,Assisted Living Centre,A0764,Assisted Living Centre,A40920,Purchase of Equipment,30080809,30/01/2023,202210,375.10,100833,Jenx Ltd
Adult Services,Revenue Budgets,Adult Services,Assisted Living Centre,A0764,Assisted Living Centre,A40920,Purchase of Equipment,30080828,30/01/2023,202210,672.00,1000434,Tough Furniture Limited
Adult Services,Revenue Budgets,Adult Services,Assisted Living Centre,A0764,Assisted Living Centre,A40920,Purchase of Equipment,30080828,30/01/2023,202210,742.00,1000434,Tough Furniture Limited
Assistant Chief Executive,Revenue Budgets,Resources,Elections Team,A0218,Electoral Registration,A45045,IT Software Maintenance,30074954,16/11/2022,202210,315.84,109848,Idox Software Ltd
Assistant Chief Executive,Revenue Budgets,Resources,Registrars & Civic Services,A0222,Civic & Caretaking,A49105,Other Supplies & Services,30073127,21/12/2022,202210,310.00,1004499,Aistrup & Hind
Assistant Chief Executive,Revenue Budgets,Resources,Assistant Chief Executive,A0770,Dem Improvement And Engagement,A56000,Other Establishments,30073210,01/01/2023,202210,"40,000.00",101013,Gy/Clee & Dist Citizens
Assistant Chief Executive,Revenue Budgets,Resources,Assistant Chief Executive,A1761,Eu Exit Funding,A47006,Contributions - Communities,30073433,04/01/2023,202210,"30,000.00",120031,North Bank Forum
Assistant Chief Executive,Revenue Budgets,Resources,Registrars & Civic Services,A0230,Registrars,A22005,Building Rents,30074994,05/01/2023,202210,"1,240.00",101604,Cleethorpes Charter Trustees
Assistant Chief Executive,Revenue Budgets,Resources,Registrars & Civic Services,A0222,Civic & Caretaking,A41905,Catering,30076772,13/01/2023,202210,284.41,121021,Holdsworth Ltd
Assistant Chief Executive,Revenue Budgets,Resources,Registrars & Civic Services,A0222,Civic & Caretaking,A44942,Promotions and Events,30077034,17/01/2023,202210,260.00,1004487,Royal British Legion Poppy Appeal
Assistant Chief Executive,Revenue Budgets,Resources,Registrars & Civic Services,A0222,Civic & Caretaking,A44942,Promotions and Events,30077403,18/01/2023,202210,834.54,1004709,Allenby Stevenson Ltd
Assistant Chief Executive,Revenue Budgets,Resources,Emergency Planning,A1845,Household Support Fund,A49105,Other Supplies & Services,30077570,19/01/2023,202210,"1,000.00",HSFGRANT,HSF Grant
Assistant Chief Executive,Revenue Budgets,Resources,Emergency Planning,A1845,Household Support Fund,A49105,Other Supplies & Services,30077570,19/01/2023,202210,"1,000.00",HSFGRANT,HSF Grant
Assistant Chief Executive,Revenue Budgets,Resources,Emergency Planning,A1845,Household Support Fund,A49105,Other Supplies & Services,30077570,19/01/2023,202210,"1,000.00",HSFGRANT,HSF Grant
Assistant Chief Executive,Revenue Budgets,Resources,Emergency Planning,A1845,Household Support Fund,A49105,Other Supplies & Services,30077570,19/01/2023,202210,"1,000.00",HSFGRANT,HSF Grant
Assistant Chief Executive,Revenue Budgets,Resources,Emergency Planning,A1845,Household Support Fund,A49105,Other Supplies & Services,30077570,19/01/2023,202210,"1,000.00",HSFGRANT,HSF Grant
Assistant Chief Executive,Revenue Budgets,Resources,Emergency Planning,A1845,Household Support Fund,A49105,Other Supplies & Services,30077570,19/01/2023,202210,"1,000.00",HSFGRANT,HSF Grant
Assistant Chief Executive,Revenue Budgets,Resources,Emergency Planning,A1845,Household Support Fund,A49105,Other Supplies & Services,30077570,19/01/2023,202210,"1,000.00",HSFGRANT,HSF Grant
Assistant Chief Executive,Revenue Budgets,Resources,Emergency Planning,A1845,Household Support Fund,A49105,Other Supplies & Services,30077570,19/01/2023,202210,"1,000.00",HSFGRANT,HSF Grant
Assistant Chief Executive,Revenue Budgets,Resources,Emergency Planning,A1845,Household Support Fund,A49105,Other Supplies & Services,30077570,19/01/2023,202210,"1,000.00",HSFGRANT,HSF Grant
Assistant Chief Executive,Revenue Budgets,Resources,Emergency Planning,A1845,Household Support Fund,A49105,Other Supplies & Services,30077570,19/01/2023,202210,"1,000.00",HSFGRANT,HSF Grant
Assistant Chief Executive,Revenue Budgets,Resources,Emergency Planning,A1845,Household Support Fund,A49105,Other Supplies & Services,30077570,19/01/2023,202210,"2,000.00",HSFGRANT,HSF Grant
Assistant Chief Executive,Revenue Budgets,Resources,Emergency Planning,A1845,Household Support Fund,A49105,Other Supplies & Services,30077570,19/01/2023,202210,"2,000.00",HSFGRANT,HSF Grant
Assistant Chief Executive,Revenue Budgets,Resources,Assistant Chief Executive,A1849,Community Renewals Fund (CRF),A47005,"Grants, Contributions & Donations",30079933,25/01/2023,202210,"166,146.22",101299,University Of Lincoln
Assistant Chief Executive,Revenue Budgets,Resources,Emergency Planning,A1845,Household Support Fund,A49105,Other Supplies & Services,30080039,27/01/2023,202210,"1,000.00",HSFGRANT,HSF Grant
Assistant Chief Executive,Revenue Budgets,Resources,Emergency Planning,A1845,Household Support Fund,A49105,Other Supplies & Services,30080039,27/01/2023,202210,"1,000.00",HSFGRANT,HSF Grant
Assistant Chief Executive,Revenue Budgets,Resources,Emergency Planning,A1845,Household Support Fund,A49105,Other Supplies & Services,30080039,27/01/2023,202210,"1,000.00",HSFGRANT,HSF Grant
Assistant Chief Executive,Revenue Budgets,Resources,Emergency Planning,A1845,Household Support Fund,A49105,Other Supplies & Services,30080039,27/01/2023,202210,"1,000.00",HSFGRANT,HSF Grant
Assistant Chief Executive,Revenue Budgets,Resources,Emergency Planning,A1845,Household Support Fund,A49105,Other Supplies & Services,30080039,27/01/2023,202210,"1,000.00",HSFGRANT,HSF Grant
Assistant Chief Executive,Revenue Budgets,Resources,Emergency Planning,A1845,Household Support Fund,A49105,Other Supplies & Services,30080039,27/01/2023,202210,"1,000.00",HSFGRANT,HSF Grant
Assistant Chief Executive,Revenue Budgets,Resources,Emergency Planning,A1845,Household Support Fund,A49105,Other Supplies & Services,30080039,27/01/2023,202210,"2,000.00",HSFGRANT,HSF Grant
Assistant Chief Executive,Revenue Budgets,Resources,Assistant Chief Executive,A1849,Community Renewals Fund (CRF),A47005,"Grants, Contributions & Donations",30080417,27/01/2023,202210,"68,550.36",141443,Modal Training Ltd
Assistant Chief Executive,Revenue Budgets,Resources,Elections Team,A0218,Electoral Registration,A45040,IT Software Purchase,30080799,30/01/2023,202210,265.32,101275,Trustmarque Solutions Ltd
Assistant Chief Executive,Revenue Budgets,Resources,Registrars & Civic Services,A0222,Civic & Caretaking,A44942,Promotions and Events,30080816,30/01/2023,202210,420.00,1002345,David Everingham Conservation Ltd
Assistant Chief Executive,Revenue Budgets,Resources,Emergency Planning,A1845,Household Support Fund,A55005,Payments to Voluntary Organisations,30080787,31/01/2023,202210,"30,000.00",102869,Foresight Nel Ltd
Deputy s151,Revenue Budgets,Resources,Local Taxation & Benefits - Shared,A0187,Debt Collection,A49053,Debt Recovery Costs,30077401,26/03/2022,202210,"-10,859.18",123422,Newlyn
Deputy s151,Revenue Budgets,Resources,Local Taxation & Benefits - Shared,A0187,Debt Collection,A49053,Debt Recovery Costs,30077401,26/03/2022,202210,"10,859.18",123422,Newlyn
Deputy s151,Revenue Budgets,Resources,Local Taxation & Benefits - Shared,A0187,Debt Collection,A49053,Debt Recovery Costs,30078802,26/03/2022,202210,"-1,661.70",123422,Newlyn
Deputy s151,Revenue Budgets,Resources,Local Taxation & Benefits - Shared,A0187,Debt Collection,A49053,Debt Recovery Costs,30078802,26/03/2022,202210,"1,896.70",123422,Newlyn
Deputy s151,Revenue Budgets,Resources,Accountancy,A1837,Humber Freeport,A44065,Consultancy Services,30080830,01/04/2022,202210,"8,400.00",1004912,Albany Infrastructure Management
Deputy s151,Revenue Budgets,Resources,Local Taxation & Benefits - Shared,A0187,Debt Collection,A49053,Debt Recovery Costs,30077408,30/04/2022,202210,"-17,830.20",123422,Newlyn
Deputy s151,Revenue Budgets,Resources,Local Taxation & Benefits - Shared,A0187,Debt Collection,A49053,Debt Recovery Costs,30077408,30/04/2022,202210,"17,898.58",123422,Newlyn
Deputy s151,Revenue Budgets,Resources,Accountancy,A1837,Humber Freeport,A44065,Consultancy Services,30080826,03/05/2022,202210,"8,400.00",1004912,Albany Infrastructure Management
Deputy s151,Revenue Budgets,Resources,Accountancy,A1837,Humber Freeport,A44065,Consultancy Services,30080719,01/06/2022,202210,"1,400.00",1004912,Albany Infrastructure Management
Deputy s151,Revenue Budgets,Resources,Accountancy,A1837,Humber Freeport,A44065,Consultancy Services,30080719,01/06/2022,202210,"7,000.00",1004912,Albany Infrastructure Management
Deputy s151,Revenue Budgets,Resources,Accountancy,A1837,Humber Freeport,A44065,Consultancy Services,30081235,06/07/2022,202210,"8,400.00",1004912,Albany Infrastructure Management
Deputy s151,Revenue Budgets,Resources,Local Taxation & Benefits - Shared,A0187,Debt Collection,A49053,Debt Recovery Costs,30035484,30/07/2022,202210,"-1,955.82",123422,Newlyn
Deputy s151,Revenue Budgets,Resources,Local Taxation & Benefits - Shared,A0187,Debt Collection,A49053,Debt Recovery Costs,30035484,30/07/2022,202210,"1,955.82",123422,Newlyn
Deputy s151,Revenue Budgets,Resources,Accountancy,A1837,Humber Freeport,A44065,Consultancy Services,30081217,08/08/2022,202210,"6,600.00",1004912,Albany Infrastructure Management
Deputy s151,Revenue Budgets,Resources,Accountancy,A1837,Humber Freeport,A44065,Consultancy Services,30081245,02/09/2022,202210,"6,600.00",1004912,Albany Infrastructure Management
Deputy s151,Revenue Budgets,Resources,Local Taxation & Benefits - Shared,A0187,Debt Collection,A49053,Debt Recovery Costs,30075161,12/09/2022,202210,"-11,984.15",101788,Jacobs Certified Bailiffs
Deputy s151,Revenue Budgets,Resources,Local Taxation & Benefits - Shared,A0187,Debt Collection,A49053,Debt Recovery Costs,30075161,12/09/2022,202210,"11,984.15",101788,Jacobs Certified Bailiffs
Deputy s151,Revenue Budgets,Resources,Accountancy,A1837,Humber Freeport,A44065,Consultancy Services,30081249,04/10/2022,202210,"6,600.00",1004912,Albany Infrastructure Management
Deputy s151,Revenue Budgets,Resources,Accountancy,A1837,Humber Freeport,A44065,Consultancy Services,30081065,02/11/2022,202210,"6,600.00",1004912,Albany Infrastructure Management
Deputy s151,Revenue Budgets,Resources,Local Taxation & Benefits - Shared,A0187,Debt Collection,A49053,Debt Recovery Costs,30067880,26/11/2022,202210,-803.65,123422,Newlyn
Deputy s151,Revenue Budgets,Resources,Local Taxation & Benefits - Shared,A0187,Debt Collection,A49053,Debt Recovery Costs,30067880,26/11/2022,202210,803.65,123422,Newlyn
Deputy s151,Revenue Budgets,Resources,Local Taxation & Benefits - Shared,A0187,Debt Collection,A49053,Debt Recovery Costs,30067877,30/11/2022,202210,736.71,101373,Rossendales Ltd
Deputy s151,Revenue Budgets,Resources,Local Taxation & Benefits - Shared,A0184,Control & Monitoring,A16015,Staff Training Expenses,30074261,30/11/2022,202210,345.00,100518,Cipfa
Deputy s151,Revenue Budgets,Resources,Accountancy,A1837,Humber Freeport,A44065,Consultancy Services,30081240,08/12/2022,202210,"6,600.00",1004912,Albany Infrastructure Management
Deputy s151,Revenue Budgets,Resources,Local Taxation & Benefits - Shared,A0184,Control & Monitoring,A45015,Postages,30074172,23/12/2022,202210,"2,889.21",102314,Capita Business Services Ltd
Deputy s151,Revenue Budgets,Resources,Local Taxation & Benefits - Shared,A0187,Debt Collection,A49053,Debt Recovery Costs,30074754,31/12/2022,202210,"-14,272.94",123422,Newlyn
Deputy s151,Revenue Budgets,Resources,Local Taxation & Benefits - Shared,A0187,Debt Collection,A49053,Debt Recovery Costs,30074754,31/12/2022,202210,"14,276.00",123422,Newlyn
Deputy s151,Revenue Budgets,Resources,Local Taxation & Benefits - Shared,A0187,Debt Collection,A49053,Debt Recovery Costs,30074919,31/12/2022,202210,"-1,458.47",123422,Newlyn
Deputy s151,Revenue Budgets,Resources,Local Taxation & Benefits - Shared,A0187,Debt Collection,A49053,Debt Recovery Costs,30074919,31/12/2022,202210,"1,458.47",123422,Newlyn
Deputy s151,Revenue Budgets,Resources,Local Taxation & Benefits - Shared,A0187,Debt Collection,A49053,Debt Recovery Costs,30074913,03/01/2023,202210,"-4,323.54",101788,Jacobs Certified Bailiffs
Deputy s151,Revenue Budgets,Resources,Local Taxation & Benefits - Shared,A0187,Debt Collection,A49053,Debt Recovery Costs,30074913,03/01/2023,202210,"4,339.26",101788,Jacobs Certified Bailiffs
Deputy s151,Revenue Budgets,Resources,Benefit Payments & Subsidy,A0200,Benefits Payments A/C,A91136,Expenditure Recovery,30073400,05/01/2023,202210,730.29,REDACTED PERSONAL INFORMATION,REDACTED PERSONAL INFORMATION
Deputy s151,Revenue Budgets,Resources,Local Taxation & Benefits - Shared,A0184,Control & Monitoring,A16015,Staff Training Expenses,30074232,05/01/2023,202210,410.00,101115,IRRV
Deputy s151,Revenue Budgets,Resources,Accountancy,A1837,Humber Freeport,A44065,Consultancy Services,30074546,06/01/2023,202210,"10,980.00",100785,Solace In Business
Deputy s151,Revenue Budgets,Resources,Local Taxation & Benefits - Shared,A0187,Debt Collection,A49053,Debt Recovery Costs,30079218,12/01/2023,202210,670.00,109470,Wilkin Chapman Llp Solicitors
Deputy s151,Revenue Budgets,Resources,Local Taxation & Benefits - Shared,A0184,Control & Monitoring,A45045,IT Software Maintenance,30078913,21/01/2023,202210,"1,600.00",101841,Nec Software Solutions Uk Ltd
Deputy s151,Revenue Budgets,Resources,Local Taxation & Benefits - Shared,A0184,Control & Monitoring,A45040,IT Software Purchase,30079396,24/01/2023,202210,925.00,101841,Nec Software Solutions Uk Ltd
Deputy s151,Revenue Budgets,Resources,Local Taxation & Benefits - Shared,A0184,Control & Monitoring,A45040,IT Software Purchase,30079403,24/01/2023,202210,"2,700.00",101841,Nec Software Solutions Uk Ltd
Director Childrens Services,Revenue Budgets,Childrens Services,Director Children & Fam Serv,A0284,Director Children / Fam Serv,A56000,Other Establishments,30077059,09/11/2022,202210,"115,062.50",1002734,Tripod Partners
Director Childrens Services,Revenue Budgets,Childrens Services,Director Children & Fam Serv,A0284,Director Children / Fam Serv,A22005,Building Rents,30074121,25/11/2022,202210,511.25,136453,Jc Pomfret Construction Ltd
Director Childrens Services,Revenue Budgets,Childrens Services,Director Children & Fam Serv,A0284,Director Children / Fam Serv,A56000,Other Establishments,30077791,19/12/2022,202210,828.33,1002734,Tripod Partners
Director Childrens Services,Revenue Budgets,Childrens Services,Director Children & Fam Serv,A0284,Director Children / Fam Serv,A56000,Other Establishments,30077795,19/12/2022,202210,"4,480.75",1002734,Tripod Partners
Director Childrens Services,Revenue Budgets,Childrens Services,Director Children & Fam Serv,A0284,Director Children / Fam Serv,A56000,Other Establishments,30077797,19/12/2022,202210,"1,399.00",1002734,Tripod Partners
Director Childrens Services,Revenue Budgets,Childrens Services,Director Children & Fam Serv,A0284,Director Children / Fam Serv,A56000,Other Establishments,30077798,19/12/2022,202210,"1,951.72",1002734,Tripod Partners
Director Childrens Services,Revenue Budgets,Childrens Services,Director Children & Fam Serv,A0284,Director Children / Fam Serv,A56000,Other Establishments,30077799,19/12/2022,202210,427.00,1002734,Tripod Partners
Director Childrens Services,Revenue Budgets,Childrens Services,Director Children & Fam Serv,A0284,Director Children / Fam Serv,A56000,Other Establishments,30077800,19/12/2022,202210,"1,208.24",1002734,Tripod Partners
Director Childrens Services,Revenue Budgets,Childrens Services,Director Children & Fam Serv,A0284,Director Children / Fam Serv,A56000,Other Establishments,30077803,19/12/2022,202210,569.00,1002734,Tripod Partners
Director Childrens Services,Revenue Budgets,Childrens Services,Director Children & Fam Serv,A0284,Director Children / Fam Serv,A56000,Other Establishments,30077805,19/12/2022,202210,772.00,1002734,Tripod Partners
Director Childrens Services,Revenue Budgets,Childrens Services,Director Children & Fam Serv,A0284,Director Children / Fam Serv,A56000,Other Establishments,30077834,19/12/2022,202210,370.78,1002734,Tripod Partners
Director Childrens Services,Revenue Budgets,Childrens Services,Director Children & Fam Serv,A0284,Director Children / Fam Serv,A56000,Other Establishments,30077835,19/12/2022,202210,"1,187.59",1002734,Tripod Partners
Director Childrens Services,Revenue Budgets,Childrens Services,Director Children & Fam Serv,A0284,Director Children / Fam Serv,A56000,Other Establishments,30077839,19/12/2022,202210,381.82,1002734,Tripod Partners
Director Childrens Services,Revenue Budgets,Childrens Services,Director Children & Fam Serv,A0284,Director Children / Fam Serv,A56000,Other Establishments,30077842,19/12/2022,202210,540.11,1002734,Tripod Partners
Director Childrens Services,Revenue Budgets,Childrens Services,Director Children & Fam Serv,A0284,Director Children / Fam Serv,A56000,Other Establishments,30077844,19/12/2022,202210,773.57,1002734,Tripod Partners
Director Childrens Services,Revenue Budgets,Childrens Services,Director Children & Fam Serv,A0284,Director Children / Fam Serv,A56000,Other Establishments,30077847,19/12/2022,202210,426.18,1002734,Tripod Partners
Director Childrens Services,Revenue Budgets,Childrens Services,Director Children & Fam Serv,A0284,Director Children / Fam Serv,A56000,Other Establishments,30077849,19/12/2022,202210,917.01,1002734,Tripod Partners
Director Childrens Services,Revenue Budgets,Childrens Services,Director Children & Fam Serv,A0284,Director Children / Fam Serv,A56000,Other Establishments,30077853,19/12/2022,202210,343.35,1002734,Tripod Partners
Director Childrens Services,Revenue Budgets,Childrens Services,Director Children & Fam Serv,A0284,Director Children / Fam Serv,A56000,Other Establishments,30077856,19/12/2022,202210,416.56,1002734,Tripod Partners
Director Childrens Services,Revenue Budgets,Childrens Services,Director Children & Fam Serv,A0284,Director Children / Fam Serv,A56000,Other Establishments,30077858,19/12/2022,202210,258.95,1002734,Tripod Partners
Director Childrens Services,Revenue Budgets,Childrens Services,Director Children & Fam Serv,A0284,Director Children / Fam Serv,A56000,Other Establishments,30077859,19/12/2022,202210,632.42,1002734,Tripod Partners
Director Childrens Services,Revenue Budgets,Childrens Services,Director Children & Fam Serv,A0284,Director Children / Fam Serv,A56000,Other Establishments,30077862,19/12/2022,202210,904.03,1002734,Tripod Partners
Director Childrens Services,Revenue Budgets,Childrens Services,Director Children & Fam Serv,A0284,Director Children / Fam Serv,A56000,Other Establishments,30077864,19/12/2022,202210,"1,254.88",1002734,Tripod Partners
Director Childrens Services,Revenue Budgets,Childrens Services,Director Children & Fam Serv,A0284,Director Children / Fam Serv,A56000,Other Establishments,30077867,19/12/2022,202210,"1,141.80",1002734,Tripod Partners
Director Childrens Services,Revenue Budgets,Childrens Services,Director Children & Fam Serv,A0284,Director Children / Fam Serv,A56000,Other Establishments,30077869,19/12/2022,202210,"1,485.72",1002734,Tripod Partners
Director Childrens Services,Revenue Budgets,Childrens Services,Director Children & Fam Serv,A0284,Director Children / Fam Serv,A56000,Other Establishments,30077873,19/12/2022,202210,"1,495.00",1002734,Tripod Partners
Director Childrens Services,Revenue Budgets,Childrens Services,Director Children & Fam Serv,A0284,Director Children / Fam Serv,A56000,Other Establishments,30077874,19/12/2022,202210,259.19,1002734,Tripod Partners
Director Childrens Services,Revenue Budgets,Childrens Services,Director Children & Fam Serv,A0284,Director Children / Fam Serv,A56000,Other Establishments,30077876,19/12/2022,202210,"1,562.98",1002734,Tripod Partners
Director Childrens Services,Revenue Budgets,Childrens Services,Director Children & Fam Serv,A0284,Director Children / Fam Serv,A56000,Other Establishments,30077878,19/12/2022,202210,275.40,1002734,Tripod Partners
Director Childrens Services,Revenue Budgets,Childrens Services,Director Children & Fam Serv,A0284,Director Children / Fam Serv,A56000,Other Establishments,30077881,19/12/2022,202210,"1,700.00",1002734,Tripod Partners
Director Childrens Services,Revenue Budgets,Childrens Services,Director Children & Fam Serv,A0284,Director Children / Fam Serv,A56000,Other Establishments,30077882,19/12/2022,202210,"1,581.15",1002734,Tripod Partners
Director Childrens Services,Revenue Budgets,Childrens Services,Director Children & Fam Serv,A0284,Director Children / Fam Serv,A56000,Other Establishments,30077884,19/12/2022,202210,715.26,1002734,Tripod Partners
Director Childrens Services,Revenue Budgets,Childrens Services,Director Children & Fam Serv,A0284,Director Children / Fam Serv,A57115,Payments to Private Contractors,30072547,30/12/2022,202210,"16,000.00",1003779,Alexander Kemp Ltd
Director Childrens Services,Revenue Budgets,Childrens Services,Director Children & Fam Serv,A0284,Director Children / Fam Serv,A57115,Payments to Private Contractors,30076967,09/01/2023,202210,825.00,145139,Signis Ltd
Director Childrens Services,Revenue Budgets,Childrens Services,Director Children & Fam Serv,A0284,Director Children / Fam Serv,A16015,Staff Training Expenses,30078903,12/01/2023,202210,525.00,141443,Modal Training Ltd
Director Childrens Services,Revenue Budgets,Childrens Services,Director Children & Fam Serv,A0284,Director Children / Fam Serv,A56000,Other Establishments,30079219,24/01/2023,202210,525.62,1002734,Tripod Partners
Director Childrens Services,Revenue Budgets,Childrens Services,Director Children & Fam Serv,A0284,Director Children / Fam Serv,A56000,Other Establishments,30079222,24/01/2023,202210,259.19,1002734,Tripod Partners
Director Childrens Services,Revenue Budgets,Childrens Services,Director Children & Fam Serv,A0284,Director Children / Fam Serv,A56000,Other Establishments,30079222,24/01/2023,202210,354.76,1002734,Tripod Partners
Director Childrens Services,Revenue Budgets,Childrens Services,Director Children & Fam Serv,A0284,Director Children / Fam Serv,A56000,Other Establishments,30079227,24/01/2023,202210,"1,892.38",1002734,Tripod Partners
Director Childrens Services,Revenue Budgets,Childrens Services,Director Children & Fam Serv,A0284,Director Children / Fam Serv,A56000,Other Establishments,30079229,24/01/2023,202210,314.47,1002734,Tripod Partners
Director Childrens Services,Revenue Budgets,Childrens Services,Director Children & Fam Serv,A0284,Director Children / Fam Serv,A56000,Other Establishments,30079230,24/01/2023,202210,908.92,1002734,Tripod Partners
Director Childrens Services,Revenue Budgets,Childrens Services,Director Children & Fam Serv,A0284,Director Children / Fam Serv,A56000,Other Establishments,30079337,24/01/2023,202210,"3,729.50",1002734,Tripod Partners
Director Childrens Services,Revenue Budgets,Childrens Services,Director Children & Fam Serv,A0284,Director Children / Fam Serv,A16015,Staff Training Expenses,30080803,31/01/2023,202210,750.00,141443,Modal Training Ltd
Education and Inclusion,Revenue Budgets,Childrens Services,Sen/Inclusion,A1563,Top Up Funding Post 16,A52005,Payments to Other Local Authorities,30079567,23/02/2022,202210,"1,114.17",1000918,Linkage Community Trust
Education and Inclusion,Revenue Budgets,Childrens Services,Sen/Inclusion,A1563,Top Up Funding Post 16,A52005,Payments to Other Local Authorities,30080399,23/02/2022,202210,348.33,1000918,Linkage Community Trust
Education and Inclusion,Capital Spend,Childrens Services,Cap Alloc Devolved To Schools,Y0871,Scartho Nursery Dfcg,C01009,"New Construction, conversion & renovation",30079624,31/03/2022,202210,"2,420.00",119571,Technology Support Solutions Ltd
Education and Inclusion,Revenue Budgets,Childrens Services,Pupil Support Safeguard/Wellbeing,A0513,Lac Education,A60010,Tuition &/or Board Fees,30078780,12/04/2022,202210,"7,400.00",1004799,Hull and East Yorkshire Children's University
Education and Inclusion,Revenue Budgets,Childrens Services,Sen/Inclusion,A1783,Top-Up Non-Maintained & Indepe,A52005,Payments to Other Local Authorities,30079200,26/04/2022,202210,"20,904.00",122448,The National Autistic Society
Education and Inclusion,Revenue Budgets,Childrens Services,Sen/Inclusion,A1563,Top Up Funding Post 16,A52005,Payments to Other Local Authorities,30078167,29/04/2022,202210,"1,547.50",101073,Franklin College
Education and Inclusion,Revenue Budgets,Childrens Services,Sen/Inclusion,A1563,Top Up Funding Post 16,A52005,Payments to Other Local Authorities,30078180,21/06/2022,202210,"1,547.50",101073,Franklin College
Education and Inclusion,Revenue Budgets,Childrens Services,Sen/Inclusion,A1783,Top-Up Non-Maintained & Indepe,A52005,Payments to Other Local Authorities,30078317,20/07/2022,202210,"20,904.00",122448,The National Autistic Society
Education and Inclusion,Revenue Budgets,Childrens Services,Pupil Support Safeguard/Wellbeing,A0513,Lac Education,A60010,Tuition &/or Board Fees,30081069,04/08/2022,202210,500.00,145278,Prospero Recruitment Ltd
Education and Inclusion,Revenue Budgets,Childrens Services,Sen/Inclusion,A1783,Top-Up Non-Maintained & Indepe,A52005,Payments to Other Local Authorities,30079198,11/08/2022,202210,"2,090.40",122448,The National Autistic Society
Education and Inclusion,Revenue Budgets,Childrens Services,Sen/Inclusion,A1783,Top-Up Non-Maintained & Indepe,A52005,Payments to Other Local Authorities,30080703,31/08/2022,202210,"39,883.34",1000489,Acorn Care & Education Ltd (Sales)
Education and Inclusion,Revenue Budgets,Childrens Services,Pupil Support Safeguard/Wellbeing,A0513,Lac Education,A60010,Tuition &/or Board Fees,30076975,20/09/2022,202210,350.00,1004403,Andrew Whitehouse Ltd
Education and Inclusion,Revenue Budgets,Childrens Services,Education Transport,A0254,Home To School Transport Sen,A32020,Home to School Transport,30072705,30/09/2022,202210,936.00,100546,Links Taxis
Education and Inclusion,Revenue Budgets,Childrens Services,Education Transport,A0247,Post 16 Sen,A32020,Home to School Transport,30080926,01/10/2022,202210,300.00,1003562,WAT Specialist Transport LTD T/A WAT
Education and Inclusion,Revenue Budgets,Childrens Services,Sen/Inclusion,A1766,Bursar Provision,A20005,"Property Repairs, Maintenance & Alterations",30079625,17/10/2022,202210,"1,320.60",133267,Equans Services Ltd
Education and Inclusion,Revenue Budgets,Childrens Services,Sen/Inclusion,A1784,Other La Top-Up,A52005,Payments to Other Local Authorities,30078326,19/10/2022,202210,"4,015.66",REDACTED PERSONAL INFORMATION,REDACTED PERSONAL INFORMATION
Education and Inclusion,Revenue Budgets,Childrens Services,Pupil Support Safeguard/Wellbeing,A0513,Lac Education,A60010,Tuition &/or Board Fees,30081067,20/10/2022,202210,500.00,145278,Prospero Recruitment Ltd
Education and Inclusion,Revenue Budgets,Childrens Services,Pupil Support Safeguard/Wellbeing,A0513,Lac Education,A60010,Tuition &/or Board Fees,30081074,20/10/2022,202210,500.00,145278,Prospero Recruitment Ltd
Education and Inclusion,Revenue Budgets,Childrens Services,Pupil Support Safeguard/Wellbeing,A0513,Lac Education,A60010,Tuition &/or Board Fees,30081056,21/10/2022,202210,300.00,145278,Prospero Recruitment Ltd
Education and Inclusion,Revenue Budgets,Childrens Services,Pupil Support Safeguard/Wellbeing,A0513,Lac Education,A60010,Tuition &/or Board Fees,30081060,21/10/2022,202210,400.00,145278,Prospero Recruitment Ltd
Education and Inclusion,Revenue Budgets,Childrens Services,Pupil Support Safeguard/Wellbeing,A0513,Lac Education,A60010,Tuition &/or Board Fees,30081064,21/10/2022,202210,400.00,145278,Prospero Recruitment Ltd
Education and Inclusion,Revenue Budgets,Childrens Services,Pupil Support Safeguard/Wellbeing,A0513,Lac Education,A60010,Tuition &/or Board Fees,30081073,21/10/2022,202210,500.00,145278,Prospero Recruitment Ltd
Education and Inclusion,Revenue Budgets,Childrens Services,Pupil Support Safeguard/Wellbeing,A0513,Lac Education,A60010,Tuition &/or Board Fees,30081076,21/10/2022,202210,500.00,145278,Prospero Recruitment Ltd
Education and Inclusion,Revenue Budgets,Childrens Services,Education Transport,A0254,Home To School Transport Sen,A32020,Home to School Transport,30072700,31/10/2022,202210,520.00,100546,Links Taxis
Education and Inclusion,Revenue Budgets,Childrens Services,Education Transport,A0247,Post 16 Sen,A32020,Home to School Transport,30077049,01/11/2022,202210,"5,547.00",1003562,WAT Specialist Transport LTD T/A WAT
Education and Inclusion,Revenue Budgets,Childrens Services,Education Transport,A0254,Home To School Transport Sen,A32020,Home to School Transport,30077606,01/11/2022,202210,"3,045.00",1003562,WAT Specialist Transport LTD T/A WAT
Education and Inclusion,Revenue Budgets,Childrens Services,Education Transport,A0247,Post 16 Sen,A32020,Home to School Transport,30080929,01/11/2022,202210,700.00,1003562,WAT Specialist Transport LTD T/A WAT
Education and Inclusion,Capital Spend,Childrens Services,Sufficiency Of School Places,Y1807,Beacon Academy,C01009,"New Construction, conversion & renovation",30078274,02/11/2022,202210,"2,366.59",144162,Topcon Building Ltd
Education and Inclusion,Revenue Budgets,Childrens Services,Sen/Inclusion,A1715,Early Years Inclusion Fund,A47008,Contributions - Other,30073263,14/11/2022,202210,541.50,100647,For Under Fives Ltd
Education and Inclusion,Revenue Budgets,Childrens Services,Sen/Inclusion,A1715,Early Years Inclusion Fund,A47008,Contributions - Other,30073263,14/11/2022,202210,541.50,100647,For Under Fives Ltd
Education and Inclusion,Revenue Budgets,Childrens Services,Sen/Inclusion,A1715,Early Years Inclusion Fund,A47008,Contributions - Other,30073263,14/11/2022,202210,541.50,100647,For Under Fives Ltd
Education and Inclusion,Revenue Budgets,Childrens Services,Sen/Inclusion,A1715,Early Years Inclusion Fund,A47008,Contributions - Other,30073272,14/11/2022,202210,361.00,101694,Butterflies Day Nursery
Education and Inclusion,Revenue Budgets,Childrens Services,Sen/Inclusion,A1715,Early Years Inclusion Fund,A47008,Contributions - Other,30073272,14/11/2022,202210,361.00,101694,Butterflies Day Nursery
Education and Inclusion,Revenue Budgets,Childrens Services,Sen/Inclusion,A1715,Early Years Inclusion Fund,A47008,Contributions - Other,30073272,14/11/2022,202210,600.00,101694,Butterflies Day Nursery
Education and Inclusion,Revenue Budgets,Childrens Services,Sen/Inclusion,A1715,Early Years Inclusion Fund,A47008,Contributions - Other,30073272,14/11/2022,202210,"1,353.75",101694,Butterflies Day Nursery
Education and Inclusion,Revenue Budgets,Childrens Services,Sen/Inclusion,A1715,Early Years Inclusion Fund,A47008,Contributions - Other,30073272,14/11/2022,202210,"3,519.75",101694,Butterflies Day Nursery
Education and Inclusion,Revenue Budgets,Childrens Services,Sen/Inclusion,A1715,Early Years Inclusion Fund,A47008,Contributions - Other,30079788,15/11/2022,202210,"1,353.75",103968,Bursar Pre-School
Education and Inclusion,Revenue Budgets,Childrens Services,Sen/Inclusion,A1715,Early Years Inclusion Fund,A47008,Contributions - Other,30080441,15/11/2022,202210,"2,166.00",1003444,For Under Fives Ltd
Education and Inclusion,Revenue Budgets,Childrens Services,Sen/Inclusion,A1783,Top-Up Non-Maintained & Indepe,A52005,Payments to Other Local Authorities,30073727,16/11/2022,202210,271.46,1000489,Acorn Care & Education Ltd (Sales)
Education and Inclusion,Revenue Budgets,Childrens Services,Sen/Inclusion,A1783,Top-Up Non-Maintained & Indepe,A56000,Other Establishments,30074312,16/11/2022,202210,271.15,1000489,Acorn Care & Education Ltd (Sales)
Education and Inclusion,Revenue Budgets,Childrens Services,Sen/Inclusion,A1783,Top-Up Non-Maintained & Indepe,A56000,Other Establishments,30074318,16/11/2022,202210,262.40,1000489,Acorn Care & Education Ltd (Sales)
Education and Inclusion,Revenue Budgets,Childrens Services,Sen/Inclusion,A1783,Top-Up Non-Maintained & Indepe,A52005,Payments to Other Local Authorities,30074322,16/11/2022,202210,262.71,1000489,Acorn Care & Education Ltd (Sales)
Education and Inclusion,Revenue Budgets,Childrens Services,Sen/Inclusion,A1858,Education Other than After Schools,A52005,Payments to Other Local Authorities,30073810,17/11/2022,202210,875.00,143856,Nunnys Farm Cic
Education and Inclusion,Revenue Budgets,Childrens Services,Sen/Inclusion,A1783,Top-Up Non-Maintained & Indepe,A52005,Payments to Other Local Authorities,30074308,17/11/2022,202210,"10,770.91",1000489,Acorn Care & Education Ltd (Sales)
Education and Inclusion,Revenue Budgets,Childrens Services,Sen/Inclusion,A1783,Top-Up Non-Maintained & Indepe,A52005,Payments to Other Local Authorities,30074355,17/11/2022,202210,"8,268.33",1000489,Acorn Care & Education Ltd (Sales)
Education and Inclusion,Revenue Budgets,Childrens Services,Sen/Inclusion,A1783,Top-Up Non-Maintained & Indepe,A52005,Payments to Other Local Authorities,30074365,17/11/2022,202210,"9,882.29",1000489,Acorn Care & Education Ltd (Sales)
Education and Inclusion,Revenue Budgets,Childrens Services,Sen/Inclusion,A1783,Top-Up Non-Maintained & Indepe,A56000,Other Establishments,30074367,17/11/2022,202210,"10,758.40",1000489,Acorn Care & Education Ltd (Sales)
Education and Inclusion,Revenue Budgets,Childrens Services,Attainment and Progress,A0595,Reynolds Cc Daycare,A27010,Contract Cleaning,30070733,28/11/2022,202210,280.00,147051,Ethical Recruitment Agency (Grimsby) Ltd
Education and Inclusion,Revenue Budgets,Childrens Services,Education Transport,A0254,Home To School Transport Sen,A32020,Home to School Transport,30076135,29/11/2022,202210,"5,254.57",107911,Humberston Park Special School
Education and Inclusion,Revenue Budgets,Childrens Services,Education Transport,A0254,Home To School Transport Sen,A40920,Purchase of Equipment,30073459,30/11/2022,202210,293.04,REDACTED PERSONAL INFORMATION,REDACTED PERSONAL INFORMATION
Education and Inclusion,Revenue Budgets,Childrens Services,Education Transport,A0247,Post 16 Sen,A47008,Contributions - Other,30074147,30/11/2022,202210,504.00,REDACTED PERSONAL INFORMATION,REDACTED PERSONAL INFORMATION
Education and Inclusion,Capital Spend,Childrens Services,Sufficiency Of School Places,Y1869,Waltham Provision,C01011,External Professional Fees,30074190,30/11/2022,202210,512.60,142378,Cgc Ecology Ltd
Education and Inclusion,Revenue Budgets,Childrens Services,Education Transport,A0254,Home To School Transport Sen,A32020,Home to School Transport,30075240,30/11/2022,202210,"2,530.00",101222,Aa Radio Cars Ltd
Education and Inclusion,Revenue Budgets,Childrens Services,Sen/Inclusion,A1783,Top-Up Non-Maintained & Indepe,A52005,Payments to Other Local Authorities,30076299,30/11/2022,202210,"4,400.00",146355,Castles Education Llp
Education and Inclusion,Revenue Budgets,Childrens Services,Sen/Inclusion,A1783,Top-Up Non-Maintained & Indepe,A52005,Payments to Other Local Authorities,30076300,30/11/2022,202210,"4,697.88",146355,Castles Education Llp
Education and Inclusion,Revenue Budgets,Childrens Services,Sen/Inclusion,A1858,Education Other than After Schools,A52005,Payments to Other Local Authorities,30078039,30/11/2022,202210,520.00,146662,Targeted Provision Ltd
Education and Inclusion,Revenue Budgets,Childrens Services,Sen/Inclusion,A1858,Education Other than After Schools,A52005,Payments to Other Local Authorities,30078041,30/11/2022,202210,"2,275.00",146662,Targeted Provision Ltd
Education and Inclusion,Revenue Budgets,Childrens Services,Sen/Inclusion,A1858,Education Other than After Schools,A52005,Payments to Other Local Authorities,30078043,30/11/2022,202210,"1,365.00",146662,Targeted Provision Ltd
Education and Inclusion,Revenue Budgets,Childrens Services,Sen/Inclusion,A1858,Education Other than After Schools,A52005,Payments to Other Local Authorities,30078046,30/11/2022,202210,495.00,146662,Targeted Provision Ltd
Education and Inclusion,Revenue Budgets,Childrens Services,Sen/Inclusion,A1858,Education Other than After Schools,A52005,Payments to Other Local Authorities,30078048,30/11/2022,202210,"2,860.00",146662,Targeted Provision Ltd
Education and Inclusion,Revenue Budgets,Childrens Services,Sen/Inclusion,A1858,Education Other than After Schools,A52005,Payments to Other Local Authorities,30078072,30/11/2022,202210,"2,400.00",146662,Targeted Provision Ltd
Education and Inclusion,Revenue Budgets,Childrens Services,Sen/Inclusion,A1858,Education Other than After Schools,A52005,Payments to Other Local Authorities,30078096,30/11/2022,202210,"2,470.00",146662,Targeted Provision Ltd
Education and Inclusion,Revenue Budgets,Childrens Services,Sen/Inclusion,A1784,Other La Top-Up,A52005,Payments to Other Local Authorities,30078370,30/11/2022,202210,300.00,120445,Fortis Therapy & Training
Education and Inclusion,Revenue Budgets,Childrens Services,Education Transport,A0254,Home To School Transport Sen,A32020,Home to School Transport,30070201,01/12/2022,202210,"2,325.00",1003562,WAT Specialist Transport LTD T/A WAT
Education and Inclusion,Revenue Budgets,Childrens Services,Education Transport,A0254,Home To School Transport Sen,A32020,Home to School Transport,30072804,01/12/2022,202210,"1,200.00",1003562,WAT Specialist Transport LTD T/A WAT
Education and Inclusion,Revenue Budgets,Childrens Services,Education Transport,A0254,Home To School Transport Sen,A32020,Home to School Transport,30073104,01/12/2022,202210,"1,062.00",1003562,WAT Specialist Transport LTD T/A WAT
Education and Inclusion,Revenue Budgets,Childrens Services,Education Transport,A0254,Home To School Transport Sen,A32020,Home to School Transport,30073496,01/12/2022,202210,880.00,1003562,WAT Specialist Transport LTD T/A WAT
Education and Inclusion,Revenue Budgets,Childrens Services,Education Transport,A0254,Home To School Transport Sen,A32020,Home to School Transport,30073562,01/12/2022,202210,"1,430.00",1003562,WAT Specialist Transport LTD T/A WAT
Education and Inclusion,Revenue Budgets,Childrens Services,Education Transport,A0254,Home To School Transport Sen,A32020,Home to School Transport,30078627,01/12/2022,202210,"1,080.00",1003562,WAT Specialist Transport LTD T/A WAT
Education and Inclusion,Revenue Budgets,Childrens Services,Education Transport,A0247,Post 16 Sen,A32020,Home to School Transport,30080924,01/12/2022,202210,300.00,1003562,WAT Specialist Transport LTD T/A WAT
Education and Inclusion,Revenue Budgets,Childrens Services,Education Transport,A0254,Home To School Transport Sen,A32020,Home to School Transport,30081071,01/12/2022,202210,761.75,1003562,WAT Specialist Transport LTD T/A WAT
Education and Inclusion,Revenue Budgets,Childrens Services,Sen/Inclusion,A0271,Sen Team Admin,A16015,Staff Training Expenses,30073097,05/12/2022,202210,460.00,1003811,Sarah A Makaton Tutor
Education and Inclusion,Revenue Budgets,Childrens Services,Sen/Inclusion,A1563,Top Up Funding Post 16,A52005,Payments to Other Local Authorities,30073809,06/12/2022,202210,"20,013.90",144120,Learning4life-Gy-Cic
Education and Inclusion,Revenue Budgets,Childrens Services,Sen/Inclusion,A1784,Other La Top-Up,A52005,Payments to Other Local Authorities,30073815,06/12/2022,202210,"22,770.00",144120,Learning4life-Gy-Cic
Education and Inclusion,Revenue Budgets,Childrens Services,Pupil Support Safeguard/Wellbeing,A0513,Lac Education,A60010,Tuition &/or Board Fees,30076983,07/12/2022,202210,295.00,109708,Mr Nigel K Bishop
Education and Inclusion,Capital Spend,Childrens Services,Sufficiency Of School Places,Y1869,Waltham Provision,C01011,External Professional Fees,30074126,13/12/2022,202210,"10,000.00",133267,Equans Services Ltd
Education and Inclusion,Capital Spend,Childrens Services,Sufficiency Of School Places,Y1867,Scartho Provision,C01011,External Professional Fees,30074138,13/12/2022,202210,"10,000.00",133267,Equans Services Ltd
Education and Inclusion,Capital Spend,Childrens Services,Send Special Prov Fund,Y1675,Send Special Prov Fund,C01011,External Professional Fees,30074155,13/12/2022,202210,"1,562.00",133267,Equans Services Ltd
Education and Inclusion,Capital Spend,Childrens Services,Sufficiency Of School Places,Y1868,Cleethorpes Academy,C01011,External Professional Fees,30077629,13/12/2022,202210,"5,000.00",133267,Equans Services Ltd
Education and Inclusion,Capital Spend,Childrens Services,Sufficiency Of School Places,Y1098,Enfield Primary,C01011,External Professional Fees,30077637,13/12/2022,202210,"5,000.00",133267,Equans Services Ltd
Education and Inclusion,Capital Spend,Childrens Services,Backlog Maintenance Schools,Y0957,Western Primary School,C01011,External Professional Fees,30077638,13/12/2022,202210,"2,900.00",133267,Equans Services Ltd
Education and Inclusion,Capital Spend,Childrens Services,Send Special Prov Fund,Y1865,SEND Littlecoates Primary,C01011,External Professional Fees,30077639,13/12/2022,202210,"1,000.00",133267,Equans Services Ltd
Education and Inclusion,Revenue Budgets,Childrens Services,Sen/Inclusion,A1766,Bursar Provision,A20005,"Property Repairs, Maintenance & Alterations",30079669,13/12/2022,202210,565.00,133267,Equans Services Ltd
Education and Inclusion,Revenue Budgets,Childrens Services,Sen/Inclusion,A1858,Education Other than After Schools,A52005,Payments to Other Local Authorities,30079201,14/12/2022,202210,900.00,142906,R Y Fidler
Education and Inclusion,Revenue Budgets,Childrens Services,Sen/Inclusion,A1563,Top Up Funding Post 16,A52005,Payments to Other Local Authorities,30073813,15/12/2022,202210,"3,285.70",138704,Motorvation Training Ltd
Education and Inclusion,Revenue Budgets,Childrens Services,Pupil Support Safeguard/Wellbeing,A0513,Lac Education,A56000,Other Establishments,30076958,15/12/2022,202210,"1,320.00",100377,East Riding Of Yorkshire Council
Education and Inclusion,Capital Spend,Childrens Services,Send Special Prov Fund,Y1675,Send Special Prov Fund,C01011,External Professional Fees,30071166,16/12/2022,202210,"1,575.00",101760,Alan Wood Partnership Ltd
Education and Inclusion,Revenue Budgets,Childrens Services,Sen/Inclusion,A1783,Top-Up Non-Maintained & Indepe,A52005,Payments to Other Local Authorities,30074038,16/12/2022,202210,"3,261.60",1003323,More Than Ed Independent School Limited
Education and Inclusion,Revenue Budgets,Childrens Services,Sen/Inclusion,A1783,Top-Up Non-Maintained & Indepe,A52005,Payments to Other Local Authorities,30074298,19/12/2022,202210,"10,211.70",1000489,Acorn Care & Education Ltd (Sales)
Education and Inclusion,Revenue Budgets,Childrens Services,Sen/Inclusion,A1783,Top-Up Non-Maintained & Indepe,A52005,Payments to Other Local Authorities,30074301,19/12/2022,202210,"11,129.94",1000489,Acorn Care & Education Ltd (Sales)
Education and Inclusion,Revenue Budgets,Childrens Services,Sen/Inclusion,A1783,Top-Up Non-Maintained & Indepe,A56000,Other Establishments,30074307,19/12/2022,202210,"11,117.01",1000489,Acorn Care & Education Ltd (Sales)
Education and Inclusion,Revenue Budgets,Childrens Services,Sen/Inclusion,A1783,Top-Up Non-Maintained & Indepe,A52005,Payments to Other Local Authorities,30074362,19/12/2022,202210,"8,268.33",1000489,Acorn Care & Education Ltd (Sales)
Education and Inclusion,Revenue Budgets,Childrens Services,Education Transport,A0249,Excluded And Ap Transport,A32020,Home to School Transport,30072864,20/12/2022,202210,540.00,1002574,SL TAXI'S
Education and Inclusion,Revenue Budgets,Childrens Services,Pupil Support Safeguard/Wellbeing,A0513,Lac Education,A60010,Tuition &/or Board Fees,30073125,20/12/2022,202210,"1,755.00",109708,Mr Nigel K Bishop
Education and Inclusion,Revenue Budgets,Childrens Services,Sen/Inclusion,A1783,Top-Up Non-Maintained & Indepe,A52005,Payments to Other Local Authorities,30073720,20/12/2022,202210,"5,763.46",141244,Orchard Education Ltd
Education and Inclusion,Revenue Budgets,Childrens Services,Sen/Inclusion,A1783,Top-Up Non-Maintained & Indepe,A52005,Payments to Other Local Authorities,30073723,20/12/2022,202210,"1,375.00",141244,Orchard Education Ltd
Education and Inclusion,Revenue Budgets,Childrens Services,Sen/Inclusion,A1783,Top-Up Non-Maintained & Indepe,A52005,Payments to Other Local Authorities,30073725,20/12/2022,202210,"22,500.00",141244,Orchard Education Ltd
Education and Inclusion,Revenue Budgets,Childrens Services,Sen/Inclusion,A1783,Top-Up Non-Maintained & Indepe,A52005,Payments to Other Local Authorities,30073729,20/12/2022,202210,"107,236.20",141244,Orchard Education Ltd
Education and Inclusion,Revenue Budgets,Childrens Services,Sen/Inclusion,A1565,Top Up Funding Academies & Fre,A47006,Contributions - Communities,30078520,20/12/2022,202210,"2,125.50",110493,Lisle Marsden Childcare Limited
Education and Inclusion,Revenue Budgets,Childrens Services,Sen/Inclusion,A1784,Other La Top-Up,A52005,Payments to Other Local Authorities,30081216,20/12/2022,202210,"24,334.83",101186,North Lincolnshire Council
Education and Inclusion,Revenue Budgets,Childrens Services,Sen/Inclusion,A1783,Top-Up Non-Maintained & Indepe,A52005,Payments to Other Local Authorities,30075698,21/12/2022,202210,"2,000.04",146355,Castles Education Llp
Education and Inclusion,Revenue Budgets,Childrens Services,Sen/Inclusion,A1783,Top-Up Non-Maintained & Indepe,A52005,Payments to Other Local Authorities,30075705,21/12/2022,202210,"2,960.04",146355,Castles Education Llp
Education and Inclusion,Revenue Budgets,Childrens Services,Sen/Inclusion,A1783,Top-Up Non-Maintained & Indepe,A52005,Payments to Other Local Authorities,30075713,21/12/2022,202210,"2,562.48",146355,Castles Education Llp
Education and Inclusion,Revenue Budgets,Childrens Services,Sen/Inclusion,A1783,Top-Up Non-Maintained & Indepe,A52005,Payments to Other Local Authorities,30075717,21/12/2022,202210,"2,960.04",146355,Castles Education Llp
Education and Inclusion,Revenue Budgets,Childrens Services,Sen/Inclusion,A1783,Top-Up Non-Maintained & Indepe,A52005,Payments to Other Local Authorities,30075730,21/12/2022,202210,"2,400.00",146355,Castles Education Llp
Education and Inclusion,Revenue Budgets,Childrens Services,Sen/Inclusion,A1783,Top-Up Non-Maintained & Indepe,A52005,Payments to Other Local Authorities,30075741,21/12/2022,202210,"2,960.04",146355,Castles Education Llp
Education and Inclusion,Revenue Budgets,Childrens Services,Sen/Inclusion,A1783,Top-Up Non-Maintained & Indepe,A52005,Payments to Other Local Authorities,30075747,21/12/2022,202210,"2,000.04",146355,Castles Education Llp
Education and Inclusion,Revenue Budgets,Childrens Services,Sen/Inclusion,A1783,Top-Up Non-Maintained & Indepe,A52005,Payments to Other Local Authorities,30075786,21/12/2022,202210,"3,360.00",146355,Castles Education Llp
Education and Inclusion,Revenue Budgets,Childrens Services,Sen/Inclusion,A1783,Top-Up Non-Maintained & Indepe,A52005,Payments to Other Local Authorities,30075788,21/12/2022,202210,"3,360.00",146355,Castles Education Llp
Education and Inclusion,Revenue Budgets,Childrens Services,Sen/Inclusion,A1783,Top-Up Non-Maintained & Indepe,A52005,Payments to Other Local Authorities,30075789,21/12/2022,202210,"3,360.00",146355,Castles Education Llp
Education and Inclusion,Revenue Budgets,Childrens Services,Sen/Inclusion,A1783,Top-Up Non-Maintained & Indepe,A52005,Payments to Other Local Authorities,30075791,21/12/2022,202210,"2,960.04",146355,Castles Education Llp
Education and Inclusion,Revenue Budgets,Childrens Services,Sen/Inclusion,A1783,Top-Up Non-Maintained & Indepe,A52005,Payments to Other Local Authorities,30075793,21/12/2022,202210,"2,960.04",146355,Castles Education Llp
Education and Inclusion,Revenue Budgets,Childrens Services,Sen/Inclusion,A1783,Top-Up Non-Maintained & Indepe,A52005,Payments to Other Local Authorities,30075794,21/12/2022,202210,"3,360.00",146355,Castles Education Llp
Education and Inclusion,Revenue Budgets,Childrens Services,Sen/Inclusion,A1783,Top-Up Non-Maintained & Indepe,A52005,Payments to Other Local Authorities,30075795,21/12/2022,202210,"3,360.00",146355,Castles Education Llp
Education and Inclusion,Revenue Budgets,Childrens Services,Sen/Inclusion,A1783,Top-Up Non-Maintained & Indepe,A52005,Payments to Other Local Authorities,30076257,21/12/2022,202210,"3,360.00",146355,Castles Education Llp
Education and Inclusion,Revenue Budgets,Childrens Services,Sen/Inclusion,A1783,Top-Up Non-Maintained & Indepe,A52005,Payments to Other Local Authorities,30076261,21/12/2022,202210,"3,360.00",146355,Castles Education Llp
Education and Inclusion,Revenue Budgets,Childrens Services,Sen/Inclusion,A1783,Top-Up Non-Maintained & Indepe,A52005,Payments to Other Local Authorities,30076270,21/12/2022,202210,"3,360.00",146355,Castles Education Llp
Education and Inclusion,Revenue Budgets,Childrens Services,Sen/Inclusion,A1783,Top-Up Non-Maintained & Indepe,A52005,Payments to Other Local Authorities,30076277,21/12/2022,202210,"3,360.00",146355,Castles Education Llp
Education and Inclusion,Revenue Budgets,Childrens Services,Sen/Inclusion,A1784,Other La Top-Up,A52005,Payments to Other Local Authorities,30078371,22/12/2022,202210,600.00,120445,Fortis Therapy & Training
Education and Inclusion,Revenue Budgets,Childrens Services,Education Transport,A0254,Home To School Transport Sen,A32020,Home to School Transport,30072981,25/12/2022,202210,"1,794.00",100546,Links Taxis
Education and Inclusion,Revenue Budgets,Childrens Services,Education Transport,A0254,Home To School Transport Sen,A32020,Home to School Transport,30072992,25/12/2022,202210,378.00,100546,Links Taxis
Education and Inclusion,Revenue Budgets,Childrens Services,Education Transport,A0254,Home To School Transport Sen,A32020,Home to School Transport,30072993,25/12/2022,202210,470.00,100546,Links Taxis
Education and Inclusion,Revenue Budgets,Childrens Services,Education Transport,A0254,Home To School Transport Sen,A32020,Home to School Transport,30072995,25/12/2022,202210,720.00,100546,Links Taxis
Education and Inclusion,Revenue Budgets,Childrens Services,Education Transport,A0254,Home To School Transport Sen,A32020,Home to School Transport,30072996,25/12/2022,202210,384.00,100546,Links Taxis
Education and Inclusion,Revenue Budgets,Childrens Services,Education Transport,A0254,Home To School Transport Sen,A32020,Home to School Transport,30072999,25/12/2022,202210,"1,884.00",100546,Links Taxis
Education and Inclusion,Revenue Budgets,Childrens Services,Education Transport,A0254,Home To School Transport Sen,A32020,Home to School Transport,30073000,25/12/2022,202210,513.00,100546,Links Taxis
Education and Inclusion,Revenue Budgets,Childrens Services,Education Transport,A0254,Home To School Transport Sen,A32020,Home to School Transport,30073001,25/12/2022,202210,861.00,100546,Links Taxis
Education and Inclusion,Revenue Budgets,Childrens Services,Education Transport,A0254,Home To School Transport Sen,A32020,Home to School Transport,30073178,25/12/2022,202210,"1,778.00",100546,Links Taxis
Education and Inclusion,Revenue Budgets,Childrens Services,Education Transport,A0254,Home To School Transport Sen,A32020,Home to School Transport,30073179,25/12/2022,202210,624.00,100546,Links Taxis
Education and Inclusion,Revenue Budgets,Childrens Services,Education Transport,A0254,Home To School Transport Sen,A32020,Home to School Transport,30073224,25/12/2022,202210,504.00,100546,Links Taxis
Education and Inclusion,Revenue Budgets,Childrens Services,Education Transport,A0254,Home To School Transport Sen,A32020,Home to School Transport,30073226,25/12/2022,202210,624.00,100546,Links Taxis
Education and Inclusion,Revenue Budgets,Childrens Services,Education Transport,A0249,Excluded And Ap Transport,A32020,Home to School Transport,30073229,25/12/2022,202210,444.00,100546,Links Taxis
Education and Inclusion,Revenue Budgets,Childrens Services,Education Transport,A0253,Home To Sch Transport Sec-Gy,A32020,Home to School Transport,30073230,25/12/2022,202210,868.00,100546,Links Taxis
Education and Inclusion,Revenue Budgets,Childrens Services,Education Transport,A0248,Exceptional Circumstances,A32020,Home to School Transport,30073234,25/12/2022,202210,492.00,100546,Links Taxis
Education and Inclusion,Revenue Budgets,Childrens Services,Education Transport,A0254,Home To School Transport Sen,A32020,Home to School Transport,30073234,25/12/2022,202210,492.00,100546,Links Taxis
Education and Inclusion,Revenue Budgets,Childrens Services,Education Transport,A0249,Excluded And Ap Transport,A32020,Home to School Transport,30073238,25/12/2022,202210,611.00,100546,Links Taxis
Education and Inclusion,Revenue Budgets,Childrens Services,Education Transport,A0254,Home To School Transport Sen,A32020,Home to School Transport,30073239,25/12/2022,202210,"1,333.00",100546,Links Taxis
Education and Inclusion,Revenue Budgets,Childrens Services,Education Transport,A0249,Excluded And Ap Transport,A32020,Home to School Transport,30073241,25/12/2022,202210,864.00,100546,Links Taxis
Education and Inclusion,Revenue Budgets,Childrens Services,Education Transport,A0254,Home To School Transport Sen,A32020,Home to School Transport,30073244,25/12/2022,202210,744.00,100546,Links Taxis
Education and Inclusion,Revenue Budgets,Childrens Services,Education Transport,A0254,Home To School Transport Sen,A32020,Home to School Transport,30073246,25/12/2022,202210,483.00,100546,Links Taxis
Education and Inclusion,Revenue Budgets,Childrens Services,Education Transport,A0254,Home To School Transport Sen,A32020,Home to School Transport,30073249,25/12/2022,202210,420.00,100546,Links Taxis
Education and Inclusion,Revenue Budgets,Childrens Services,Education Transport,A0254,Home To School Transport Sen,A32020,Home to School Transport,30073250,25/12/2022,202210,399.00,100546,Links Taxis
Education and Inclusion,Revenue Budgets,Childrens Services,Education Transport,A0254,Home To School Transport Sen,A32020,Home to School Transport,30073254,25/12/2022,202210,572.00,100546,Links Taxis
Education and Inclusion,Revenue Budgets,Childrens Services,Education Transport,A0254,Home To School Transport Sen,A32020,Home to School Transport,30073257,25/12/2022,202210,384.00,100546,Links Taxis
Education and Inclusion,Revenue Budgets,Childrens Services,Education Transport,A0248,Exceptional Circumstances,A32020,Home to School Transport,30073262,25/12/2022,202210,378.00,100546,Links Taxis
Education and Inclusion,Revenue Budgets,Childrens Services,Education Transport,A0254,Home To School Transport Sen,A32020,Home to School Transport,30073276,25/12/2022,202210,798.00,100546,Links Taxis
Education and Inclusion,Revenue Budgets,Childrens Services,Education Transport,A0254,Home To School Transport Sen,A32020,Home to School Transport,30073287,25/12/2022,202210,624.00,100546,Links Taxis
Education and Inclusion,Revenue Budgets,Childrens Services,Education Transport,A0254,Home To School Transport Sen,A32020,Home to School Transport,30073288,25/12/2022,202210,443.52,100546,Links Taxis
Education and Inclusion,Revenue Budgets,Childrens Services,Education Transport,A0254,Home To School Transport Sen,A32020,Home to School Transport,30073297,25/12/2022,202210,"1,884.00",100546,Links Taxis
Education and Inclusion,Revenue Budgets,Childrens Services,Education Transport,A0254,Home To School Transport Sen,A32020,Home to School Transport,30073299,25/12/2022,202210,891.00,100546,Links Taxis
Education and Inclusion,Revenue Budgets,Childrens Services,Education Transport,A0254,Home To School Transport Sen,A32020,Home to School Transport,30073300,25/12/2022,202210,636.00,100546,Links Taxis
Education and Inclusion,Revenue Budgets,Childrens Services,Education Transport,A0254,Home To School Transport Sen,A32020,Home to School Transport,30073306,25/12/2022,202210,"4,108.50",100546,Links Taxis
Education and Inclusion,Revenue Budgets,Childrens Services,Education Transport,A0249,Excluded And Ap Transport,A32020,Home to School Transport,30073309,25/12/2022,202210,334.30,100546,Links Taxis
Education and Inclusion,Revenue Budgets,Childrens Services,Education Transport,A0254,Home To School Transport Sen,A32020,Home to School Transport,30073322,25/12/2022,202210,468.00,100546,Links Taxis
Education and Inclusion,Revenue Budgets,Childrens Services,Education Transport,A0254,Home To School Transport Sen,A32020,Home to School Transport,30073343,25/12/2022,202210,703.50,100546,Links Taxis
Education and Inclusion,Revenue Budgets,Childrens Services,Education Transport,A0247,Post 16 Sen,A32020,Home to School Transport,30073347,25/12/2022,202210,502.00,100546,Links Taxis
Education and Inclusion,Revenue Budgets,Childrens Services,Education Transport,A0254,Home To School Transport Sen,A32020,Home to School Transport,30073349,25/12/2022,202210,767.00,100546,Links Taxis
Education and Inclusion,Revenue Budgets,Childrens Services,Education Transport,A0254,Home To School Transport Sen,A32020,Home to School Transport,30073350,25/12/2022,202210,504.00,100546,Links Taxis
Education and Inclusion,Revenue Budgets,Childrens Services,Education Transport,A0254,Home To School Transport Sen,A32020,Home to School Transport,30073353,25/12/2022,202210,"1,586.00",100546,Links Taxis
Education and Inclusion,Revenue Budgets,Childrens Services,Education Transport,A0254,Home To School Transport Sen,A32020,Home to School Transport,30073355,25/12/2022,202210,734.50,100546,Links Taxis
Education and Inclusion,Revenue Budgets,Childrens Services,Education Transport,A0249,Excluded And Ap Transport,A32020,Home to School Transport,30073357,25/12/2022,202210,711.00,100546,Links Taxis
Education and Inclusion,Revenue Budgets,Childrens Services,Education Transport,A0254,Home To School Transport Sen,A32020,Home to School Transport,30073357,25/12/2022,202210,"2,133.00",100546,Links Taxis
Education and Inclusion,Revenue Budgets,Childrens Services,Education Transport,A0253,Home To Sch Transport Sec-Gy,A32020,Home to School Transport,30073358,25/12/2022,202210,619.20,100546,Links Taxis
Education and Inclusion,Revenue Budgets,Childrens Services,Education Transport,A0254,Home To School Transport Sen,A32020,Home to School Transport,30073360,25/12/2022,202210,385.25,100546,Links Taxis
Education and Inclusion,Revenue Budgets,Childrens Services,Education Transport,A0252,Home To Sch Transport Pri-Grim,A32020,Home to School Transport,30073361,25/12/2022,202210,"1,107.00",100546,Links Taxis
Education and Inclusion,Revenue Budgets,Childrens Services,Education Transport,A0254,Home To School Transport Sen,A32020,Home to School Transport,30073363,25/12/2022,202210,"1,069.00",100546,Links Taxis
Education and Inclusion,Revenue Budgets,Childrens Services,Education Transport,A0247,Post 16 Sen,A32020,Home to School Transport,30073387,25/12/2022,202210,"1,884.00",100546,Links Taxis
Education and Inclusion,Revenue Budgets,Childrens Services,Education Transport,A0254,Home To School Transport Sen,A32020,Home to School Transport,30073394,25/12/2022,202210,"1,240.00",100546,Links Taxis
Education and Inclusion,Revenue Budgets,Childrens Services,Education Transport,A0254,Home To School Transport Sen,A32020,Home to School Transport,30073397,25/12/2022,202210,400.00,100546,Links Taxis
Education and Inclusion,Revenue Budgets,Childrens Services,Education Transport,A0248,Exceptional Circumstances,A32020,Home to School Transport,30073399,25/12/2022,202210,252.00,100546,Links Taxis
Education and Inclusion,Revenue Budgets,Childrens Services,Education Transport,A0254,Home To School Transport Sen,A32020,Home to School Transport,30073404,25/12/2022,202210,"1,326.00",100546,Links Taxis
Education and Inclusion,Revenue Budgets,Childrens Services,Education Transport,A0254,Home To School Transport Sen,A32020,Home to School Transport,30073408,25/12/2022,202210,840.00,100546,Links Taxis
Education and Inclusion,Revenue Budgets,Childrens Services,Education Transport,A0254,Home To School Transport Sen,A32020,Home to School Transport,30073415,25/12/2022,202210,504.00,100546,Links Taxis
Education and Inclusion,Revenue Budgets,Childrens Services,Education Transport,A0254,Home To School Transport Sen,A32020,Home to School Transport,30073425,25/12/2022,202210,"1,848.00",100546,Links Taxis
Education and Inclusion,Revenue Budgets,Childrens Services,Education Transport,A0254,Home To School Transport Sen,A32020,Home to School Transport,30073429,25/12/2022,202210,708.00,100546,Links Taxis
Education and Inclusion,Revenue Budgets,Childrens Services,Education Transport,A0247,Post 16 Sen,A32020,Home to School Transport,30073431,25/12/2022,202210,"1,036.00",100546,Links Taxis
Education and Inclusion,Revenue Budgets,Childrens Services,Education Transport,A0247,Post 16 Sen,A32020,Home to School Transport,30073432,25/12/2022,202210,364.00,100546,Links Taxis
Education and Inclusion,Revenue Budgets,Childrens Services,Education Transport,A0254,Home To School Transport Sen,A32020,Home to School Transport,30073100,30/12/2022,202210,780.00,102124,Minicabs Cleethorpes (Lincs) Ltd
Education and Inclusion,Revenue Budgets,Childrens Services,Education Transport,A0252,Home To Sch Transport Pri-Grim,A32020,Home to School Transport,30073105,30/12/2022,202210,814.00,102124,Minicabs Cleethorpes (Lincs) Ltd
Education and Inclusion,Revenue Budgets,Childrens Services,Education Transport,A0254,Home To School Transport Sen,A32020,Home to School Transport,30073107,30/12/2022,202210,948.00,102124,Minicabs Cleethorpes (Lincs) Ltd
Education and Inclusion,Revenue Budgets,Childrens Services,Education Transport,A0254,Home To School Transport Sen,A32020,Home to School Transport,30073108,30/12/2022,202210,486.50,102124,Minicabs Cleethorpes (Lincs) Ltd
Education and Inclusion,Revenue Budgets,Childrens Services,Education Transport,A0247,Post 16 Sen,A32020,Home to School Transport,30073113,30/12/2022,202210,"2,420.00",102124,Minicabs Cleethorpes (Lincs) Ltd
Education and Inclusion,Revenue Budgets,Childrens Services,Education Transport,A0254,Home To School Transport Sen,A32020,Home to School Transport,30073126,30/12/2022,202210,"1,008.00",102124,Minicabs Cleethorpes (Lincs) Ltd
Education and Inclusion,Revenue Budgets,Childrens Services,Education Transport,A0248,Exceptional Circumstances,A32010,Contract Hire Scheme,30072997,31/12/2022,202210,"2,293.10",100546,Links Taxis
Education and Inclusion,Revenue Budgets,Childrens Services,Education Transport,A0254,Home To School Transport Sen,A32020,Home to School Transport,30073227,31/12/2022,202210,"1,056.00",101222,Aa Radio Cars Ltd
Education and Inclusion,Revenue Budgets,Childrens Services,Education Transport,A0254,Home To School Transport Sen,A32020,Home to School Transport,30073228,31/12/2022,202210,552.00,101222,Aa Radio Cars Ltd
Education and Inclusion,Revenue Budgets,Childrens Services,Education Transport,A0248,Exceptional Circumstances,A32020,Home to School Transport,30073233,31/12/2022,202210,600.00,101222,Aa Radio Cars Ltd
Education and Inclusion,Revenue Budgets,Childrens Services,Education Transport,A0254,Home To School Transport Sen,A32020,Home to School Transport,30073235,31/12/2022,202210,"1,430.00",101222,Aa Radio Cars Ltd
Education and Inclusion,Revenue Budgets,Childrens Services,Education Transport,A0254,Home To School Transport Sen,A32020,Home to School Transport,30073245,31/12/2022,202210,673.00,101222,Aa Radio Cars Ltd
Education and Inclusion,Revenue Budgets,Childrens Services,Education Transport,A0254,Home To School Transport Sen,A32020,Home to School Transport,30073344,31/12/2022,202210,"3,489.15",100546,Links Taxis
Education and Inclusion,Revenue Budgets,Childrens Services,Education Transport,A0254,Home To School Transport Sen,A32020,Home to School Transport,30074950,31/12/2022,202210,"1,428.00",141083,Drs Taxi Service
Education and Inclusion,Revenue Budgets,Childrens Services,Education Transport,A0247,Post 16 Sen,A47008,Contributions - Other,30075212,31/12/2022,202210,594.00,REDACTED PERSONAL INFORMATION,REDACTED PERSONAL INFORMATION
Education and Inclusion,Revenue Budgets,Childrens Services,Attainment and Progress,A0595,Reynolds Cc Daycare,A27010,Contract Cleaning,30076207,31/12/2022,202210,727.47,149644,Kingdom Cleaning Limited
Education and Inclusion,Revenue Budgets,Childrens Services,Education Transport,A0254,Home To School Transport Sen,A32020,Home to School Transport,30076861,31/12/2022,202210,"2,880.00",130777,Amvale Medical Transport Ltd
Education and Inclusion,Revenue Budgets,Childrens Services,Education Transport,A0254,Home To School Transport Sen,A32020,Home to School Transport,30076869,31/12/2022,202210,"2,880.00",130777,Amvale Medical Transport Ltd
Education and Inclusion,Revenue Budgets,Childrens Services,Education Transport,A0254,Home To School Transport Sen,A32020,Home to School Transport,30076881,31/12/2022,202210,"2,988.00",130777,Amvale Medical Transport Ltd
Education and Inclusion,Revenue Budgets,Childrens Services,Education Transport,A0254,Home To School Transport Sen,A32020,Home to School Transport,30076908,31/12/2022,202210,"1,788.00",130777,Amvale Medical Transport Ltd
Education and Inclusion,Revenue Budgets,Childrens Services,Education Transport,A0254,Home To School Transport Sen,A32020,Home to School Transport,30076966,31/12/2022,202210,"1,908.00",130777,Amvale Medical Transport Ltd
Education and Inclusion,Revenue Budgets,Childrens Services,Education Transport,A0254,Home To School Transport Sen,A32020,Home to School Transport,30076968,31/12/2022,202210,"1,668.00",130777,Amvale Medical Transport Ltd
Education and Inclusion,Revenue Budgets,Childrens Services,Education Transport,A0254,Home To School Transport Sen,A32020,Home to School Transport,30076969,31/12/2022,202210,"1,944.00",130777,Amvale Medical Transport Ltd
Education and Inclusion,Revenue Budgets,Childrens Services,Education Transport,A0254,Home To School Transport Sen,A32020,Home to School Transport,30076981,31/12/2022,202210,"1,620.00",130777,Amvale Medical Transport Ltd
Education and Inclusion,Revenue Budgets,Childrens Services,Education Transport,A0254,Home To School Transport Sen,A32020,Home to School Transport,30076988,31/12/2022,202210,"2,340.00",130777,Amvale Medical Transport Ltd
Education and Inclusion,Revenue Budgets,Childrens Services,Education Transport,A0252,Home To Sch Transport Pri-Grim,A32020,Home to School Transport,30076990,31/12/2022,202210,"2,366.00",130777,Amvale Medical Transport Ltd
Education and Inclusion,Revenue Budgets,Childrens Services,Education Transport,A0254,Home To School Transport Sen,A32020,Home to School Transport,30077412,31/12/2022,202210,979.20,1000227,Sandy's Taxis
Education and Inclusion,Revenue Budgets,Childrens Services,Sen/Inclusion,A1858,Education Other than After Schools,A47006,Contributions - Communities,30078036,31/12/2022,202210,975.00,146662,Targeted Provision Ltd
Education and Inclusion,Revenue Budgets,Childrens Services,Sen/Inclusion,A1858,Education Other than After Schools,A47006,Contributions - Communities,30078038,31/12/2022,202210,"1,560.00",146662,Targeted Provision Ltd
Education and Inclusion,Revenue Budgets,Childrens Services,Sen/Inclusion,A1858,Education Other than After Schools,A47006,Contributions - Communities,30078045,31/12/2022,202210,"1,527.50",146662,Targeted Provision Ltd
Education and Inclusion,Revenue Budgets,Childrens Services,Sen/Inclusion,A1858,Education Other than After Schools,A47006,Contributions - Communities,30078561,31/12/2022,202210,"1,560.00",146662,Targeted Provision Ltd
Education and Inclusion,Revenue Budgets,Childrens Services,Sen/Inclusion,A1858,Education Other than After Schools,A47006,Contributions - Communities,30078576,31/12/2022,202210,650.00,146662,Targeted Provision Ltd
Education and Inclusion,Revenue Budgets,Childrens Services,Sen/Inclusion,A1858,Education Other than After Schools,A47006,Contributions - Communities,30078613,31/12/2022,202210,633.75,146662,Targeted Provision Ltd
Education and Inclusion,Revenue Budgets,Childrens Services,Education Transport,A0254,Home To School Transport Sen,A32020,Home to School Transport,30078820,31/12/2022,202210,"1,944.00",130777,Amvale Medical Transport Ltd
Education and Inclusion,Revenue Budgets,Childrens Services,Education Transport,A0254,Home To School Transport Sen,A32020,Home to School Transport,30081296,02/01/2023,202210,"1,040.00",1003562,WAT Specialist Transport LTD T/A WAT
Education and Inclusion,Revenue Budgets,Childrens Services,Education Transport,A0254,Home To School Transport Sen,A32020,Home to School Transport,30081299,02/01/2023,202210,"1,600.00",1003562,WAT Specialist Transport LTD T/A WAT
Education and Inclusion,Revenue Budgets,Childrens Services,Education Transport,A0254,Home To School Transport Sen,A32020,Home to School Transport,30081304,02/01/2023,202210,"1,500.00",1003562,WAT Specialist Transport LTD T/A WAT
Education and Inclusion,Revenue Budgets,Childrens Services,Education Transport,A0247,Post 16 Sen,A32020,Home to School Transport,30081306,02/01/2023,202210,640.00,1003562,WAT Specialist Transport LTD T/A WAT
Education and Inclusion,Revenue Budgets,Childrens Services,Education Transport,A0247,Post 16 Sen,A32020,Home to School Transport,30081309,02/01/2023,202210,"1,680.00",1003562,WAT Specialist Transport LTD T/A WAT
Education and Inclusion,Revenue Budgets,Childrens Services,Education Transport,A0254,Home To School Transport Sen,A32020,Home to School Transport,30081311,02/01/2023,202210,"1,300.00",1003562,WAT Specialist Transport LTD T/A WAT
Education and Inclusion,Revenue Budgets,Childrens Services,Sen/Inclusion,A1563,Top Up Funding Post 16,A52005,Payments to Other Local Authorities,30074025,03/01/2023,202210,"4,991.50",101728,Community Press Office Ltd
Education and Inclusion,Revenue Budgets,Childrens Services,Sen/Inclusion,A1783,Top-Up Non-Maintained & Indepe,A52005,Payments to Other Local Authorities,30074035,03/01/2023,202210,"75,352.81",109683,Demeter House (England) Ltd
Education and Inclusion,Revenue Budgets,Childrens Services,Sen/Inclusion,A1563,Top Up Funding Post 16,A56000,Other Establishments,30072845,04/01/2023,202210,"6,392.09",REDACTED PERSONAL INFORMATION,REDACTED PERSONAL INFORMATION
Education and Inclusion,Revenue Budgets,Childrens Services,Sen/Inclusion,A1783,Top-Up Non-Maintained & Indepe,A52005,Payments to Other Local Authorities,30072858,04/01/2023,202210,"12,114.27",REDACTED PERSONAL INFORMATION,REDACTED PERSONAL INFORMATION
Education and Inclusion,Revenue Budgets,Childrens Services,Sen/Inclusion,A1563,Top Up Funding Post 16,A56000,Other Establishments,30072870,04/01/2023,202210,"5,114.82",REDACTED PERSONAL INFORMATION,REDACTED PERSONAL INFORMATION
Education and Inclusion,Revenue Budgets,Childrens Services,Sen/Inclusion,A1565,Top Up Funding Academies & Fre,A47006,Contributions - Communities,30078305,04/01/2023,202210,395.00,112852,Yarborough Academy
Education and Inclusion,Revenue Budgets,Childrens Services,Sen/Inclusion,A1565,Top Up Funding Academies & Fre,A47006,Contributions - Communities,30078307,04/01/2023,202210,395.00,112852,Yarborough Academy
Education and Inclusion,Revenue Budgets,Childrens Services,Sen/Inclusion,A1858,Education Other than After Schools,A47006,Contributions - Communities,30078362,04/01/2023,202210,320.00,1003902,Mind Jam
Education and Inclusion,Revenue Budgets,Childrens Services,Sen/Inclusion,A1565,Top Up Funding Academies & Fre,A47006,Contributions - Communities,30078388,04/01/2023,202210,703.50,108556,New Waltham Academy
Education and Inclusion,Revenue Budgets,Childrens Services,Pupil Support Safeguard/Wellbeing,A0513,Lac Education,A60010,Tuition &/or Board Fees,30073286,05/01/2023,202210,-275.00,1004190,Connor Towler-Boswell
Education and Inclusion,Revenue Budgets,Childrens Services,Sen/Inclusion,A1858,Education Other than After Schools,A47006,Contributions - Communities,30078322,05/01/2023,202210,562.58,143856,Nunnys Farm Cic
Education and Inclusion,Revenue Budgets,Childrens Services,Sen/Inclusion,A1858,Education Other than After Schools,A47006,Contributions - Communities,30078373,05/01/2023,202210,750.00,143856,Nunnys Farm Cic
Education and Inclusion,Revenue Budgets,Childrens Services,Pupil Support Safeguard/Wellbeing,A0513,Lac Education,A46050,Conference Expenses,30078958,05/01/2023,202210,349.00,135553,National Association Of Virtual School Heads
Education and Inclusion,Revenue Budgets,Childrens Services,Pupil Support Safeguard/Wellbeing,A0513,Lac Education,A60010,Tuition &/or Board Fees,42194422,05/01/2023,202210,325.00,REDACTED PERSONAL INFORMATION,REDACTED PERSONAL INFORMATION
Education and Inclusion,Revenue Budgets,Childrens Services,Pupil Support Safeguard/Wellbeing,A0513,Lac Education,A60010,Tuition &/or Board Fees,42194423,05/01/2023,202210,275.00,REDACTED PERSONAL INFORMATION,REDACTED PERSONAL INFORMATION
Education and Inclusion,Revenue Budgets,Childrens Services,Pupil Support Safeguard/Wellbeing,A0513,Lac Education,A60010,Tuition &/or Board Fees,30076646,06/01/2023,202210,840.00,100377,East Riding Of Yorkshire Council
Education and Inclusion,Revenue Budgets,Childrens Services,Pupil Support Safeguard/Wellbeing,A0513,Lac Education,A60010,Tuition &/or Board Fees,30076649,06/01/2023,202210,"1,200.00",100377,East Riding Of Yorkshire Council
Education and Inclusion,Revenue Budgets,Childrens Services,Education Transport,A0253,Home To Sch Transport Sec-Gy,A32020,Home to School Transport,30077583,07/01/2023,202210,563.51,101404,Stagecoach Services
Education and Inclusion,Revenue Budgets,Childrens Services,Education Transport,A0249,Excluded And Ap Transport,A32020,Home to School Transport,30077583,07/01/2023,202210,731.04,101404,Stagecoach Services
Education and Inclusion,Capital Spend,Childrens Services,Cap Alloc Devolved To Schools,Y0818,Stallingborough Primary Dfcg,C01009,"New Construction, conversion & renovation",30076782,09/01/2023,202210,"1,248.00",1003956,GY Sunblinds Limited
Education and Inclusion,Revenue Budgets,Childrens Services,Sen/Inclusion,A1783,Top-Up Non-Maintained & Indepe,A52005,Payments to Other Local Authorities,30079184,09/01/2023,202210,"18,050.00",1002364,Flourish With Us Ltd
Education and Inclusion,Revenue Budgets,Childrens Services,Sen/Inclusion,A1783,Top-Up Non-Maintained & Indepe,A52005,Payments to Other Local Authorities,30079188,09/01/2023,202210,"18,050.00",1002364,Flourish With Us Ltd
Education and Inclusion,Revenue Budgets,Childrens Services,Sen/Inclusion,A1784,Other La Top-Up,A52005,Payments to Other Local Authorities,30078310,10/01/2023,202210,"20,353.90",144120,Learning4life-Gy-Cic
Education and Inclusion,Revenue Budgets,Childrens Services,Sen/Inclusion,A1783,Top-Up Non-Maintained & Indepe,A52005,Payments to Other Local Authorities,30079179,10/01/2023,202210,"20,820.00",144120,Learning4life-Gy-Cic
Education and Inclusion,Capital Spend,Childrens Services,Backlog Maintenance Schools,Y1756,Stalling Primary Remodelling,C01009,"New Construction, conversion & renovation",30080661,10/01/2023,202210,"5,705.46",100632,E S Rudkin Ltd
Education and Inclusion,Revenue Budgets,Childrens Services,Pupil Support Safeguard/Wellbeing,A0513,Lac Education,A60010,Tuition &/or Board Fees,42195812,12/01/2023,202210,275.00,REDACTED PERSONAL INFORMATION,REDACTED PERSONAL INFORMATION
Education and Inclusion,Revenue Budgets,Childrens Services,Sen/Inclusion,A1561,Education Team Hear / Vision,A45040,IT Software Purchase,30078584,13/01/2023,202210,398.00,139006,Symbols Worldwide Ltd T/A Widgit Software
Education and Inclusion,Capital Spend,Childrens Services,Cap Alloc Devolved To Schools,Y0818,Stallingborough Primary Dfcg,C01009,"New Construction, conversion & renovation",30077012,15/01/2023,202210,"2,030.00",119571,Technology Support Solutions Ltd
Education and Inclusion,Capital Spend,Childrens Services,Send Special Prov Fund,Y1865,SEND Littlecoates Primary,C01009,"New Construction, conversion & renovation",30080437,15/01/2023,202210,"15,200.00",100786,Kes Building Maintenance Limited
Education and Inclusion,Revenue Budgets,Childrens Services,Pupil Support Safeguard/Wellbeing,A0513,Lac Education,A90130,Pupil Premium Grant,30076654,16/01/2023,202210,400.00,101947,Oasis Academy Immingham
Education and Inclusion,Revenue Budgets,Childrens Services,Pupil Support Safeguard/Wellbeing,A0513,Lac Education,A90130,Pupil Premium Grant,30076654,16/01/2023,202210,900.00,112680,Macaulay Primary Academy
Education and Inclusion,Revenue Budgets,Childrens Services,Pupil Support Safeguard/Wellbeing,A0513,Lac Education,A90130,Pupil Premium Grant,30076654,16/01/2023,202210,"2,200.00",108556,New Waltham Academy
Education and Inclusion,Revenue Budgets,Childrens Services,Pupil Support Safeguard/Wellbeing,A0513,Lac Education,A90130,Pupil Premium Grant,30076654,16/01/2023,202210,"3,800.00",101968,Havelock Academy
Education and Inclusion,Revenue Budgets,Childrens Services,Pupil Support Safeguard/Wellbeing,A0513,Lac Education,A90130,Pupil Premium Grant,30076654,16/01/2023,202210,"5,800.00",120478,Willows Primary Academy
Education and Inclusion,Revenue Budgets,Childrens Services,Sen/Inclusion,A1783,Top-Up Non-Maintained & Indepe,A52005,Payments to Other Local Authorities,30078961,16/01/2023,202210,"10,211.70",1000489,Acorn Care & Education Ltd (Sales)
Education and Inclusion,Revenue Budgets,Childrens Services,Sen/Inclusion,A1783,Top-Up Non-Maintained & Indepe,A52005,Payments to Other Local Authorities,30078982,16/01/2023,202210,"8,268.33",1000489,Acorn Care & Education Ltd (Sales)
Education and Inclusion,Revenue Budgets,Childrens Services,Sen/Inclusion,A1783,Top-Up Non-Maintained & Indepe,A56000,Other Establishments,30079528,16/01/2023,202210,"11,117.01",1000489,Acorn Care & Education Ltd (Sales)
Education and Inclusion,Revenue Budgets,Childrens Services,Sen/Inclusion,A1565,Top Up Funding Academies & Fre,A48900,Contingency Reserve,30077258,18/01/2023,202210,"2,748.00",107911,Humberston Park Special School
Education and Inclusion,Revenue Budgets,Childrens Services,Sen/Inclusion,A1564,Top Up Funding Ap Provision,A48900,Contingency Reserve,30077258,18/01/2023,202210,"3,039.00",126685,Phoenix Park Academy
Education and Inclusion,Revenue Budgets,Childrens Services,Sen/Inclusion,A1565,Top Up Funding Academies & Fre,A48900,Contingency Reserve,30077258,18/01/2023,202210,"3,666.00",107472,The Cambridge Park Academy
Education and Inclusion,Revenue Budgets,Childrens Services,Sen/Inclusion,A1565,Top Up Funding Academies & Fre,A48900,Contingency Reserve,30077258,18/01/2023,202210,"10,108.00",107911,Humberston Park Special School
Education and Inclusion,Revenue Budgets,Childrens Services,Sen/Inclusion,A1564,Top Up Funding Ap Provision,A48900,Contingency Reserve,30077258,18/01/2023,202210,"60,000.00",128660,Sevenhills Academy
Education and Inclusion,Revenue Budgets,Childrens Services,Sen/Inclusion,A1564,Top Up Funding Ap Provision,A48900,Contingency Reserve,30077258,18/01/2023,202210,"70,500.00",126685,Phoenix Park Academy
Education and Inclusion,Revenue Budgets,Childrens Services,Sen/Inclusion,A1565,Top Up Funding Academies & Fre,A48900,Contingency Reserve,30077258,18/01/2023,202210,"136,217.00",107911,Humberston Park Special School
Education and Inclusion,Revenue Budgets,Childrens Services,Sen/Inclusion,A1565,Top Up Funding Academies & Fre,A48900,Contingency Reserve,30077258,18/01/2023,202210,"186,750.00",107472,The Cambridge Park Academy
Education and Inclusion,Revenue Budgets,Childrens Services,Sen/Inclusion,A1564,Top Up Funding Ap Provision,A49105,Other Supplies & Services,30077258,18/01/2023,202210,"1,958.00",121907,Eastfield Primary Academy
Education and Inclusion,Revenue Budgets,Childrens Services,Sen/Inclusion,A1564,Top Up Funding Ap Provision,A49105,Other Supplies & Services,30077258,18/01/2023,202210,"6,000.00",121907,Eastfield Primary Academy
Education and Inclusion,Revenue Budgets,Childrens Services,Sen/Inclusion,A1564,Top Up Funding Ap Provision,A49105,Other Supplies & Services,30077258,18/01/2023,202210,"9,000.00",121907,Eastfield Primary Academy
Education and Inclusion,Revenue Budgets,Childrens Services,Pupil Support Safeguard/Wellbeing,A0513,Lac Education,A90130,Pupil Premium Grant,30077286,18/01/2023,202210,400.00,REDACTED PERSONAL INFORMATION,REDACTED PERSONAL INFORMATION
Education and Inclusion,Revenue Budgets,Childrens Services,Pupil Support Safeguard/Wellbeing,A0513,Lac Education,A90130,Pupil Premium Grant,30077286,18/01/2023,202210,"3,000.00",REDACTED PERSONAL INFORMATION,REDACTED PERSONAL INFORMATION
Education and Inclusion,Revenue Budgets,Childrens Services,Sen/Inclusion,A1783,Top-Up Non-Maintained & Indepe,A52005,Payments to Other Local Authorities,30080696,19/01/2023,202210,262.71,1000489,Acorn Care & Education Ltd (Sales)
Education and Inclusion,Revenue Budgets,Childrens Services,Sen/Inclusion,A1783,Top-Up Non-Maintained & Indepe,A56000,Other Establishments,30080698,19/01/2023,202210,271.15,1000489,Acorn Care & Education Ltd (Sales)
Education and Inclusion,Revenue Budgets,Childrens Services,Sen/Inclusion,A1783,Top-Up Non-Maintained & Indepe,A56000,Other Establishments,30080706,19/01/2023,202210,262.40,1000489,Acorn Care & Education Ltd (Sales)
Education and Inclusion,Revenue Budgets,Childrens Services,Sen/Inclusion,A1565,Top Up Funding Academies & Fre,A47007,Contributions - Third Sector,42198343,19/01/2023,202210,"2,091.01",REDACTED PERSONAL INFORMATION,REDACTED PERSONAL INFORMATION
Education and Inclusion,Revenue Budgets,Childrens Services,Sen/Inclusion,A1565,Top Up Funding Academies & Fre,A47007,Contributions - Third Sector,42198343,19/01/2023,202210,"4,000.00",REDACTED PERSONAL INFORMATION,REDACTED PERSONAL INFORMATION
Education and Inclusion,Revenue Budgets,Childrens Services,Education Transport,A0254,Home To School Transport Sen,A32020,Home to School Transport,30078801,20/01/2023,202210,820.00,101030,Amvale Limited
Education and Inclusion,Revenue Budgets,Childrens Services,Education Transport,A0254,Home To School Transport Sen,A32020,Home to School Transport,30078823,20/01/2023,202210,820.00,101030,Amvale Limited
Education and Inclusion,Revenue Budgets,Childrens Services,Sen/Inclusion,A1565,Top Up Funding Academies & Fre,A47006,Contributions - Communities,30081170,23/01/2023,202210,395.00,112852,Yarborough Academy
Education and Inclusion,Revenue Budgets,Childrens Services,Sen/Inclusion,A1565,Top Up Funding Academies & Fre,A47006,Contributions - Communities,30081225,23/01/2023,202210,406.00,112852,Yarborough Academy
Education and Inclusion,Revenue Budgets,Childrens Services,Education Transport,A0254,Home To School Transport Sen,A32020,Home to School Transport,30081305,23/01/2023,202210,"2,600.00",1003562,WAT Specialist Transport LTD T/A WAT
Education and Inclusion,Revenue Budgets,Childrens Services,Attainment and Progress,A1640,School Improvement,A56000,Other Establishments,30079220,24/01/2023,202210,880.00,120365,Scartho Infants School
Education and Inclusion,Revenue Budgets,Childrens Services,Attainment and Progress,A1640,School Improvement,A56000,Other Establishments,30079220,24/01/2023,202210,"3,680.93",120365,Scartho Infants School
Education and Inclusion,Revenue Budgets,Childrens Services,Sen/Inclusion,A1561,Education Team Hear / Vision,A45040,IT Software Purchase,30079546,24/01/2023,202210,572.25,101275,Trustmarque Solutions Ltd
Education and Inclusion,Revenue Budgets,Childrens Services,Sen/Inclusion,A0621,Resource Based Provision,A01002,Pay - Teachers Supply Cover,30080352,24/01/2023,202210,"1,250.00",141575,Saaf Supply Limited
Education and Inclusion,Revenue Budgets,Childrens Services,Sen/Inclusion,A1563,Top Up Funding Post 16,A52005,Payments to Other Local Authorities,30079181,25/01/2023,202210,"3,418.33",1000918,Linkage Community Trust
Education and Inclusion,Revenue Budgets,Childrens Services,Sen/Inclusion,A1563,Top Up Funding Post 16,A52005,Payments to Other Local Authorities,30079186,25/01/2023,202210,"3,418.33",1000918,Linkage Community Trust
Education and Inclusion,Revenue Budgets,Childrens Services,Sen/Inclusion,A1563,Top Up Funding Post 16,A52005,Payments to Other Local Authorities,30079203,25/01/2023,202210,"2,830.00",1000918,Linkage Community Trust
Education and Inclusion,Revenue Budgets,Childrens Services,Sen/Inclusion,A1783,Top-Up Non-Maintained & Indepe,A52005,Payments to Other Local Authorities,30079522,25/01/2023,202210,"3,737.50",REDACTED PERSONAL INFORMATION,REDACTED PERSONAL INFORMATION
Education and Inclusion,Revenue Budgets,Childrens Services,Sen/Inclusion,A1783,Top-Up Non-Maintained & Indepe,A52005,Payments to Other Local Authorities,30079537,25/01/2023,202210,"6,037.50",REDACTED PERSONAL INFORMATION,REDACTED PERSONAL INFORMATION
Education and Inclusion,Revenue Budgets,Childrens Services,Sen/Inclusion,A1783,Top-Up Non-Maintained & Indepe,A52005,Payments to Other Local Authorities,30079542,25/01/2023,202210,"6,037.50",REDACTED PERSONAL INFORMATION,REDACTED PERSONAL INFORMATION
Education and Inclusion,Revenue Budgets,Childrens Services,Sen/Inclusion,A1783,Top-Up Non-Maintained & Indepe,A52005,Payments to Other Local Authorities,30079551,25/01/2023,202210,"6,037.50",REDACTED PERSONAL INFORMATION,REDACTED PERSONAL INFORMATION
Education and Inclusion,Revenue Budgets,Childrens Services,Sen/Inclusion,A1783,Top-Up Non-Maintained & Indepe,A52005,Payments to Other Local Authorities,30079558,25/01/2023,202210,"3,737.50",REDACTED PERSONAL INFORMATION,REDACTED PERSONAL INFORMATION
Education and Inclusion,Revenue Budgets,Childrens Services,Sen/Inclusion,A1783,Top-Up Non-Maintained & Indepe,A52005,Payments to Other Local Authorities,30079561,25/01/2023,202210,"6,037.50",REDACTED PERSONAL INFORMATION,REDACTED PERSONAL INFORMATION
Education and Inclusion,Revenue Budgets,Childrens Services,Sen/Inclusion,A1783,Top-Up Non-Maintained & Indepe,A52005,Payments to Other Local Authorities,30079564,25/01/2023,202210,"6,037.50",REDACTED PERSONAL INFORMATION,REDACTED PERSONAL INFORMATION
Education and Inclusion,Revenue Budgets,Childrens Services,Sen/Inclusion,A1783,Top-Up Non-Maintained & Indepe,A52005,Payments to Other Local Authorities,30079565,25/01/2023,202210,"6,037.50",REDACTED PERSONAL INFORMATION,REDACTED PERSONAL INFORMATION
Education and Inclusion,Revenue Budgets,Childrens Services,Sen/Inclusion,A1565,Top Up Funding Academies & Fre,A47006,Contributions - Communities,30081168,25/01/2023,202210,395.00,112852,Yarborough Academy
Education and Inclusion,Revenue Budgets,Childrens Services,Sen/Inclusion,A1783,Top-Up Non-Maintained & Indepe,A52005,Payments to Other Local Authorities,30080422,26/01/2023,202210,"258,356.25",141244,Orchard Education Ltd
Education and Inclusion,Revenue Budgets,Childrens Services,Education Transport,A0254,Home To School Transport Sen,A32020,Home to School Transport,30080660,26/01/2023,202210,"2,500.00",111879,Hansons Airport Express
Education and Inclusion,Revenue Budgets,Childrens Services,Education Transport,A0254,Home To School Transport Sen,A32020,Home to School Transport,30080665,26/01/2023,202210,"2,500.00",111879,Hansons Airport Express
Education and Inclusion,Revenue Budgets,Childrens Services,Pupil Support Safeguard/Wellbeing,A0513,Lac Education,A60010,Tuition &/or Board Fees,42199927,26/01/2023,202210,325.00,REDACTED PERSONAL INFORMATION,REDACTED PERSONAL INFORMATION
Education and Inclusion,Revenue Budgets,Childrens Services,Education Transport,A0254,Home To School Transport Sen,A32020,Home to School Transport,30081146,27/01/2023,202210,"2,432.00",121524,Grimsby Minibuses Ltd
Education and Inclusion,Revenue Budgets,Childrens Services,Education Transport,A0254,Home To School Transport Sen,A32020,Home to School Transport,30081151,27/01/2023,202210,"3,024.00",121524,Grimsby Minibuses Ltd
Education and Inclusion,Revenue Budgets,Childrens Services,Education Transport,A0253,Home To Sch Transport Sec-Gy,A32020,Home to School Transport,30081152,27/01/2023,202210,"2,994.60",121524,Grimsby Minibuses Ltd
Education and Inclusion,Revenue Budgets,Childrens Services,Education Transport,A0253,Home To Sch Transport Sec-Gy,A32020,Home to School Transport,30081159,27/01/2023,202210,"3,477.60",121524,Grimsby Minibuses Ltd
Education and Inclusion,Revenue Budgets,Childrens Services,Education Transport,A0254,Home To School Transport Sen,A32020,Home to School Transport,30081163,27/01/2023,202210,"3,432.00",121524,Grimsby Minibuses Ltd
Education and Inclusion,Revenue Budgets,Childrens Services,Sen/Inclusion,A1563,Top Up Funding Post 16,A52005,Payments to Other Local Authorities,30081230,27/01/2023,202210,"4,991.50",101728,Community Press Office Ltd
Education and Inclusion,Revenue Budgets,Childrens Services,Education Transport,A0254,Home To School Transport Sen,A32020,Home to School Transport,30080841,31/01/2023,202210,"3,180.00",101030,Amvale Limited
Education and Inclusion,Revenue Budgets,Childrens Services,Education Transport,A0254,Home To School Transport Sen,A32020,Home to School Transport,30080856,31/01/2023,202210,"3,080.00",1002779,Timecar Ltd T/A Time Taxis
Education and Inclusion,Revenue Budgets,Childrens Services,Education Transport,A0254,Home To School Transport Sen,A32020,Home to School Transport,30080859,31/01/2023,202210,"3,240.00",101030,Amvale Limited
Education and Inclusion,Revenue Budgets,Childrens Services,Education Transport,A0254,Home To School Transport Sen,A32020,Home to School Transport,30080861,31/01/2023,202210,"4,900.00",101030,Amvale Limited
Education and Inclusion,Revenue Budgets,Childrens Services,Pupil Support Safeguard/Wellbeing,A0513,Lac Education,A90130,Pupil Premium Grant,30081077,31/01/2023,202210,"1,000.00",REDACTED PERSONAL INFORMATION,REDACTED PERSONAL INFORMATION
Education and Inclusion,Revenue Budgets,Childrens Services,Education Transport,A0254,Home To School Transport Sen,A32020,Home to School Transport,30081097,31/01/2023,202210,"3,040.00",101522,The Bus Run
Education and Inclusion,Revenue Budgets,Childrens Services,Sen/Inclusion,A1783,Top-Up Non-Maintained & Indepe,A52005,Payments to Other Local Authorities,30081242,31/01/2023,202210,"5,707.80",1003323,More Than Ed Independent School Limited
Education and Inclusion,Revenue Budgets,Childrens Services,Education Transport,A0254,Home To School Transport Sen,A32020,Home to School Transport,30081300,01/02/2023,202210,"1,710.00",1003562,WAT Specialist Transport LTD T/A WAT
Environment,Capital Spend,Environment,Depot Rationalisation,Y1812,Depot Rationalisation,C01005,Purchase of Land & Buildings,30078381,30/06/2022,202210,"12,408.00",128602,Oneway Tm Limited
Environment,Capital Spend,Environment,Depot Rationalisation,Y1812,Depot Rationalisation,C01005,Purchase of Land & Buildings,30078364,21/07/2022,202210,"25,130.00",128602,Oneway Tm Limited
Environment,Capital Spend,Environment,Depot Rationalisation,Y1812,Depot Rationalisation,C01005,Purchase of Land & Buildings,30080412,06/09/2022,202210,"132,227.51",103021,C R Reynolds (Construction) Ltd
Environment,Revenue Budgets,Environment,Grounds & Bereavement Services,A0661,Grounds Maint And Parks,A40920,Purchase of Equipment,30065528,24/11/2022,202210,303.00,109921,Dlf Trifolium
Environment,Revenue Budgets,Environment,Grounds & Bereavement Services,A0661,Grounds Maint And Parks,A40920,Purchase of Equipment,30065528,24/11/2022,202210,360.00,109921,Dlf Trifolium
Environment,Revenue Budgets,Environment,Garage & Fleet Strategy,A0665,Garage - Lab Holding,A30010,Vehicles Repairs,30076897,24/11/2022,202210,"1,071.22",1004490,VPG Systems UK Limited
Environment,Revenue Budgets,Environment,Garage & Fleet Strategy,A0665,Garage - Lab Holding,A30010,Vehicles Repairs,30076914,28/11/2022,202210,"3,737.00",1004492,Vehicle Weighing Solutions Ltd
Environment,Revenue Budgets,Environment,Regulatory Services,A0653,Commercial Regulatory Team,A52005,Payments to Other Local Authorities,30077264,29/11/2022,202210,"1,880.00",100377,East Riding Of Yorkshire Council
Environment,Revenue Budgets,Environment,Grounds & Bereavement Services,A1839,Reflections,A40920,Purchase of Equipment,30072978,30/11/2022,202210,"1,639.00",1003816,South Humberside Suspended Ceilings Ltd t/a CSH Interiors
Environment,Revenue Budgets,Environment,Regulatory Services,A1721,Environmental Enforcement,A56000,Other Establishments,30074828,30/11/2022,202210,"2,900.00",103270,Sangreat Kennels
Environment,Revenue Budgets,Environment,Countryside Management,A0647,Parks & Open Spaces,A27505,Grounds Maintenance,30077032,30/11/2022,202210,975.69,145790,Gb Sport & Leisure Uk Ltd
Environment,Revenue Budgets,Environment,Garage & Fleet Strategy,A0665,Garage - Lab Holding,A45020,Telephones,30075672,01/12/2022,202210,521.60,1004169,inseego
Environment,Revenue Budgets,Environment,Garage & Fleet Strategy,A0665,Garage - Lab Holding,A45020,Telephones,30075673,01/12/2022,202210,"1,410.75",1004169,inseego
Environment,Revenue Budgets,Environment,Grounds & Bereavement Services,A0646,Grimsby Crematorium,A40920,Purchase of Equipment,30070029,06/12/2022,202210,"2,650.00",140553,Lifeart Ltd
Environment,Capital Spend,Environment,Resort Management,Y1835,Resort Management,C01009,"New Construction, conversion & renovation",30077270,08/12/2022,202210,"10,404.90",100786,Kes Building Maintenance Limited
Environment,Revenue Budgets,Environment,Grounds & Bereavement Services,A0661,Grounds Maint And Parks,A49105,Other Supplies & Services,30077660,08/12/2022,202210,"12,600.00",104361,Creative Nature Uk Ltd
Environment,Revenue Budgets,Environment,Energy Project,A1853,Smarter Energy Poject,A44065,Consultancy Services,30077155,12/12/2022,202210,"10,799.80",122549,E-Factor Group Ltd
Environment,Revenue Budgets,Environment,Grounds & Bereavement Services,A0661,Grounds Maint And Parks,A20005,"Property Repairs, Maintenance & Alterations",30072651,13/12/2022,202210,270.00,133267,Equans Services Ltd
Environment,Capital Spend,Environment,Scartho Cem Lodge/Waiting Rooms,Y1827,Scartho Cem Lodge/Waiting Rm,C01009,"New Construction, conversion & renovation",30073345,13/12/2022,202210,"10,000.00",133267,Equans Services Ltd
Environment,Capital Spend,Environment,Depot Rationalisation,Y1812,Depot Rationalisation,C01005,Purchase of Land & Buildings,30076236,13/12/2022,202210,"15,000.00",133267,Equans Services Ltd
Environment,Capital Spend,Environment,Resort Management,Y1835,Resort Management,C01011,External Professional Fees,30079030,13/12/2022,202210,"2,000.00",133267,Equans Services Ltd
Environment,Capital Spend,Environment,Scartho Cem Lodge/Waiting Rooms,Y1827,Scartho Cem Lodge/Waiting Rm,C01009,"New Construction, conversion & renovation",30074886,15/12/2022,202210,"30,689.77",1002135,Craftsman Restoration Ltd
Environment,Capital Spend,Environment,Fleet Replacement Programme,Y1419,Fleet Vehicle Purchase,C01006,Purchase of Vehicles & Plant,30075504,15/12/2022,202210,455.00,104354,Thompson Commercials Ltd
Environment,Capital Spend,Environment,Fleet Replacement Programme,Y1419,Fleet Vehicle Purchase,C01006,Purchase of Vehicles & Plant,30075504,15/12/2022,202210,"1,000.00",104354,Thompson Commercials Ltd
Environment,Capital Spend,Environment,Fleet Replacement Programme,Y1419,Fleet Vehicle Purchase,C01006,Purchase of Vehicles & Plant,30075504,15/12/2022,202210,"1,100.00",104354,Thompson Commercials Ltd
Environment,Capital Spend,Environment,Fleet Replacement Programme,Y1419,Fleet Vehicle Purchase,C01006,Purchase of Vehicles & Plant,30075504,15/12/2022,202210,"1,500.00",104354,Thompson Commercials Ltd
Environment,Capital Spend,Environment,Fleet Replacement Programme,Y1419,Fleet Vehicle Purchase,C01006,Purchase of Vehicles & Plant,30075504,15/12/2022,202210,"53,530.00",104354,Thompson Commercials Ltd
Environment,Capital Spend,Environment,Fleet Replacement Programme,Y1419,Fleet Vehicle Purchase,C01006,Purchase of Vehicles & Plant,30075507,15/12/2022,202210,455.00,104354,Thompson Commercials Ltd
Environment,Capital Spend,Environment,Fleet Replacement Programme,Y1419,Fleet Vehicle Purchase,C01006,Purchase of Vehicles & Plant,30075507,15/12/2022,202210,"1,000.00",104354,Thompson Commercials Ltd
Environment,Capital Spend,Environment,Fleet Replacement Programme,Y1419,Fleet Vehicle Purchase,C01006,Purchase of Vehicles & Plant,30075507,15/12/2022,202210,"1,100.00",104354,Thompson Commercials Ltd
Environment,Capital Spend,Environment,Fleet Replacement Programme,Y1419,Fleet Vehicle Purchase,C01006,Purchase of Vehicles & Plant,30075507,15/12/2022,202210,"1,500.00",104354,Thompson Commercials Ltd
Environment,Capital Spend,Environment,Fleet Replacement Programme,Y1419,Fleet Vehicle Purchase,C01006,Purchase of Vehicles & Plant,30075507,15/12/2022,202210,"53,530.00",104354,Thompson Commercials Ltd
Environment,Revenue Budgets,Environment,Waste Services,A0683,Refuse - Domestic / Recycling,A42005,Clothing & Uniforms & Laundry,30071122,19/12/2022,202210,743.04,102378,Westbury Industrial Supplies Ltd
Environment,Revenue Budgets,Environment,Grounds & Bereavement Services,A0661,Grounds Maint And Parks,A40920,Purchase of Equipment,30071199,19/12/2022,202210,815.78,100583,Brianplant (Humberside) Ltd
Environment,Revenue Budgets,Environment,Garage & Fleet Strategy,A0665,Garage - Lab Holding,A30010,Vehicles Repairs,30076886,19/12/2022,202210,"1,760.37",148812,Scarab Sweepers Ltd
Environment,Revenue Budgets,Environment,Grounds & Bereavement Services,A1839,Reflections,A41905,Catering,30073339,20/12/2022,202210,620.12,121021,Holdsworth Ltd
Environment,Revenue Budgets,Environment,Grounds & Bereavement Services,A0661,Grounds Maint And Parks,A40920,Purchase of Equipment,30070747,21/12/2022,202210,353.50,100758,James Coles & Sons Ltd
Environment,Revenue Budgets,Environment,Regulatory Services,A0653,Commercial Regulatory Team,A49105,Other Supplies & Services,30075355,21/12/2022,202210,448.52,139602,Eurofins Water Hygiene Testing Uk Ltd
Environment,Revenue Budgets,Environment,Grounds & Bereavement Services,A0646,Grimsby Crematorium,A40920,Purchase of Equipment,30076774,21/12/2022,202210,"1,585.85",130000,S P Davis Memorials Limited
Environment,Revenue Budgets,Environment,Garage & Fleet Strategy,A0665,Garage - Lab Holding,A30010,Vehicles Repairs,30076266,22/12/2022,202210,260.61,101828,B A Bush & Son Ltd
Environment,Revenue Budgets,Environment,Grounds & Bereavement Services,A1839,Reflections,A41905,Catering,30073354,23/12/2022,202210,272.34,121021,Holdsworth Ltd
Environment,Revenue Budgets,Environment,Regulatory Services,A0653,Commercial Regulatory Team,A49105,Other Supplies & Services,30074662,23/12/2022,202210,"1,000.00",140144,Public Analyst Scientific Services Limited
Environment,Revenue Budgets,Environment,Regulatory Services,A0653,Commercial Regulatory Team,A11005,Agency Supply Staff,30075287,23/12/2022,202210,558.75,143357,The Best Connection
Environment,Revenue Budgets,Environment,Regulatory Services,A0653,Commercial Regulatory Team,A49105,Other Supplies & Services,30075671,23/12/2022,202210,800.00,140144,Public Analyst Scientific Services Limited
Environment,Revenue Budgets,Environment,Garage & Fleet Strategy,A0665,Garage - Lab Holding,A30010,Vehicles Repairs,30075712,23/12/2022,202210,283.33,100886,Fleet Factors Ltd
Environment,Revenue Budgets,Environment,Garage & Fleet Strategy,A0665,Garage - Lab Holding,A30010,Vehicles Repairs,30075736,23/12/2022,202210,"2,718.91",100886,Fleet Factors Ltd
Environment,Revenue Budgets,Environment,Garage & Fleet Strategy,A0665,Garage - Lab Holding,A30010,Vehicles Repairs,30075744,23/12/2022,202210,"2,265.36",100886,Fleet Factors Ltd
Environment,Capital Spend,Environment,Resort Management,Y1835,Resort Management,C01009,"New Construction, conversion & renovation",30073348,30/12/2022,202210,587.88,105081,Mobile Mini Uk Ltd
Environment,Revenue Budgets,Environment,Regulatory Services,A0653,Commercial Regulatory Team,A11005,Agency Supply Staff,30075285,30/12/2022,202210,447.00,143357,The Best Connection
Environment,Revenue Budgets,Environment,Garage & Fleet Strategy,A0665,Garage - Lab Holding,A30010,Vehicles Repairs,30076250,30/12/2022,202210,282.18,101828,B A Bush & Son Ltd
Environment,Capital Spend,Environment,Depot Rationalisation,Y1812,Depot Rationalisation,C01005,Purchase of Land & Buildings,30077386,30/12/2022,202210,284.99,1000372,GBM Demolition
Environment,Capital Spend,Environment,Depot Rationalisation,Y1812,Depot Rationalisation,C01005,Purchase of Land & Buildings,30077389,30/12/2022,202210,569.99,1000372,GBM Demolition
Environment,Revenue Budgets,Environment,Energy Project,A1664,Energy Project,A44065,Consultancy Services,30072688,31/12/2022,202210,"4,964.00",1002376,Eco50 Limited
Environment,Revenue Budgets,Environment,Grounds & Bereavement Services,A0646,Grimsby Crematorium,A27015,Refuse Collection,30074150,31/12/2022,202210,542.75,101433,Ellgia Limited
Environment,Revenue Budgets,Environment,Grounds & Bereavement Services,A0661,Grounds Maint And Parks,A30017,Other Vehicle Costs,30074669,31/12/2022,202210,356.98,108278,Allstar Business Solutions Ltd
Environment,Capital Spend,Environment,Depot Rationalisation,Y1812,Depot Rationalisation,C01005,Purchase of Land & Buildings,30074715,31/12/2022,202210,335.69,149901,Cleveland Containers Ltd
Environment,Capital Spend,Environment,Depot Rationalisation,Y1812,Depot Rationalisation,C01005,Purchase of Land & Buildings,30074739,31/12/2022,202210,335.69,149901,Cleveland Containers Ltd
Environment,Revenue Budgets,Environment,Regulatory Services,A1721,Environmental Enforcement,A56000,Other Establishments,30074770,31/12/2022,202210,"3,040.00",103270,Sangreat Kennels
Environment,Capital Spend,Environment,Depot Rationalisation,Y1812,Depot Rationalisation,C01005,Purchase of Land & Buildings,30074912,31/12/2022,202210,335.69,149901,Cleveland Containers Ltd
Environment,Revenue Budgets,Environment,Grounds & Bereavement Services,A0661,Grounds Maint And Parks,A56000,Other Establishments,30075092,31/12/2022,202210,"2,375.25",101116,Paprec Energies Grimsby Operations Ltd
Environment,Revenue Budgets,Environment,Grounds & Bereavement Services,A0646,Grimsby Crematorium,A40920,Purchase of Equipment,30075393,31/12/2022,202210,"1,676.00",147281,Vivedia Ltd
Environment,Revenue Budgets,Environment,Street Cleansing,A0673,Street Cleansing,A56000,Other Establishments,30077586,31/12/2022,202210,"1,759.81",102009,Srcl Ltd
Environment,Revenue Budgets,Environment,Garage & Fleet Strategy,A0665,Garage - Lab Holding,A45020,Telephones,30080821,01/01/2023,202210,521.60,1004169,inseego
Environment,Revenue Budgets,Environment,Grounds & Bereavement Services,A0661,Grounds Maint And Parks,A20005,"Property Repairs, Maintenance & Alterations",10033185,02/01/2023,202210,-415.00,102305,Bsb Services
Environment,Revenue Budgets,Environment,Grounds & Bereavement Services,A0661,Grounds Maint And Parks,A20005,"Property Repairs, Maintenance & Alterations",10033186,02/01/2023,202210,-415.00,102305,Bsb Services
Environment,Revenue Budgets,Environment,Grounds & Bereavement Services,A0661,Grounds Maint And Parks,A20005,"Property Repairs, Maintenance & Alterations",10033188,02/01/2023,202210,-300.00,102305,Bsb Services
Environment,Revenue Budgets,Environment,Grounds & Bereavement Services,A0661,Grounds Maint And Parks,A20005,"Property Repairs, Maintenance & Alterations",30076157,02/01/2023,202210,300.00,102305,Bsb Services
Environment,Revenue Budgets,Environment,Grounds & Bereavement Services,A0661,Grounds Maint And Parks,A20005,"Property Repairs, Maintenance & Alterations",30076162,02/01/2023,202210,415.00,102305,Bsb Services
Environment,Revenue Budgets,Environment,Grounds & Bereavement Services,A0661,Grounds Maint And Parks,A20005,"Property Repairs, Maintenance & Alterations",30076170,02/01/2023,202210,415.00,102305,Bsb Services
Environment,Revenue Budgets,Environment,Grounds & Bereavement Services,A0661,Grounds Maint And Parks,A20005,"Property Repairs, Maintenance & Alterations",30076758,02/01/2023,202210,415.00,102305,Bsb Services
Environment,Revenue Budgets,Environment,Grounds & Bereavement Services,A0661,Grounds Maint And Parks,A20005,"Property Repairs, Maintenance & Alterations",30076760,02/01/2023,202210,300.00,102305,Bsb Services
Environment,Revenue Budgets,Environment,Grounds & Bereavement Services,A1839,Reflections,A40920,Purchase of Equipment,30072820,03/01/2023,202210,300.80,123706,R W Stokes & Sons Ltd
Environment,Revenue Budgets,Environment,Regulatory Services,A0653,Commercial Regulatory Team,A49105,Other Supplies & Services,30073116,03/01/2023,202210,835.00,131671,Fera Science Ltd
Environment,Revenue Budgets,Environment,Regulatory Services,A0653,Commercial Regulatory Team,A49105,Other Supplies & Services,30073121,03/01/2023,202210,835.00,131671,Fera Science Ltd
Environment,Revenue Budgets,Environment,Grounds & Bereavement Services,A1839,Reflections,A41905,Catering,30074808,03/01/2023,202210,365.80,121021,Holdsworth Ltd
Environment,Revenue Budgets,Environment,Garage & Fleet Strategy,A0665,Garage - Lab Holding,A30010,Vehicles Repairs,10033713,05/01/2023,202210,-600.00,104090,E Bacon & Co Ltd
Environment,Revenue Budgets,Environment,Grounds & Bereavement Services,A0661,Grounds Maint And Parks,A56000,Other Establishments,30073491,05/01/2023,202210,320.00,128602,Oneway Tm Limited
Environment,Revenue Budgets,Environment,Regulatory Services,A1574,Environmental Protection,A49105,Other Supplies & Services,30076871,05/01/2023,202210,"1,387.79",139898,Als Environmental Limited
Environment,Revenue Budgets,Environment,Garage & Fleet Strategy,A0665,Garage - Lab Holding,A30010,Vehicles Repairs,30077005,05/01/2023,202210,600.00,104090,E Bacon & Co Ltd
Environment,Revenue Budgets,Environment,Garage & Fleet Strategy,A0665,Garage - Lab Holding,A30010,Vehicles Repairs,30077661,05/01/2023,202210,600.00,104090,E Bacon & Co Ltd
Environment,Revenue Budgets,Environment,Regulatory Services,A0653,Commercial Regulatory Team,A11005,Agency Supply Staff,30075275,06/01/2023,202210,290.55,143357,The Best Connection
Environment,Revenue Budgets,Environment,Garage & Fleet Strategy,A0665,Garage - Lab Holding,A30010,Vehicles Repairs,30075729,06/01/2023,202210,"1,474.01",100886,Fleet Factors Ltd
Environment,Revenue Budgets,Environment,Garage & Fleet Strategy,A0665,Garage - Lab Holding,A30010,Vehicles Repairs,30075738,06/01/2023,202210,"1,226.91",100886,Fleet Factors Ltd
Environment,Revenue Budgets,Environment,Countryside Management,A0647,Parks & Open Spaces,A27505,Grounds Maintenance,30076659,06/01/2023,202210,631.80,100623,Rainer Security Products Ltd
Environment,Revenue Budgets,Environment,Garage & Fleet Strategy,A0665,Garage - Lab Holding,A30010,Vehicles Repairs,30076890,09/01/2023,202210,313.50,100542,Larco Ltd
Environment,Revenue Budgets,Environment,Grounds & Bereavement Services,A0661,Grounds Maint And Parks,A40920,Purchase of Equipment,30075751,10/01/2023,202210,817.03,100583,Brianplant (Humberside) Ltd
Environment,Capital Spend,Environment,Regulatory Services Mgt System,Y1844,Regulatory Serv Mgt System,C01006,Purchase of Vehicles & Plant,30076754,10/01/2023,202210,795.00,111799,Arcus Global Limited
Environment,Revenue Budgets,Environment,Grounds & Bereavement Services,A0646,Grimsby Crematorium,A40920,Purchase of Equipment,30076775,11/01/2023,202210,640.00,130000,S P Davis Memorials Limited
Environment,Revenue Budgets,Environment,Garage & Fleet Strategy,A0665,Garage - Lab Holding,A30010,Vehicles Repairs,30076959,11/01/2023,202210,540.52,101828,B A Bush & Son Ltd
Environment,Revenue Budgets,Environment,Grounds & Bereavement Services,A0646,Grimsby Crematorium,A16015,Staff Training Expenses,30076256,12/01/2023,202210,700.00,105501,Forefront Training Ltd
Environment,Revenue Budgets,Environment,Grounds & Bereavement Services,A0661,Grounds Maint And Parks,A56000,Other Establishments,30076259,12/01/2023,202210,364.00,112224,Bcj Construction Ltd
Environment,Revenue Budgets,Environment,Grounds & Bereavement Services,A0661,Grounds Maint And Parks,A56000,Other Establishments,30076275,12/01/2023,202210,"1,690.00",112224,Bcj Construction Ltd
Environment,Capital Spend,Environment,Fleet Replacement Programme,Y1419,Fleet Vehicle Purchase,C01006,Purchase of Vehicles & Plant,30076289,12/01/2023,202210,600.00,1000129,The Burdens Group Ltd
Environment,Capital Spend,Environment,Fleet Replacement Programme,Y1419,Fleet Vehicle Purchase,C01006,Purchase of Vehicles & Plant,30076289,12/01/2023,202210,"2,975.00",1000129,The Burdens Group Ltd
Environment,Capital Spend,Environment,Fleet Replacement Programme,Y1419,Fleet Vehicle Purchase,C01006,Purchase of Vehicles & Plant,30076289,12/01/2023,202210,"6,950.00",1000129,The Burdens Group Ltd
Environment,Capital Spend,Environment,Fleet Replacement Programme,Y1419,Fleet Vehicle Purchase,C01006,Purchase of Vehicles & Plant,30076289,12/01/2023,202210,"13,250.00",1000129,The Burdens Group Ltd
Environment,Capital Spend,Environment,Fleet Replacement Programme,Y1419,Fleet Vehicle Purchase,C01006,Purchase of Vehicles & Plant,30076289,12/01/2023,202210,"39,940.00",1000129,The Burdens Group Ltd
Environment,Revenue Budgets,Environment,Grounds & Bereavement Services,A0661,Grounds Maint And Parks,A56000,Other Establishments,30076295,12/01/2023,202210,"1,580.00",112224,Bcj Construction Ltd
Environment,Revenue Budgets,Environment,Countryside Management,A0647,Parks & Open Spaces,A27505,Grounds Maintenance,30076748,13/01/2023,202210,"1,250.00",101926,E K M Ltd
Environment,Revenue Budgets,Environment,Garage & Fleet Strategy,A0665,Garage - Lab Holding,A30010,Vehicles Repairs,30076877,13/01/2023,202210,"6,156.59",100886,Fleet Factors Ltd
Environment,Revenue Budgets,Environment,Garage & Fleet Strategy,A0665,Garage - Lab Holding,A30010,Vehicles Repairs,30076883,13/01/2023,202210,444.43,100886,Fleet Factors Ltd
Environment,Revenue Budgets,Environment,Garage & Fleet Strategy,A0665,Garage - Lab Holding,A30010,Vehicles Repairs,30076887,13/01/2023,202210,"3,348.76",100886,Fleet Factors Ltd
Environment,Revenue Budgets,Environment,Garage & Fleet Strategy,A0665,Garage - Lab Holding,A30010,Vehicles Repairs,30076899,13/01/2023,202210,"3,864.66",100886,Fleet Factors Ltd
Environment,Revenue Budgets,Environment,Regulatory Services,A0653,Commercial Regulatory Team,A11005,Agency Supply Staff,30078649,13/01/2023,202210,335.25,143357,The Best Connection
Environment,Revenue Budgets,Environment,Garage & Fleet Strategy,A0665,Garage - Lab Holding,A30010,Vehicles Repairs,30077515,16/01/2023,202210,365.00,134742,M J Windscreens Ltd
Environment,Revenue Budgets,Environment,Grounds & Bereavement Services,A0661,Grounds Maint And Parks,A40920,Purchase of Equipment,30078324,16/01/2023,202210,402.27,100583,Brianplant (Humberside) Ltd
Environment,Revenue Budgets,Environment,Regulatory Services,A0663,Licensing,A56000,Other Establishments,30078979,16/01/2023,202210,275.00,111343,Abbey Veterinary Centre (Grimsby) Ltd
Environment,Revenue Budgets,Environment,Grounds & Bereavement Services,A0646,Grimsby Crematorium,A47010,Subscriptions (non staff),30079065,16/01/2023,202210,"1,028.00",103945,FBCA
Environment,Revenue Budgets,Environment,Grounds & Bereavement Services,A0646,Grimsby Crematorium,A21010,Gas,42196420,16/01/2023,202210,"3,522.67",103611,Total Gas Energies
Environment,Revenue Budgets,Environment,Grounds & Bereavement Services,A0661,Grounds Maint And Parks,A20005,"Property Repairs, Maintenance & Alterations",30076757,17/01/2023,202210,415.00,102305,Bsb Services
Environment,Revenue Budgets,Environment,Regulatory Services,A0653,Commercial Regulatory Team,A49105,Other Supplies & Services,30077174,17/01/2023,202210,835.00,131671,Fera Science Ltd
Environment,Revenue Budgets,Environment,Grounds & Bereavement Services,A0661,Grounds Maint And Parks,A27505,Grounds Maintenance,30077186,17/01/2023,202210,450.00,128602,Oneway Tm Limited
Environment,Revenue Budgets,Environment,Regulatory Services,A0653,Commercial Regulatory Team,A45045,IT Software Maintenance,30077233,17/01/2023,202210,"3,971.80",111799,Arcus Global Limited
Environment,Revenue Budgets,Environment,Regulatory Services,A1574,Environmental Protection,A45045,IT Software Maintenance,30077233,17/01/2023,202210,"3,971.80",111799,Arcus Global Limited
Environment,Revenue Budgets,Environment,Regulatory Services,A1721,Environmental Enforcement,A45045,IT Software Maintenance,30077233,17/01/2023,202210,"3,971.80",111799,Arcus Global Limited
Environment,Revenue Budgets,Environment,Grounds & Bereavement Services,A1839,Reflections,A41905,Catering,30078993,17/01/2023,202210,559.29,121021,Holdsworth Ltd
Environment,Revenue Budgets,Environment,Grounds & Bereavement Services,A0680,Foreshore,A24005,Water Services,42196440,17/01/2023,202210,"1,904.61",125923,Anglian Water Services Ltd
Environment,Capital Spend,Environment,Resort Management,Y1835,Resort Management,C01009,"New Construction, conversion & renovation",10034926,18/01/2023,202210,"-3,118.00",104090,E Bacon & Co Ltd
Environment,Revenue Budgets,Environment,Regulatory Services,A0663,Licensing,A56000,Other Establishments,30078356,18/01/2023,202210,275.00,111343,Abbey Veterinary Centre (Grimsby) Ltd
Environment,Revenue Budgets,Environment,Grounds & Bereavement Services,A0661,Grounds Maint And Parks,A42005,Clothing & Uniforms & Laundry,30078524,18/01/2023,202210,716.91,147941,Pws (Protective Wear Supplies) Ltd
Environment,Capital Spend,Environment,Resort Management,Y1835,Resort Management,C01009,"New Construction, conversion & renovation",30079914,18/01/2023,202210,"3,118.00",104090,E Bacon & Co Ltd
Environment,Capital Spend,Environment,Resort Management,Y1835,Resort Management,C01009,"New Construction, conversion & renovation",30079917,18/01/2023,202210,855.50,104090,E Bacon & Co Ltd
Environment,Capital Spend,Environment,Resort Management,Y1835,Resort Management,C01009,"New Construction, conversion & renovation",30079917,18/01/2023,202210,"2,262.50",104090,E Bacon & Co Ltd
Environment,Capital Spend,Environment,Fleet Replacement Programme,Y1419,Fleet Vehicle Purchase,C01006,Purchase of Vehicles & Plant,30081302,18/01/2023,202210,"22,940.61",1003048,Stoneacre Motor Group
Environment,Revenue Budgets,Environment,Regulatory Services,A0653,Commercial Regulatory Team,A11005,Agency Supply Staff,30078890,20/01/2023,202210,454.45,143357,The Best Connection
Environment,Revenue Budgets,Environment,Garage & Fleet Strategy,A0665,Garage - Lab Holding,A30010,Vehicles Repairs,30079305,20/01/2023,202210,540.54,100886,Fleet Factors Ltd
Environment,Revenue Budgets,Environment,Garage & Fleet Strategy,A0665,Garage - Lab Holding,A30010,Vehicles Repairs,30079310,20/01/2023,202210,"1,981.54",100886,Fleet Factors Ltd
Environment,Revenue Budgets,Environment,Garage & Fleet Strategy,A0665,Garage - Lab Holding,A30010,Vehicles Repairs,30079443,20/01/2023,202210,322.53,100886,Fleet Factors Ltd
Environment,Revenue Budgets,Environment,Garage & Fleet Strategy,A0665,Garage - Lab Holding,A30010,Vehicles Repairs,30079550,20/01/2023,202210,"3,057.46",100886,Fleet Factors Ltd
Environment,Revenue Budgets,Environment,Grounds & Bereavement Services,A0646,Grimsby Crematorium,A21005,Electricity,42197807,20/01/2023,202210,364.56,103611,Total Gas Energies
Environment,Revenue Budgets,Environment,Grounds & Bereavement Services,A0679,Resort,A21005,Electricity,42197807,20/01/2023,202210,689.52,103611,Total Gas Energies
Environment,Revenue Budgets,Environment,Grounds & Bereavement Services,A0680,Foreshore,A21005,Electricity,42197807,20/01/2023,202210,759.28,103611,Total Gas Energies
Environment,Revenue Budgets,Environment,Grounds & Bereavement Services,A0661,Grounds Maint And Parks,A21005,Electricity,42197807,20/01/2023,202210,"1,542.16",103611,Total Gas Energies
Environment,Revenue Budgets,Environment,Grounds & Bereavement Services,A0646,Grimsby Crematorium,A21005,Electricity,42197807,20/01/2023,202210,"1,672.27",103611,Total Gas Energies
Environment,Revenue Budgets,Environment,Garage & Fleet Strategy,A0665,Garage - Lab Holding,A30010,Vehicles Repairs,30079454,24/01/2023,202210,"1,765.96",100604,Harris & Garrod Ltd
Environment,Revenue Budgets,Environment,Garage & Fleet Strategy,A0665,Garage - Lab Holding,A30010,Vehicles Repairs,30079456,24/01/2023,202210,290.12,100542,Larco Ltd
Environment,Revenue Budgets,Environment,Garage & Fleet Strategy,A0665,Garage - Lab Holding,A30010,Vehicles Repairs,30080801,24/01/2023,202210,262.35,101828,B A Bush & Son Ltd
Environment,Revenue Budgets,Environment,Garage & Fleet Strategy,A0665,Garage - Lab Holding,A30010,Vehicles Repairs,30080811,25/01/2023,202210,540.52,101828,B A Bush & Son Ltd
Environment,Revenue Budgets,Environment,Grounds & Bereavement Services,A0646,Grimsby Crematorium,A93000,Fees & Charges,30081112,25/01/2023,202210,405.80,REDACTED PERSONAL INFORMATION,REDACTED PERSONAL INFORMATION
Environment,Revenue Budgets,Environment,Garage & Fleet Strategy,A0665,Garage - Lab Holding,A30010,Vehicles Repairs,30080772,27/01/2023,202210,"3,190.85",100886,Fleet Factors Ltd
Environment,Revenue Budgets,Environment,Garage & Fleet Strategy,A0665,Garage - Lab Holding,A30010,Vehicles Repairs,30080773,27/01/2023,202210,"2,388.09",100886,Fleet Factors Ltd
Environment,Revenue Budgets,Environment,Garage & Fleet Strategy,A0665,Garage - Lab Holding,A30010,Vehicles Repairs,30080784,27/01/2023,202210,700.86,100886,Fleet Factors Ltd
Environment,Revenue Budgets,Environment,Garage & Fleet Strategy,A0665,Garage - Lab Holding,A30010,Vehicles Repairs,30080789,27/01/2023,202210,360.61,101828,B A Bush & Son Ltd
Environment,Revenue Budgets,Environment,Garage & Fleet Strategy,A0665,Garage - Lab Holding,A30010,Vehicles Repairs,30080810,27/01/2023,202210,796.30,101828,B A Bush & Son Ltd
Environment,Revenue Budgets,Environment,Regulatory Services,A0653,Commercial Regulatory Team,A22005,Building Rents,30081172,30/01/2023,202210,"2,361.67",128437,Great Grimsby Seafood Village Ltd
Environment,Revenue Budgets,Environment,Garage & Fleet Strategy,A0665,Garage - Lab Holding,A30010,Vehicles Repairs,30081308,30/01/2023,202210,557.00,1001387,AUTOCRAFT EQUIPMENT LTD
Environment,Capital Spend,Environment,Fleet Replacement Programme,Y1811,New Recycling Service,C01006,Purchase of Vehicles & Plant,30081072,31/01/2023,202210,"1,071.85",104775,Total Signs And Graphics Ltd
"Housing, Highways and Transport",Capital Spend,Economy And Growth,Gllep Junction Improvement,Y1696,Littlecoates Road Junc Improve,C01009,"New Construction, conversion & renovation",30078010,25/01/2022,202210,"1,399.85",128602,Oneway Tm Limited
"Housing, Highways and Transport",Capital Spend,Economy And Growth,Gllep Junction Improvement,Y1694,Toll Bar Junction Improvement,C01011,External Professional Fees,30078439,26/01/2022,202210,324.00,128602,Oneway Tm Limited
"Housing, Highways and Transport",Capital Spend,Economy And Growth,Gllep Junction Improvement,Y1696,Littlecoates Road Junc Improve,C01009,"New Construction, conversion & renovation",30077999,09/03/2022,202210,527.80,128602,Oneway Tm Limited
"Housing, Highways and Transport",Capital Spend,Economy And Growth,Gllep Junction Improvement,Y1696,Littlecoates Road Junc Improve,C01009,"New Construction, conversion & renovation",30078003,09/03/2022,202210,584.35,128602,Oneway Tm Limited
"Housing, Highways and Transport",Capital Spend,Economy And Growth,Accelerated Cons Funding,Y1804,Acc Cons Funding Matthew Humb,C01009,"New Construction, conversion & renovation",30077665,01/04/2022,202210,"2,060.00",128602,Oneway Tm Limited
"Housing, Highways and Transport",Capital Spend,Economy And Growth,Cartergate Office Development,Y1610,Cartergate Office Development,C01009,"New Construction, conversion & renovation",30078011,11/05/2022,202210,430.00,128602,Oneway Tm Limited
"Housing, Highways and Transport",Capital Spend,Economy And Growth,Accelerated Cons Funding,Y1804,Acc Cons Funding Matthew Humb,C01009,"New Construction, conversion & renovation",30077685,13/05/2022,202210,"3,060.00",128602,Oneway Tm Limited
"Housing, Highways and Transport",Capital Spend,Economy And Growth,Grimsby - Immingham Ext Cycleway,Y1832,Grimsby-Immingham Ext Cycleway,C01009,"New Construction, conversion & renovation",30077536,30/06/2022,202210,"7,343.90",143214,4way Consulting Ltd
"Housing, Highways and Transport",Capital Spend,Economy And Growth,Backlog Maintenance,Y1453,Health & Safe Emergency Work,C01009,"New Construction, conversion & renovation",10033714,04/07/2022,202210,"-1,765.50",104090,E Bacon & Co Ltd
"Housing, Highways and Transport",Capital Spend,Economy And Growth,Backlog Maintenance,Y1453,Health & Safe Emergency Work,C01009,"New Construction, conversion & renovation",30077508,04/07/2022,202210,"1,765.50",104090,E Bacon & Co Ltd
"Housing, Highways and Transport",Capital Spend,Economy And Growth,Accelerated Cons Funding,Y1796,Acc Cons Funding Western,C01009,"New Construction, conversion & renovation",30077690,04/07/2022,202210,"2,915.71",128602,Oneway Tm Limited
"Housing, Highways and Transport",Capital Spend,Economy And Growth,Backlog Maintenance,Y1453,Health & Safe Emergency Work,C01009,"New Construction, conversion & renovation",30080006,04/07/2022,202210,279.00,104090,E Bacon & Co Ltd
"Housing, Highways and Transport",Capital Spend,Economy And Growth,Backlog Maintenance,Y1453,Health & Safe Emergency Work,C01009,"New Construction, conversion & renovation",30080006,04/07/2022,202210,"1,486.50",104090,E Bacon & Co Ltd
"Housing, Highways and Transport",Capital Spend,Economy And Growth,Grimsby - Immingham Ext Cycleway,Y1832,Grimsby-Immingham Ext Cycleway,C01009,"New Construction, conversion & renovation",30079982,13/07/2022,202210,"18,348.59",128602,Oneway Tm Limited
"Housing, Highways and Transport",Capital Spend,Economy And Growth,Corporation Rd Bridge Refurb,Y1803,Corporation Rd Bridge Refurb,C01009,"New Construction, conversion & renovation",30079068,22/07/2022,202210,"7,000.00",133267,Equans Services Ltd
"Housing, Highways and Transport",Capital Spend,Economy And Growth,Gllep Junction Improvement,Y1696,Littlecoates Road Junc Improve,C01009,"New Construction, conversion & renovation",30078005,28/07/2022,202210,320.00,128602,Oneway Tm Limited
"Housing, Highways and Transport",Revenue Budgets,Economy And Growth,Facilities Management,A0469,Void Property Costs,A20015,Security / Surveillance Equipment Maintenance,30077047,17/08/2022,202210,414.00,133267,Equans Services Ltd
"Housing, Highways and Transport",Capital Spend,Economy And Growth,Backlog Maintenance,Y1453,Health & Safe Emergency Work,C01009,"New Construction, conversion & renovation",30079665,17/08/2022,202210,"1,798.00",133267,Equans Services Ltd
"Housing, Highways and Transport",Capital Spend,Economy And Growth,Hps-Disabled Fac. Grants,Y1855,DFG - Strategic Housing,C01012,Payment of Grants/Advances,30041226,14/09/2022,202210,"1,791.96",101710,Etac Limited
"Housing, Highways and Transport",Capital Spend,Economy And Growth,Hps-Disabled Fac. Grants,Y1855,DFG - Strategic Housing,C01012,Payment of Grants/Advances,30041242,14/09/2022,202210,"3,103.69",101710,Etac Limited
"Housing, Highways and Transport",Capital Spend,Economy And Growth,Hps-Disabled Fac. Grants,Y0436,Disab Facil Grant Mandatory,C01012,Payment of Grants/Advances,30078299,19/09/2022,202210,"11,109.42",103981,Vic Hansen Building & Joinery Ltd
"Housing, Highways and Transport",Capital Spend,Economy And Growth,Backlog Maintenance,Y1453,Health & Safe Emergency Work,C01009,"New Construction, conversion & renovation",10032848,05/10/2022,202210,-430.00,104090,E Bacon & Co Ltd
"Housing, Highways and Transport",Capital Spend,Economy And Growth,Backlog Maintenance,Y1453,Health & Safe Emergency Work,C01009,"New Construction, conversion & renovation",30075094,05/10/2022,202210,430.00,104090,E Bacon & Co Ltd
"Housing, Highways and Transport",Capital Spend,Economy And Growth,Backlog Maintenance,Y1453,Health & Safe Emergency Work,C01009,"New Construction, conversion & renovation",30075430,05/10/2022,202210,430.00,104090,E Bacon & Co Ltd
"Housing, Highways and Transport",Revenue Budgets,Economy And Growth,Home Options & Hous Rel Supp,A0955,Crisis Accomodation,A47005,"Grants, Contributions & Donations",30076987,07/10/2022,202210,"7,000.00",146134,Hull & East Yorkshire Mind
"Housing, Highways and Transport",Capital Spend,Economy And Growth,Hps-Disabled Fac. Grants,Y0436,Disab Facil Grant Mandatory,C01012,Payment of Grants/Advances,30077688,07/10/2022,202210,"1,667.00",133267,Equans Services Ltd
"Housing, Highways and Transport",Capital Spend,Economy And Growth,Hps-Disabled Fac. Grants,Y0436,Disab Facil Grant Mandatory,C01012,Payment of Grants/Advances,30077986,07/10/2022,202210,"4,503.92",133267,Equans Services Ltd
"Housing, Highways and Transport",Capital Spend,Economy And Growth,Hps-Disabled Fac. Grants,Y0436,Disab Facil Grant Mandatory,C01012,Payment of Grants/Advances,30079661,07/10/2022,202210,"4,609.46",133267,Equans Services Ltd
"Housing, Highways and Transport",Capital Spend,Economy And Growth,Local Transport Plan Schemes,Y0187,Footway Maintenance,C01009,"New Construction, conversion & renovation",30065287,13/10/2022,202210,"107,403.94",125951,EC Surfacing Ltd
"Housing, Highways and Transport",Capital Spend,Economy And Growth,Local Transport Plan Schemes,Y0038,Maintenance Of Structures,C01011,External Professional Fees,30079087,17/10/2022,202210,"19,200.00",133267,Equans Services Ltd
"Housing, Highways and Transport",Revenue Budgets,Economy And Growth,Facilities Management,A1088,Peoples Park,A20005,"Property Repairs, Maintenance & Alterations",30079640,17/10/2022,202210,644.00,133267,Equans Services Ltd
"Housing, Highways and Transport",Capital Spend,Economy And Growth,Backlog Maintenance,Y1453,Health & Safe Emergency Work,C01009,"New Construction, conversion & renovation",30079641,17/10/2022,202210,865.00,133267,Equans Services Ltd
"Housing, Highways and Transport",Capital Spend,Economy And Growth,Backlog Maintenance,Y1453,Health & Safe Emergency Work,C01009,"New Construction, conversion & renovation",30079651,17/10/2022,202210,"1,679.00",133267,Equans Services Ltd
"Housing, Highways and Transport",Revenue Budgets,Economy And Growth,Facilities Management,A0322,Queensway Cc Premises,A20015,Security / Surveillance Equipment Maintenance,30075668,18/10/2022,202210,504.00,120478,Willows Primary Academy
"Housing, Highways and Transport",Revenue Budgets,Economy And Growth,Facilities Management,A0322,Queensway Cc Premises,A21005,Electricity,30075668,18/10/2022,202210,"3,416.17",120478,Willows Primary Academy
"Housing, Highways and Transport",Revenue Budgets,Economy And Growth,Facilities Management,A0322,Queensway Cc Premises,A21010,Gas,30075668,18/10/2022,202210,778.07,120478,Willows Primary Academy
"Housing, Highways and Transport",Revenue Budgets,Economy And Growth,Drainage & Coastal Defence,A1229,Land Drainage Works,A56000,Other Establishments,10033993,19/10/2022,202210,"26,904.00",1003512,HR Wallingford Ltd
"Housing, Highways and Transport",Capital Spend,Economy And Growth,Hps-Disabled Fac. Grants,Y0436,Disab Facil Grant Mandatory,C01012,Payment of Grants/Advances,30069107,20/10/2022,202210,"6,924.12",103981,Vic Hansen Building & Joinery Ltd
"Housing, Highways and Transport",Capital Spend,Economy And Growth,Hps-Disabled Fac. Grants,Y0436,Disab Facil Grant Mandatory,C01012,Payment of Grants/Advances,30065606,24/10/2022,202210,"16,772.43",103981,Vic Hansen Building & Joinery Ltd
"Housing, Highways and Transport",Capital Spend,Economy And Growth,Hps-Disabled Fac. Grants,Y0436,Disab Facil Grant Mandatory,C01012,Payment of Grants/Advances,30077989,24/10/2022,202210,"2,233.56",133267,Equans Services Ltd
"Housing, Highways and Transport",Revenue Budgets,Economy And Growth,Facilities Management,A0469,Void Property Costs,A20005,"Property Repairs, Maintenance & Alterations",30079643,24/10/2022,202210,650.00,133267,Equans Services Ltd
"Housing, Highways and Transport",Revenue Budgets,Economy And Growth,Facilities Management,A1864,Osbourne Street,A20005,"Property Repairs, Maintenance & Alterations",30079644,24/10/2022,202210,348.00,133267,Equans Services Ltd
"Housing, Highways and Transport",Capital Spend,Economy And Growth,Coastal Defence - Humberston Fitties,Y1881,Coastal Defence - Humberston Fitties,C01011,External Professional Fees,30076158,28/10/2022,202210,"4,200.00",122455,Delta-Simons Environmental Consultants Ltd
"Housing, Highways and Transport",Capital Spend,Economy And Growth,Hps-Disabled Fac. Grants,Y0436,Disab Facil Grant Mandatory,C01012,Payment of Grants/Advances,30076915,29/10/2022,202210,"12,049.31",103981,Vic Hansen Building & Joinery Ltd
"Housing, Highways and Transport",Revenue Budgets,Economy And Growth,Facilities Management,A0981,Facilities Management,A27010,Contract Cleaning,30078220,31/10/2022,202210,"43,608.00",149644,Kingdom Cleaning Limited
"Housing, Highways and Transport",Revenue Budgets,Economy And Growth,Facilities Management,A0322,Queensway Cc Premises,A27010,Contract Cleaning,30077634,04/11/2022,202210,"1,038.88",146901,Bidvest Noonan (Uk) Ltd
"Housing, Highways and Transport",Revenue Budgets,Economy And Growth,Highways Management,A1236,Highway Management,A93000,Fees & Charges,30078876,09/11/2022,202210,350.00,REDACTED PERSONAL INFORMATION,REDACTED PERSONAL INFORMATION
"Housing, Highways and Transport",Capital Spend,Economy And Growth,Hps-Disabled Fac. Grants,Y0436,Disab Facil Grant Mandatory,C01012,Payment of Grants/Advances,30080025,11/11/2022,202210,"5,352.00",101317,Dolphin Mobility East Midlands Ltd
"Housing, Highways and Transport",Capital Spend,Economy And Growth,Backlog Maintenance,Y1453,Health & Safe Emergency Work,C01009,"New Construction, conversion & renovation",30080611,11/11/2022,202210,775.00,104090,E Bacon & Co Ltd
"Housing, Highways and Transport",Revenue Budgets,Economy And Growth,Transport Policy,A1275,Phone And Ride,A33005,Public Transport - Non Staff,30073458,12/11/2022,202210,"2,756.72",101404,Stagecoach Services
"Housing, Highways and Transport",Revenue Budgets,Economy And Growth,Transport Policy,A1275,Phone And Ride,A33005,Public Transport - Non Staff,30073460,12/11/2022,202210,"19,669.95",101404,Stagecoach Services
"Housing, Highways and Transport",Capital Spend,Economy And Growth,Hps-Disabled Fac. Grants,Y0436,Disab Facil Grant Mandatory,C01012,Payment of Grants/Advances,30076745,15/11/2022,202210,"1,690.00",1000491,Simply Refreshed
"Housing, Highways and Transport",Capital Spend,Economy And Growth,Hps-Disabled Fac. Grants,Y0436,Disab Facil Grant Mandatory,C01012,Payment of Grants/Advances,30077988,15/11/2022,202210,"2,080.99",133267,Equans Services Ltd
"Housing, Highways and Transport",Capital Spend,Economy And Growth,Hps-Disabled Fac. Grants,Y0436,Disab Facil Grant Mandatory,C01012,Payment of Grants/Advances,30077990,15/11/2022,202210,"2,587.20",133267,Equans Services Ltd
"Housing, Highways and Transport",Revenue Budgets,Economy And Growth,Commercial Estate,A1203,Cromwell Road Fact Units,A20005,"Property Repairs, Maintenance & Alterations",30079632,15/11/2022,202210,694.40,133267,Equans Services Ltd
"Housing, Highways and Transport",Revenue Budgets,Economy And Growth,Facilities Management,A0469,Void Property Costs,A20005,"Property Repairs, Maintenance & Alterations",30079637,15/11/2022,202210,"1,080.73",133267,Equans Services Ltd
"Housing, Highways and Transport",Capital Spend,Economy And Growth,Backlog Maintenance,Y1463,Cleethorpes Town Hall,C01009,"New Construction, conversion & renovation",30079642,15/11/2022,202210,965.00,133267,Equans Services Ltd
"Housing, Highways and Transport",Capital Spend,Economy And Growth,Backlog Maintenance,Y1576,3a Townhall Sq (Former Registr,C01009,"New Construction, conversion & renovation",30079650,15/11/2022,202210,385.00,133267,Equans Services Ltd
"Housing, Highways and Transport",Revenue Budgets,Economy And Growth,Facilities Management,A0297,Nbpcc Premises,A20015,Security / Surveillance Equipment Maintenance,30079659,15/11/2022,202210,"2,490.00",133267,Equans Services Ltd
"Housing, Highways and Transport",Capital Spend,Economy And Growth,Hps-Disabled Fac. Grants,Y0436,Disab Facil Grant Mandatory,C01012,Payment of Grants/Advances,30074970,16/11/2022,202210,"4,725.00",112666,Obam Lift Services Ltd
"Housing, Highways and Transport",Revenue Budgets,Economy And Growth,Facilities Management,A0981,Facilities Management,A27010,Contract Cleaning,30078882,17/11/2022,202210,"46,084.01",149644,Kingdom Cleaning Limited
"Housing, Highways and Transport",Revenue Budgets,Economy And Growth,Facilities Management,A0981,Facilities Management,A27010,Contract Cleaning,30078912,17/11/2022,202210,"46,084.01",149644,Kingdom Cleaning Limited
"Housing, Highways and Transport",Revenue Budgets,Economy And Growth,Home Options & Hous Rel Supp,A0953,Home Options,A56000,Other Establishments,30074357,21/11/2022,202210,905.00,REDACTED PERSONAL INFORMATION,REDACTED PERSONAL INFORMATION
"Housing, Highways and Transport",Capital Spend,Economy And Growth,A18 Laceby To Ludborough,Y1689,A18 Laceby To Ludborugh,C01009,"New Construction, conversion & renovation",30079171,22/11/2022,202210,"4,912.50",128602,Oneway Tm Limited
"Housing, Highways and Transport",Capital Spend,Economy And Growth,Hps-Disabled Fac. Grants,Y0436,Disab Facil Grant Mandatory,C01012,Payment of Grants/Advances,30078569,23/11/2022,202210,"2,000.00",136453,Jc Pomfret Construction Ltd
"Housing, Highways and Transport",Capital Spend,Economy And Growth,Heritage Assets At Risk,Y1714,Holme Hill School (Edc),C01009,"New Construction, conversion & renovation",30079077,23/11/2022,202210,"10,000.00",133267,Equans Services Ltd
"Housing, Highways and Transport",Capital Spend,Economy And Growth,Backlog Maintenance,Y1669,Auditorium Backlog Maint,C01011,External Professional Fees,30079623,23/11/2022,202210,"1,750.00",133267,Equans Services Ltd
"Housing, Highways and Transport",Revenue Budgets,Economy And Growth,Car Parks,A1219,Car Parks Works,A49105,Other Supplies & Services,30079645,23/11/2022,202210,500.00,133267,Equans Services Ltd
"Housing, Highways and Transport",Capital Spend,Economy And Growth,Hps-Disabled Fac. Grants,Y0436,Disab Facil Grant Mandatory,C01012,Payment of Grants/Advances,30080866,24/11/2022,202210,"5,951.29",146557,R G Carter Lincoln Ltd
"Housing, Highways and Transport",Capital Spend,Economy And Growth,Backlog Maintenance,Y1667,Clee Lc Backlog Maintenance,C01009,"New Construction, conversion & renovation",30080245,28/11/2022,202210,"15,436.03",100786,Kes Building Maintenance Limited
"Housing, Highways and Transport",Capital Spend,Economy And Growth,Backlog Maintenance,Y1453,Health & Safe Emergency Work,C01009,"New Construction, conversion & renovation",10032847,29/11/2022,202210,-675.00,104090,E Bacon & Co Ltd
"Housing, Highways and Transport",Capital Spend,Economy And Growth,Backlog Maintenance,Y1453,Health & Safe Emergency Work,C01009,"New Construction, conversion & renovation",30075082,29/11/2022,202210,675.00,104090,E Bacon & Co Ltd
"Housing, Highways and Transport",Capital Spend,Economy And Growth,Backlog Maintenance,Y1453,Health & Safe Emergency Work,C01009,"New Construction, conversion & renovation",30075409,29/11/2022,202210,675.00,104090,E Bacon & Co Ltd
"Housing, Highways and Transport",Capital Spend,Economy And Growth,Local Transport Plan Schemes,Y0260,Involve Inform Encourage,C01009,"New Construction, conversion & renovation",30076249,29/11/2022,202210,"4,052.00",128602,Oneway Tm Limited
"Housing, Highways and Transport",Capital Spend,Economy And Growth,Gllep Junction Improvement,Y1694,Toll Bar Junction Improvement,C01011,External Professional Fees,30078443,29/11/2022,202210,"6,566.00",128602,Oneway Tm Limited
"Housing, Highways and Transport",Capital Spend,Economy And Growth,Hps-Disabled Fac. Grants,Y1793,Equipment Store,C01006,Purchase of Vehicles & Plant,30080460,29/11/2022,202210,"3,580.00",146221,Katnic Ltd
"Housing, Highways and Transport",Capital Spend,Economy And Growth,Hps-Disabled Fac. Grants,Y0436,Disab Facil Grant Mandatory,C01012,Payment of Grants/Advances,30077200,30/11/2022,202210,"10,073.96",136453,Jc Pomfret Construction Ltd
"Housing, Highways and Transport",Capital Spend,Economy And Growth,Backlog Maintenance,Y1667,Clee Lc Backlog Maintenance,C01009,"New Construction, conversion & renovation",30077520,30/11/2022,202210,"49,607.37",1004655,Reflex Sports Ltd
"Housing, Highways and Transport",Revenue Budgets,Economy And Growth,Facilities Management,A0981,Facilities Management,A27010,Contract Cleaning,30078235,30/11/2022,202210,"46,084.01",149644,Kingdom Cleaning Limited
"Housing, Highways and Transport",Revenue Budgets,Economy And Growth,Facilities Management,A0981,Facilities Management,A27010,Contract Cleaning,30078998,30/11/2022,202210,"-4,255.51",149644,Kingdom Cleaning Limited
"Housing, Highways and Transport",Revenue Budgets,Economy And Growth,Facilities Management,A0981,Facilities Management,A27010,Contract Cleaning,30079001,30/11/2022,202210,"-4,255.51",149644,Kingdom Cleaning Limited
"Housing, Highways and Transport",Revenue Budgets,Economy And Growth,Facilities Management,A0981,Facilities Management,A27010,Contract Cleaning,30079012,30/11/2022,202210,"-4,255.51",149644,Kingdom Cleaning Limited
"Housing, Highways and Transport",Capital Spend,Economy And Growth,Hps-Disabled Fac. Grants,Y0436,Disab Facil Grant Mandatory,C01012,Payment of Grants/Advances,30072861,01/12/2022,202210,"2,866.00",131392,Dh2 Solutions Ltd
"Housing, Highways and Transport",Revenue Budgets,Economy And Growth,Home Options & Hous Rel Supp,A0956,Bed & Breakfast,A22005,Building Rents,30075090,01/12/2022,202210,"1,728.36",REDACTED PERSONAL INFORMATION,REDACTED PERSONAL INFORMATION
"Housing, Highways and Transport",Capital Spend,Economy And Growth,Hps-Disabled Fac. Grants,Y0436,Disab Facil Grant Mandatory,C01012,Payment of Grants/Advances,30072729,02/12/2022,202210,"3,638.82",146557,R G Carter Lincoln Ltd
"Housing, Highways and Transport",Capital Spend,Economy And Growth,Hps-Disabled Fac. Grants,Y0436,Disab Facil Grant Mandatory,C01012,Payment of Grants/Advances,30073130,06/12/2022,202210,"10,003.13",146557,R G Carter Lincoln Ltd
"Housing, Highways and Transport",Revenue Budgets,Economy And Growth,Supporting People,A1663,Syrian Refugees Resettlement,A56000,Other Establishments,30073807,06/12/2022,202210,"2,026.00",144120,Learning4life-Gy-Cic
"Housing, Highways and Transport",Revenue Budgets,Economy And Growth,Home Options & Hous Rel Supp,A0953,Home Options,A56000,Other Establishments,30070696,09/12/2022,202210,400.00,REDACTED PERSONAL INFORMATION,REDACTED PERSONAL INFORMATION
"Housing, Highways and Transport",Revenue Budgets,Economy And Growth,Facilities Management,A0317,Central Cc Premises,A27010,Contract Cleaning,30074314,12/12/2022,202210,"1,950.40",147934,For Under Fives Central Childrens Centre
"Housing, Highways and Transport",Capital Spend,Economy And Growth,Local Transport Plan Schemes,Y0065,Imp To Prow,C01009,"New Construction, conversion & renovation",30074923,12/12/2022,202210,"41,815.07",127459,Pbs Construction (North East) Ltd
"Housing, Highways and Transport",Capital Spend,Economy And Growth,Hps-Disabled Fac. Grants,Y0436,Disab Facil Grant Mandatory,C01012,Payment of Grants/Advances,30074948,12/12/2022,202210,"2,525.00",101317,Dolphin Mobility East Midlands Ltd
"Housing, Highways and Transport",Capital Spend,Economy And Growth,Hps-Disabled Fac. Grants,Y0436,Disab Facil Grant Mandatory,C01012,Payment of Grants/Advances,30076884,12/12/2022,202210,"15,497.37",120159,Able 4 Enterprise Ltd
"Housing, Highways and Transport",Capital Spend,Economy And Growth,Accelerated Cons Funding,Y1796,Acc Cons Funding Western,C01009,"New Construction, conversion & renovation",30068751,13/12/2022,202210,"11,600.00",146319,Cole Easdon Consultants
"Housing, Highways and Transport",Capital Spend,Economy And Growth,Hps-Disabled Fac. Grants,Y0436,Disab Facil Grant Mandatory,C01012,Payment of Grants/Advances,30072815,13/12/2022,202210,"8,715.00",112666,Obam Lift Services Ltd
"Housing, Highways and Transport",Capital Spend,Economy And Growth,Changing Places Fund,Y1882,Changing Places Fund,C01011,External Professional Fees,30073255,13/12/2022,202210,"1,560.00",133267,Equans Services Ltd
"Housing, Highways and Transport",Capital Spend,Economy And Growth,Hps-Disabled Fac. Grants,Y0436,Disab Facil Grant Mandatory,C01012,Payment of Grants/Advances,30073279,13/12/2022,202210,"6,774.00",112666,Obam Lift Services Ltd
"Housing, Highways and Transport",Revenue Budgets,Economy And Growth,Facilities Management,A0321,Highgate Cc Premises,A20005,"Property Repairs, Maintenance & Alterations",30074215,13/12/2022,202210,275.00,133267,Equans Services Ltd
"Housing, Highways and Transport",Revenue Budgets,Economy And Growth,Facilities Management,A0318,Broadway Cc Premises,A20005,"Property Repairs, Maintenance & Alterations",30074216,13/12/2022,202210,696.67,133267,Equans Services Ltd
"Housing, Highways and Transport",Revenue Budgets,Economy And Growth,Facilities Management,A0320,Immingham Cc Premises,A20005,"Property Repairs, Maintenance & Alterations",30074223,13/12/2022,202210,488.98,133267,Equans Services Ltd
"Housing, Highways and Transport",Revenue Budgets,Economy And Growth,Facilities Management,A0322,Queensway Cc Premises,A20005,"Property Repairs, Maintenance & Alterations",30074225,13/12/2022,202210,"1,977.50",133267,Equans Services Ltd
"Housing, Highways and Transport",Revenue Budgets,Economy And Growth,Facilities Management,A0316,West Marsh Cc Premises,A20005,"Property Repairs, Maintenance & Alterations",30074238,13/12/2022,202210,"1,067.17",133267,Equans Services Ltd
"Housing, Highways and Transport",Revenue Budgets,Economy And Growth,Facilities Management,A0297,Nbpcc Premises,A20005,"Property Repairs, Maintenance & Alterations",30074240,13/12/2022,202210,"4,710.34",133267,Equans Services Ltd
"Housing, Highways and Transport",Revenue Budgets,Economy And Growth,Facilities Management,A0297,Nbpcc Premises,A44037,Inspection Fees,30074240,13/12/2022,202210,471.03,133267,Equans Services Ltd
"Housing, Highways and Transport",Revenue Budgets,Economy And Growth,Facilities Management,A0323,Riverside Cc Premises,A20005,"Property Repairs, Maintenance & Alterations",30074242,13/12/2022,202210,"1,166.08",133267,Equans Services Ltd
"Housing, Highways and Transport",Revenue Budgets,Economy And Growth,Facilities Management,A0324,Scartho Cc Premises,A20005,"Property Repairs, Maintenance & Alterations",30074249,13/12/2022,202210,348.43,133267,Equans Services Ltd
"Housing, Highways and Transport",Capital Spend,Economy And Growth,Hps-Disabled Fac. Grants,Y0436,Disab Facil Grant Mandatory,C01012,Payment of Grants/Advances,30074962,13/12/2022,202210,"1,742.00",112666,Obam Lift Services Ltd
"Housing, Highways and Transport",Capital Spend,Economy And Growth,Hps-Disabled Fac. Grants,Y0436,Disab Facil Grant Mandatory,C01012,Payment of Grants/Advances,30075674,13/12/2022,202210,"3,080.00",112666,Obam Lift Services Ltd
"Housing, Highways and Transport",Revenue Budgets,Economy And Growth,Home Options & Hous Rel Supp,A0955,Crisis Accomodation,A22020,Rental Property Service Charge,30076980,13/12/2022,202210,"27,089.78",133267,Equans Services Ltd
"Housing, Highways and Transport",Capital Spend,Economy And Growth,Gy and Imm Flood Innovation Funding,Y1853,Gy & Imm Flood Innov Funding,C01011,External Professional Fees,30078994,13/12/2022,202210,"30,000.00",133267,Equans Services Ltd
"Housing, Highways and Transport",Capital Spend,Economy And Growth,Backlog Maintenance,Y1458,Gy Town Hall Backlog Maint,C01011,External Professional Fees,30078999,13/12/2022,202210,"5,400.00",133267,Equans Services Ltd
"Housing, Highways and Transport",Capital Spend,Economy And Growth,Backlog Maintenance,Y1669,Auditorium Backlog Maint,C01011,External Professional Fees,30079016,13/12/2022,202210,"3,000.00",133267,Equans Services Ltd
"Housing, Highways and Transport",Capital Spend,Economy And Growth,Local Transport Plan Schemes,Y1826,DFT Active Travel Fund,C01014,Other Capital Costs,30079074,13/12/2022,202210,"1,164.00",133267,Equans Services Ltd
"Housing, Highways and Transport",Capital Spend,Economy And Growth,Local Transport Plan Schemes,Y1826,DFT Active Travel Fund,C01014,Other Capital Costs,30079074,13/12/2022,202210,"1,836.00",133267,Equans Services Ltd
"Housing, Highways and Transport",Capital Spend,Economy And Growth,Heritage Assets At Risk,Y1714,Holme Hill School (Edc),C01009,"New Construction, conversion & renovation",30079075,13/12/2022,202210,"10,000.00",133267,Equans Services Ltd
"Housing, Highways and Transport",Capital Spend,Economy And Growth,Local Transport Plan Schemes,Y0201,Ltp3 Monitoring,C01014,Other Capital Costs,30079082,13/12/2022,202210,"30,196.43",133267,Equans Services Ltd
"Housing, Highways and Transport",Capital Spend,Economy And Growth,Backlog Maintenance,Y1460,Condition Work Ration Plan,C01011,External Professional Fees,30079085,13/12/2022,202210,"14,901.93",133267,Equans Services Ltd
"Housing, Highways and Transport",Capital Spend,Economy And Growth,Local Transport Plan Schemes,Y1826,DFT Active Travel Fund,C01014,Other Capital Costs,30079086,13/12/2022,202210,"3,535.71",133267,Equans Services Ltd
"Housing, Highways and Transport",Revenue Budgets,Economy And Growth,Transport Policy,A1274,Transport,A57126,Concessionary Fares,30079118,13/12/2022,202210,648.38,101786,Grayscroft Bus Services Limited
"Housing, Highways and Transport",Capital Spend,Economy And Growth,Backlog Maintenance,Y1816,N & Bp Family Hub Backlog,C01009,"New Construction, conversion & renovation",30079663,13/12/2022,202210,628.94,133267,Equans Services Ltd
"Housing, Highways and Transport",Capital Spend,Economy And Growth,Backlog Maintenance,Y1453,Health & Safe Emergency Work,C01009,"New Construction, conversion & renovation",30079668,13/12/2022,202210,585.00,133267,Equans Services Ltd
"Housing, Highways and Transport",Capital Spend,Economy And Growth,Backlog Maintenance,Y1640,Gy Leisure Backlog Maint,C01011,External Professional Fees,30079682,13/12/2022,202210,"2,400.00",133267,Equans Services Ltd
"Housing, Highways and Transport",Capital Spend,Economy And Growth,Backlog Maintenance,Y1669,Auditorium Backlog Maint,C01011,External Professional Fees,30079684,13/12/2022,202210,810.00,133267,Equans Services Ltd
"Housing, Highways and Transport",Capital Spend,Economy And Growth,Backlog Maintenance,Y1440,Nfhc Backlog Maint,C01011,External Professional Fees,30079686,13/12/2022,202210,"1,000.00",133267,Equans Services Ltd
"Housing, Highways and Transport",Revenue Budgets,Economy And Growth,Planning,A1221,Planning,A44065,Consultancy Services,30073706,14/12/2022,202210,"2,000.00",102475,Landmark Chambers
"Housing, Highways and Transport",Capital Spend,Economy And Growth,Green Homes LAD Phase 2,Y1838,Green Homes LAD Phase 2,C01014,Other Capital Costs,30079394,16/12/2022,202210,427.40,138575,Yes Energy Solutions
"Housing, Highways and Transport",Capital Spend,Economy And Growth,Green Homes LAD Phase 2,Y1838,Green Homes LAD Phase 2,C01012,Payment of Grants/Advances,30079409,16/12/2022,202210,"-1,025.68",138575,Yes Energy Solutions
"Housing, Highways and Transport",Revenue Budgets,Economy And Growth,Home Options & Hous Rel Supp,A0955,Crisis Accomodation,A22020,Rental Property Service Charge,30074220,17/12/2022,202210,915.87,100894,North East Lincolnshire Council
"Housing, Highways and Transport",Revenue Budgets,Economy And Growth,Facilities Management,A1111,Gilbey Road Depot,A21015,Heating Oil,30073340,19/12/2022,202210,"1,819.48",138198,Your Nrg
"Housing, Highways and Transport",Revenue Budgets,Economy And Growth,Facilities Management,A1059,Doughty Road Depot,A21015,Heating Oil,30073359,19/12/2022,202210,"1,850.00",138198,Your Nrg
"Housing, Highways and Transport",Revenue Budgets,Economy And Growth,Home Options & Hous Rel Supp,A0955,Crisis Accomodation,A22020,Rental Property Service Charge,30073570,19/12/2022,202210,697.21,108375,Sse (Southern Electric)
"Housing, Highways and Transport",Capital Spend,Economy And Growth,Local Transport Plan Schemes,Y0405,Speed Management,C01009,"New Construction, conversion & renovation",30070459,20/12/2022,202210,"14,229.00",100841,J Mccann & Co Ltd
"Housing, Highways and Transport",Revenue Budgets,Economy And Growth,Home Options & Hous Rel Supp,A0953,Home Options,A56000,Other Establishments,30070681,20/12/2022,202210,883.00,REDACTED PERSONAL INFORMATION,REDACTED PERSONAL INFORMATION
"Housing, Highways and Transport",Capital Spend,Economy And Growth,Hps-Disabled Fac. Grants,Y0436,Disab Facil Grant Mandatory,C01012,Payment of Grants/Advances,30072741,20/12/2022,202210,"1,732.00",112666,Obam Lift Services Ltd
"Housing, Highways and Transport",Capital Spend,Economy And Growth,Hps-Disabled Fac. Grants,Y0436,Disab Facil Grant Mandatory,C01012,Payment of Grants/Advances,30072813,20/12/2022,202210,"8,338.59",145694,Askerton Homes Ltd
"Housing, Highways and Transport",Capital Spend,Economy And Growth,Hps-Disabled Fac. Grants,Y0436,Disab Facil Grant Mandatory,C01012,Payment of Grants/Advances,30073214,20/12/2022,202210,"19,536.02",145694,Askerton Homes Ltd
"Housing, Highways and Transport",Capital Spend,Economy And Growth,Hps-Disabled Fac. Grants,Y0436,Disab Facil Grant Mandatory,C01012,Payment of Grants/Advances,30073291,20/12/2022,202210,"4,660.00",112666,Obam Lift Services Ltd
"Housing, Highways and Transport",Capital Spend,Economy And Growth,Hps-Disabled Fac. Grants,Y0436,Disab Facil Grant Mandatory,C01012,Payment of Grants/Advances,30076175,20/12/2022,202210,"14,217.76",145694,Askerton Homes Ltd
"Housing, Highways and Transport",Revenue Budgets,Economy And Growth,Home Options & Hous Rel Supp,A0953,Home Options,A56000,Other Establishments,30076892,20/12/2022,202210,"1,118.18",122711,He Words
"Housing, Highways and Transport",Capital Spend,Economy And Growth,Hps-Disabled Fac. Grants,Y0436,Disab Facil Grant Mandatory,C01012,Payment of Grants/Advances,30073003,21/12/2022,202210,934.50,100786,Kes Building Maintenance Limited
"Housing, Highways and Transport",Capital Spend,Economy And Growth,Hps-Disabled Fac. Grants,Y0436,Disab Facil Grant Mandatory,C01012,Payment of Grants/Advances,30074959,21/12/2022,202210,"10,545.13",120159,Able 4 Enterprise Ltd
"Housing, Highways and Transport",Revenue Budgets,Economy And Growth,Supporting People,A0762,Housing Related Support,A47005,"Grants, Contributions & Donations",30076856,21/12/2022,202210,"4,664.00",1002339,NHS Humber and North Yorkshire ICB
"Housing, Highways and Transport",Capital Spend,Economy And Growth,Hps-Disabled Fac. Grants,Y0436,Disab Facil Grant Mandatory,C01012,Payment of Grants/Advances,30081057,21/12/2022,202210,"24,507.24",103981,Vic Hansen Building & Joinery Ltd
"Housing, Highways and Transport",Revenue Budgets,Economy And Growth,Supporting People,A1663,Syrian Refugees Resettlement,A56000,Other Establishments,30072447,22/12/2022,202210,"1,500.00",REDACTED PERSONAL INFORMATION,REDACTED PERSONAL INFORMATION
"Housing, Highways and Transport",Revenue Budgets,Economy And Growth,Supporting People,A1663,Syrian Refugees Resettlement,A56000,Other Establishments,30072618,22/12/2022,202210,"1,500.00",146215,Bwpm Ltd
"Housing, Highways and Transport",Revenue Budgets,Economy And Growth,Facilities Management,A1059,Doughty Road Depot,A21015,Heating Oil,30073209,22/12/2022,202210,920.20,138198,Your Nrg
"Housing, Highways and Transport",Revenue Budgets,Economy And Growth,Home Options & Hous Rel Supp,A0955,Crisis Accomodation,A22020,Rental Property Service Charge,30074221,22/12/2022,202210,378.35,108375,Sse (Southern Electric)
"Housing, Highways and Transport",Revenue Budgets,Economy And Growth,Home Options & Hous Rel Supp,A0955,Crisis Accomodation,A22020,Rental Property Service Charge,30074235,22/12/2022,202210,263.22,108375,Sse (Southern Electric)
"Housing, Highways and Transport",Revenue Budgets,Economy And Growth,Home Options & Hous Rel Supp,A0953,Home Options,A56000,Other Establishments,30075235,22/12/2022,202210,700.00,REDACTED PERSONAL INFORMATION,REDACTED PERSONAL INFORMATION
"Housing, Highways and Transport",Revenue Budgets,Economy And Growth,Facilities Management,A1088,Peoples Park,A57115,Payments to Private Contractors,30077861,22/12/2022,202210,"1,764.58",142148,Danfo (Uk) Limited
"Housing, Highways and Transport",Revenue Budgets,Economy And Growth,Facilities Management,A1112,Market Hall Toilets,A57115,Payments to Private Contractors,30077861,22/12/2022,202210,"2,184.42",142148,Danfo (Uk) Limited
"Housing, Highways and Transport",Revenue Budgets,Economy And Growth,Facilities Management,A1109,St Peters Avenue Toilets,A57115,Payments to Private Contractors,30077861,22/12/2022,202210,"2,200.92",142148,Danfo (Uk) Limited
"Housing, Highways and Transport",Revenue Budgets,Economy And Growth,Facilities Management,A1106,Kingsway Toilets,A57115,Payments to Private Contractors,30077861,22/12/2022,202210,"2,618.67",142148,Danfo (Uk) Limited
"Housing, Highways and Transport",Revenue Budgets,Economy And Growth,Facilities Management,A1107,Sea Road Toilets,A57115,Payments to Private Contractors,30077861,22/12/2022,202210,"4,185.08",142148,Danfo (Uk) Limited
"Housing, Highways and Transport",Revenue Budgets,Economy And Growth,Supporting People,A1831,DA Safe Accommodation Duty,A47005,"Grants, Contributions & Donations",30072467,28/12/2022,202210,"11,000.00",100326,Womens Aid
"Housing, Highways and Transport",Capital Spend,Economy And Growth,Hps-Disabled Fac. Grants,Y1793,Equipment Store,C01006,Purchase of Vehicles & Plant,30073320,28/12/2022,202210,"3,654.00",139289,Sumed International Uk Ltd
"Housing, Highways and Transport",Revenue Budgets,Economy And Growth,Facilities Management,A0982,REDACT PERSONAL INFORMATION,A24005,Water Services,30074297,28/12/2022,202210,262.70,100508,Anglian Water
"Housing, Highways and Transport",Capital Spend,Economy And Growth,Hps-Disabled Fac. Grants,Y1855,DFG - Strategic Housing,C01009,"New Construction, conversion & renovation",30073470,29/12/2022,202210,"4,604.83",1001038,Northern Lincolnshire and Goole NHS Foundation Trust
"Housing, Highways and Transport",Revenue Budgets,Economy And Growth,Facilities Management,A1864,Osbourne Street,A21005,Electricity,30074145,29/12/2022,202210,273.34,108375,Sse (Southern Electric)
"Housing, Highways and Transport",Revenue Budgets,Economy And Growth,Facilities Management,A1728,Estuary House,A21015,Heating Oil,30073307,30/12/2022,202210,820.20,138198,Your Nrg
"Housing, Highways and Transport",Revenue Budgets,Economy And Growth,Home Options & Hous Rel Supp,A0955,Crisis Accomodation,A22020,Rental Property Service Charge,30076137,30/12/2022,202210,618.60,REDACTED PERSONAL INFORMATION,REDACTED PERSONAL INFORMATION
"Housing, Highways and Transport",Capital Spend,Economy And Growth,Hps-Disabled Fac. Grants,Y0436,Disab Facil Grant Mandatory,C01012,Payment of Grants/Advances,30076384,30/12/2022,202210,"2,094.00",112666,Obam Lift Services Ltd
"Housing, Highways and Transport",Revenue Budgets,Economy And Growth,Home Options & Hous Rel Supp,A0955,Crisis Accomodation,A22020,Rental Property Service Charge,30080855,30/12/2022,202210,317.24,101712,British Gas
"Housing, Highways and Transport",Revenue Budgets,Economy And Growth,Transport Policy,A1803,DfT Active Travel Fund,A44942,Promotions and Events,30072958,31/12/2022,202210,300.00,141974,Reach Publishing Services Limited
"Housing, Highways and Transport",Revenue Budgets,Economy And Growth,Commercial Estate,A1178,King Edward St Ent. Centre,A27015,Refuse Collection,30074151,31/12/2022,202210,542.63,101433,Ellgia Limited
"Housing, Highways and Transport",Revenue Budgets,Economy And Growth,Commercial Estate,A1175,Europarc Innovation Centre,A27015,Refuse Collection,30074158,31/12/2022,202210,300.46,101433,Ellgia Limited
"Housing, Highways and Transport",Revenue Budgets,Economy And Growth,Home Options & Hous Rel Supp,A0953,Home Options,A56000,Other Establishments,30075236,31/12/2022,202210,313.60,REDACTED PERSONAL INFORMATION,REDACTED PERSONAL INFORMATION
"Housing, Highways and Transport",Revenue Budgets,Economy And Growth,Home Options & Hous Rel Supp,A0956,Bed & Breakfast,A22005,Building Rents,30077734,31/12/2022,202210,318.84,REDACTED PERSONAL INFORMATION,REDACTED PERSONAL INFORMATION
"Housing, Highways and Transport",Revenue Budgets,Economy And Growth,Home Options & Hous Rel Supp,A0956,Bed & Breakfast,A22005,Building Rents,30077735,31/12/2022,202210,637.68,REDACTED PERSONAL INFORMATION,REDACTED PERSONAL INFORMATION
"Housing, Highways and Transport",Revenue Budgets,Economy And Growth,Home Options & Hous Rel Supp,A0956,Bed & Breakfast,A22005,Building Rents,30077735,31/12/2022,202210,"1,115.94",REDACTED PERSONAL INFORMATION,REDACTED PERSONAL INFORMATION
"Housing, Highways and Transport",Revenue Budgets,Economy And Growth,Home Options & Hous Rel Supp,A0956,Bed & Breakfast,A22005,Building Rents,30077739,31/12/2022,202210,637.68,REDACTED PERSONAL INFORMATION,REDACTED PERSONAL INFORMATION
"Housing, Highways and Transport",Revenue Budgets,Economy And Growth,Home Options & Hous Rel Supp,A0956,Bed & Breakfast,A22005,Building Rents,30077744,31/12/2022,202210,"1,594.20",REDACTED PERSONAL INFORMATION,REDACTED PERSONAL INFORMATION
"Housing, Highways and Transport",Revenue Budgets,Economy And Growth,Home Options & Hous Rel Supp,A0956,Bed & Breakfast,A22005,Building Rents,30077746,31/12/2022,202210,956.52,REDACTED PERSONAL INFORMATION,REDACTED PERSONAL INFORMATION
"Housing, Highways and Transport",Revenue Budgets,Economy And Growth,Facilities Management,A0981,Facilities Management,A27010,Contract Cleaning,30078904,31/12/2022,202210,"41,828.52",149644,Kingdom Cleaning Limited
"Housing, Highways and Transport",Capital Spend,Economy And Growth,Corporation Rd Bridge Refurb,Y1803,Corporation Rd Bridge Refurb,C01009,"New Construction, conversion & renovation",30079462,31/12/2022,202210,"79,897.91",1004690,C Spencer Ltd
"Housing, Highways and Transport",Capital Spend,Economy And Growth,Hps-Disabled Fac. Grants,Y1855,DFG - Strategic Housing,C01012,Payment of Grants/Advances,30073566,01/01/2023,202210,"7,515.00",100908,North East Lincs Carelink
"Housing, Highways and Transport",Revenue Budgets,Economy And Growth,Home Options & Hous Rel Supp,A0956,Bed & Breakfast,A22005,Building Rents,30074707,01/01/2023,202210,"2,610.00",REDACTED PERSONAL INFORMATION,REDACTED PERSONAL INFORMATION
"Housing, Highways and Transport",Revenue Budgets,Economy And Growth,Home Options & Hous Rel Supp,A0956,Bed & Breakfast,A22005,Building Rents,30074713,01/01/2023,202210,270.00,REDACTED PERSONAL INFORMATION,REDACTED PERSONAL INFORMATION
"Housing, Highways and Transport",Revenue Budgets,Economy And Growth,Home Options & Hous Rel Supp,A0956,Bed & Breakfast,A22005,Building Rents,30074717,01/01/2023,202210,950.00,REDACTED PERSONAL INFORMATION,REDACTED PERSONAL INFORMATION
"Housing, Highways and Transport",Revenue Budgets,Economy And Growth,Home Options & Hous Rel Supp,A0956,Bed & Breakfast,A22005,Building Rents,30074720,01/01/2023,202210,"2,790.00",REDACTED PERSONAL INFORMATION,REDACTED PERSONAL INFORMATION
"Housing, Highways and Transport",Revenue Budgets,Economy And Growth,Home Options & Hous Rel Supp,A0956,Bed & Breakfast,A22005,Building Rents,30074727,01/01/2023,202210,750.00,REDACTED PERSONAL INFORMATION,REDACTED PERSONAL INFORMATION
"Housing, Highways and Transport",Revenue Budgets,Economy And Growth,Home Options & Hous Rel Supp,A0956,Bed & Breakfast,A22005,Building Rents,30074732,01/01/2023,202210,750.00,REDACTED PERSONAL INFORMATION,REDACTED PERSONAL INFORMATION
"Housing, Highways and Transport",Revenue Budgets,Economy And Growth,Home Options & Hous Rel Supp,A0956,Bed & Breakfast,A22005,Building Rents,30074740,01/01/2023,202210,"2,320.00",REDACTED PERSONAL INFORMATION,REDACTED PERSONAL INFORMATION
"Housing, Highways and Transport",Revenue Budgets,Economy And Growth,Home Options & Hous Rel Supp,A0953,Home Options,A47005,"Grants, Contributions & Donations",30074930,01/01/2023,202210,"87,062.50",REDACTED PERSONAL INFORMATION,REDACTED PERSONAL INFORMATION
"Housing, Highways and Transport",Revenue Budgets,Economy And Growth,Transport Policy,A1274,Transport,A57126,Concessionary Fares,30072727,03/01/2023,202210,"2,596.90",100980,Gy Clps & District Dial A Ride
"Housing, Highways and Transport",Revenue Budgets,Economy And Growth,Home Options & Hous Rel Supp,A0955,Crisis Accomodation,A22005,Building Rents,30072796,03/01/2023,202210,"2,337.72",REDACTED PERSONAL INFORMATION,REDACTED PERSONAL INFORMATION
"Housing, Highways and Transport",Revenue Budgets,Economy And Growth,Home Options & Hous Rel Supp,A0955,Crisis Accomodation,A47005,"Grants, Contributions & Donations",30072800,03/01/2023,202210,"7,000.00",146134,Hull & East Yorkshire Mind
"Housing, Highways and Transport",Revenue Budgets,Economy And Growth,Streetworks Network Management,A1818,Street Licensing,A45040,IT Software Purchase,30073321,03/01/2023,202210,"2,500.00",148396,Kainos Software Limited
"Housing, Highways and Transport",Revenue Budgets,Economy And Growth,Home Options & Hous Rel Supp,A0955,Crisis Accomodation,A22020,Rental Property Service Charge,30074260,03/01/2023,202210,353.92,108375,Sse (Southern Electric)
"Housing, Highways and Transport",Revenue Budgets,Economy And Growth,Facilities Management,A1059,Doughty Road Depot,A21015,Heating Oil,30074817,03/01/2023,202210,"2,970.60",138198,Your Nrg
"Housing, Highways and Transport",Revenue Budgets,Economy And Growth,Facilities Management,A0981,Facilities Management,A27010,Contract Cleaning,30075225,03/01/2023,202210,"1,819.73",100554,Phs Group Ltd
"Housing, Highways and Transport",Revenue Budgets,Economy And Growth,Home Options & Hous Rel Supp,A0956,Bed & Breakfast,A22005,Building Rents,30076781,03/01/2023,202210,"2,015.00",REDACTED PERSONAL INFORMATION,REDACTED PERSONAL INFORMATION
"Housing, Highways and Transport",Revenue Budgets,Economy And Growth,Home Options & Hous Rel Supp,A0956,Bed & Breakfast,A22005,Building Rents,30076783,03/01/2023,202210,"1,430.00",REDACTED PERSONAL INFORMATION,REDACTED PERSONAL INFORMATION
"Housing, Highways and Transport",Revenue Budgets,Economy And Growth,Home Options & Hous Rel Supp,A0956,Bed & Breakfast,A22005,Building Rents,30076793,03/01/2023,202210,"2,015.00",REDACTED PERSONAL INFORMATION,REDACTED PERSONAL INFORMATION
"Housing, Highways and Transport",Revenue Budgets,Economy And Growth,Home Options & Hous Rel Supp,A0956,Bed & Breakfast,A22005,Building Rents,30076796,03/01/2023,202210,720.00,REDACTED PERSONAL INFORMATION,REDACTED PERSONAL INFORMATION
"Housing, Highways and Transport",Revenue Budgets,Economy And Growth,Home Options & Hous Rel Supp,A0956,Bed & Breakfast,A22005,Building Rents,30076859,03/01/2023,202210,"2,790.00",REDACTED PERSONAL INFORMATION,REDACTED PERSONAL INFORMATION
"Housing, Highways and Transport",Revenue Budgets,Economy And Growth,Home Options & Hous Rel Supp,A0956,Bed & Breakfast,A22005,Building Rents,30076863,03/01/2023,202210,720.00,REDACTED PERSONAL INFORMATION,REDACTED PERSONAL INFORMATION
"Housing, Highways and Transport",Revenue Budgets,Economy And Growth,Home Options & Hous Rel Supp,A0956,Bed & Breakfast,A22005,Building Rents,30076889,03/01/2023,202210,260.00,REDACTED PERSONAL INFORMATION,REDACTED PERSONAL INFORMATION
"Housing, Highways and Transport",Revenue Budgets,Economy And Growth,Home Options & Hous Rel Supp,A0956,Bed & Breakfast,A22005,Building Rents,30076905,03/01/2023,202210,325.00,REDACTED PERSONAL INFORMATION,REDACTED PERSONAL INFORMATION
"Housing, Highways and Transport",Revenue Budgets,Economy And Growth,Home Options & Hous Rel Supp,A0956,Bed & Breakfast,A22005,Building Rents,30076913,03/01/2023,202210,"2,015.00",REDACTED PERSONAL INFORMATION,REDACTED PERSONAL INFORMATION
"Housing, Highways and Transport",Revenue Budgets,Economy And Growth,Strategic Housing,A1714,Estates Regeneration Income,A44065,Consultancy Services,30073162,04/01/2023,202210,600.00,1003552,Kabsec Consultancy Ltd
"Housing, Highways and Transport",Revenue Budgets,Economy And Growth,Home Options & Hous Rel Supp,A0953,Home Options,A56000,Other Establishments,30073256,04/01/2023,202210,726.75,REDACTED PERSONAL INFORMATION,REDACTED PERSONAL INFORMATION
"Housing, Highways and Transport",Capital Spend,Economy And Growth,Hps-Disabled Fac. Grants,Y1793,Equipment Store,C01012,Payment of Grants/Advances,30074181,04/01/2023,202210,"49,282.00",100908,North East Lincs Carelink
"Housing, Highways and Transport",Revenue Budgets,Economy And Growth,Facilities Management,A0316,West Marsh Cc Premises,A21010,Gas,30074267,04/01/2023,202210,337.84,112680,Macaulay Primary Academy
"Housing, Highways and Transport",Capital Spend,Economy And Growth,Hps-Disabled Fac. Grants,Y0436,Disab Facil Grant Mandatory,C01012,Payment of Grants/Advances,30079311,04/01/2023,202210,"9,763.48",146603,Tspro Ltd
"Housing, Highways and Transport",Revenue Budgets,Economy And Growth,Home Options & Hous Rel Supp,A0953,Home Options,A56000,Other Establishments,30075238,05/01/2023,202210,700.00,REDACTED PERSONAL INFORMATION,REDACTED PERSONAL INFORMATION
"Housing, Highways and Transport",Capital Spend,Economy And Growth,Local Transport Plan Schemes,Y0389,Ltp Unclassified Roads,C01009,"New Construction, conversion & renovation",30075716,05/01/2023,202210,"7,727.00",128602,Oneway Tm Limited
"Housing, Highways and Transport",Revenue Budgets,Economy And Growth,Supporting People,A1831,DA Safe Accommodation Duty,A47005,"Grants, Contributions & Donations",30076474,05/01/2023,202210,"21,800.00",100326,Womens Aid
"Housing, Highways and Transport",Revenue Budgets,Economy And Growth,Transport Policy,A1274,Transport,A33005,Public Transport - Non Staff,30077580,05/01/2023,202210,"1,720.00",101404,Stagecoach Services
"Housing, Highways and Transport",Capital Spend,Economy And Growth,Hps-Disabled Fac. Grants,Y0436,Disab Facil Grant Mandatory,C01012,Payment of Grants/Advances,30079320,05/01/2023,202210,"9,884.37",146603,Tspro Ltd
"Housing, Highways and Transport",Revenue Budgets,Economy And Growth,Street Lighting,A0678,Illuminations,A20005,"Property Repairs, Maintenance & Alterations",30074345,06/01/2023,202210,692.04,100841,J Mccann & Co Ltd
"Housing, Highways and Transport",Revenue Budgets,Economy And Growth,Street Lighting,A1262,Street Lighting Non-Principal,A40035,PAT Testing,30074345,06/01/2023,202210,"6,778.00",100841,J Mccann & Co Ltd
"Housing, Highways and Transport",Revenue Budgets,Economy And Growth,Street Lighting,A1261,Street Lighting Principal,A44130,Street Lighting,30074345,06/01/2023,202210,"1,783.21",100841,J Mccann & Co Ltd
"Housing, Highways and Transport",Revenue Budgets,Economy And Growth,Street Lighting,A1262,Street Lighting Non-Principal,A44130,Street Lighting,30074345,06/01/2023,202210,"8,383.19",100841,J Mccann & Co Ltd
"Housing, Highways and Transport",Revenue Budgets,Economy And Growth,Street Lighting,A1262,Street Lighting Non-Principal,A44131,Traffic Maintenance,30074345,06/01/2023,202210,342.23,100841,J Mccann & Co Ltd
"Housing, Highways and Transport",Revenue Budgets,Economy And Growth,Street Lighting,A1261,Street Lighting Principal,A44131,Traffic Maintenance,30074345,06/01/2023,202210,"2,300.53",100841,J Mccann & Co Ltd
"Housing, Highways and Transport",Revenue Budgets,Economy And Growth,Street Lighting,A1262,Street Lighting Non-Principal,A44131,Traffic Maintenance,30074345,06/01/2023,202210,"10,309.18",100841,J Mccann & Co Ltd
"Housing, Highways and Transport",Revenue Budgets,Economy And Growth,Street Lighting,A1259,Eng Cons-Street Lighting,A56000,Other Establishments,30074345,06/01/2023,202210,250.50,100841,J Mccann & Co Ltd
"Housing, Highways and Transport",Revenue Budgets,Economy And Growth,Street Lighting,A1262,Street Lighting Non-Principal,A56000,Other Establishments,30074345,06/01/2023,202210,729.85,100841,J Mccann & Co Ltd
"Housing, Highways and Transport",Revenue Budgets,Economy And Growth,Street Lighting,A1262,Street Lighting Non-Principal,A44130,Street Lighting,30074553,06/01/2023,202210,"2,508.01",100841,J Mccann & Co Ltd
"Housing, Highways and Transport",Revenue Budgets,Economy And Growth,Street Lighting,A1261,Street Lighting Principal,A56000,Other Establishments,30074553,06/01/2023,202210,418.00,100841,J Mccann & Co Ltd
"Housing, Highways and Transport",Revenue Budgets,Economy And Growth,Street Lighting,A1262,Street Lighting Non-Principal,A56000,Other Establishments,30074553,06/01/2023,202210,418.00,100841,J Mccann & Co Ltd
"Housing, Highways and Transport",Revenue Budgets,Economy And Growth,Home Options & Hous Rel Supp,A0953,Home Options,A56000,Other Establishments,30074911,06/01/2023,202210,368.00,REDACTED PERSONAL INFORMATION,REDACTED PERSONAL INFORMATION
"Housing, Highways and Transport",Revenue Budgets,Economy And Growth,Home Options & Hous Rel Supp,A0955,Crisis Accomodation,A22020,Rental Property Service Charge,30075219,06/01/2023,202210,930.95,REDACTED PERSONAL INFORMATION,REDACTED PERSONAL INFORMATION
"Housing, Highways and Transport",Revenue Budgets,Economy And Growth,Home Options & Hous Rel Supp,A0953,Home Options,A56000,Other Establishments,30077562,06/01/2023,202210,283.67,REDACTED PERSONAL INFORMATION,REDACTED PERSONAL INFORMATION
"Housing, Highways and Transport",Revenue Budgets,Economy And Growth,Transport Policy,A1274,Transport,A57125,Bus Services,30077559,07/01/2023,202210,"14,994.00",101404,Stagecoach Services
"Housing, Highways and Transport",Revenue Budgets,Economy And Growth,Home Options & Hous Rel Supp,A0955,Crisis Accomodation,A22020,Rental Property Service Charge,30076777,08/01/2023,202210,526.54,100508,Anglian Water
"Housing, Highways and Transport",Revenue Budgets,Economy And Growth,Commercial Estate,A1202,Adam Smith St Factory Units,A44037,Inspection Fees,30074724,09/01/2023,202210,400.00,149245,Gc Reports Ltd
"Housing, Highways and Transport",Capital Spend,Economy And Growth,Backlog Maintenance,Y1445,Gilbey Rd Depot Backlog Maint,C01009,"New Construction, conversion & renovation",30074733,09/01/2023,202210,879.08,105081,Mobile Mini Uk Ltd
"Housing, Highways and Transport",Revenue Budgets,Economy And Growth,Home Options & Hous Rel Supp,A0956,Bed & Breakfast,A22005,Building Rents,30076769,09/01/2023,202210,"1,133.33",REDACTED PERSONAL INFORMATION,REDACTED PERSONAL INFORMATION
"Housing, Highways and Transport",Revenue Budgets,Economy And Growth,Home Options & Hous Rel Supp,A0956,Bed & Breakfast,A22005,Building Rents,30076778,09/01/2023,202210,933.33,REDACTED PERSONAL INFORMATION,REDACTED PERSONAL INFORMATION
"Housing, Highways and Transport",Revenue Budgets,Economy And Growth,Home Options & Hous Rel Supp,A0956,Bed & Breakfast,A22005,Building Rents,30076937,09/01/2023,202210,750.00,REDACTED PERSONAL INFORMATION,REDACTED PERSONAL INFORMATION
"Housing, Highways and Transport",Revenue Budgets,Economy And Growth,Home Options & Hous Rel Supp,A0956,Bed & Breakfast,A22005,Building Rents,30076938,09/01/2023,202210,"2,100.00",REDACTED PERSONAL INFORMATION,REDACTED PERSONAL INFORMATION
"Housing, Highways and Transport",Revenue Budgets,Economy And Growth,Home Options & Hous Rel Supp,A0956,Bed & Breakfast,A22005,Building Rents,30076940,09/01/2023,202210,"1,800.00",REDACTED PERSONAL INFORMATION,REDACTED PERSONAL INFORMATION
"Housing, Highways and Transport",Capital Spend,Economy And Growth,Sustainable Warmth,Y1877,SW LAD3 HUG1,C01012,Payment of Grants/Advances,30075006,10/01/2023,202210,"2,765.00",138575,Yes Energy Solutions
"Housing, Highways and Transport",Capital Spend,Economy And Growth,Local Transport Plan Schemes,Y0260,Involve Inform Encourage,C01014,Other Capital Costs,30075100,10/01/2023,202210,"5,323.00",129985,Almega Promotional Gifts Ltd
"Housing, Highways and Transport",Revenue Budgets,Economy And Growth,Supporting People,A1663,Syrian Refugees Resettlement,A56000,Other Establishments,30075108,10/01/2023,202210,"2,026.00",144120,Learning4life-Gy-Cic
"Housing, Highways and Transport",Revenue Budgets,Economy And Growth,Commercial Estate,A1186,Grimsby Market,A27020,Cleaning Materials,30075669,10/01/2023,202210,292.22,100815,Peter Hogarth & Sons Ltd
"Housing, Highways and Transport",Revenue Budgets,Economy And Growth,Highways Dso,A1231,Highways Dso,A30015,Vehicle Fuel,30076247,10/01/2023,202210,"22,577.18",138198,Your Nrg
"Housing, Highways and Transport",Revenue Budgets,Economy And Growth,Home Options & Hous Rel Supp,A0955,Crisis Accomodation,A22020,Rental Property Service Charge,30076798,10/01/2023,202210,401.17,108375,Sse (Southern Electric)
"Housing, Highways and Transport",Revenue Budgets,Economy And Growth,Home Options & Hous Rel Supp,A0955,Crisis Accomodation,A22020,Rental Property Service Charge,30077289,10/01/2023,202210,779.21,108375,Sse (Southern Electric)
"Housing, Highways and Transport",Revenue Budgets,Economy And Growth,Home Options & Hous Rel Supp,A0955,Crisis Accomodation,A22020,Rental Property Service Charge,30079979,10/01/2023,202210,897.03,100894,North East Lincolnshire Council
"Housing, Highways and Transport",Revenue Budgets,Economy And Growth,Facilities Management,A1579,Old Clee Youth Centre,A21010,Gas,30075702,11/01/2023,202210,446.73,119822,Old Clee Primary Academy
"Housing, Highways and Transport",Capital Spend,Economy And Growth,Hps-Disabled Fac. Grants,Y1793,Equipment Store,C01006,Purchase of Vehicles & Plant,30076241,11/01/2023,202210,641.65,101715,Nottingham Rehab Limited
"Housing, Highways and Transport",Revenue Budgets,Economy And Growth,Home Options & Hous Rel Supp,A0953,Home Options,A56000,Other Establishments,30076267,11/01/2023,202210,550.00,REDACTED PERSONAL INFORMATION,REDACTED PERSONAL INFORMATION
"Housing, Highways and Transport",Revenue Budgets,Economy And Growth,Home Options & Hous Rel Supp,A0955,Crisis Accomodation,A22005,Building Rents,30075726,12/01/2023,202210,"1,100.00",REDACTED PERSONAL INFORMATION,REDACTED PERSONAL INFORMATION
"Housing, Highways and Transport",Revenue Budgets,Economy And Growth,Home Options & Hous Rel Supp,A0955,Crisis Accomodation,A22005,Building Rents,30076147,12/01/2023,202210,"1,100.00",REDACTED PERSONAL INFORMATION,REDACTED PERSONAL INFORMATION
"Housing, Highways and Transport",Revenue Budgets,Economy And Growth,Facilities Management,A0319,Reynolds Cc Premises,A27020,Cleaning Materials,30076676,12/01/2023,202210,254.18,100815,Peter Hogarth & Sons Ltd
"Housing, Highways and Transport",Revenue Budgets,Economy And Growth,Facilities Management,A0469,Void Property Costs,A49005,Other Hired & Contracting Services,30079093,12/01/2023,202210,740.00,128602,Oneway Tm Limited
"Housing, Highways and Transport",Revenue Budgets,Economy And Growth,Home Options & Hous Rel Supp,A0955,Crisis Accomodation,A22020,Rental Property Service Charge,30079923,12/01/2023,202210,"1,285.24",100894,North East Lincolnshire Council
"Housing, Highways and Transport",Revenue Budgets,Economy And Growth,Home Options & Hous Rel Supp,A0955,Crisis Accomodation,A22020,Rental Property Service Charge,10034779,13/01/2023,202210,-315.83,100812,Electric Appliances Grimsby
"Housing, Highways and Transport",Revenue Budgets,Economy And Growth,Home Options & Hous Rel Supp,A0955,Crisis Accomodation,A22020,Rental Property Service Charge,10034780,13/01/2023,202210,315.83,100812,Electric Appliances Grimsby
"Housing, Highways and Transport",Revenue Budgets,Economy And Growth,Home Options & Hous Rel Supp,A0953,Home Options,A56000,Other Establishments,30076765,13/01/2023,202210,302.56,REDACTED PERSONAL INFORMATION,REDACTED PERSONAL INFORMATION
"Housing, Highways and Transport",Revenue Budgets,Economy And Growth,Home Options & Hous Rel Supp,A0953,Home Options,A56000,Other Establishments,30076771,13/01/2023,202210,523.29,REDACTED PERSONAL INFORMATION,REDACTED PERSONAL INFORMATION
"Housing, Highways and Transport",Revenue Budgets,Economy And Growth,Home Options & Hous Rel Supp,A0955,Crisis Accomodation,A22020,Rental Property Service Charge,30076784,13/01/2023,202210,315.83,100812,Electric Appliances Grimsby
"Housing, Highways and Transport",Revenue Budgets,Economy And Growth,Home Options & Hous Rel Supp,A0955,Crisis Accomodation,A22005,Building Rents,30078812,13/01/2023,202210,"3,680.00",REDACTED PERSONAL INFORMATION,REDACTED PERSONAL INFORMATION
"Housing, Highways and Transport",Revenue Budgets,Economy And Growth,Home Options & Hous Rel Supp,A0955,Crisis Accomodation,A22005,Building Rents,30078822,13/01/2023,202210,"1,120.00",REDACTED PERSONAL INFORMATION,REDACTED PERSONAL INFORMATION
"Housing, Highways and Transport",Revenue Budgets,Economy And Growth,Home Options & Hous Rel Supp,A0955,Crisis Accomodation,A22005,Building Rents,30078828,13/01/2023,202210,"1,600.00",REDACTED PERSONAL INFORMATION,REDACTED PERSONAL INFORMATION
